Workbook

Sheet 6yearData1 (hidden)
A1: [0pen] | B1: Yr2 | C1: Yr1 | D1: GiftRange | E1: [0pen] | F1: [0pen] | G1: [0pen] | H1: [0pen] | I1: GiftsYr2 | J1: NewDonorsYr2 | K1: NewRevenueYr2 | L1: RecapDonorsYr2 | M1: RecapRevYr2 | N1: UpgradeRevYr1 | O1: UpgradeDonorsYr2 | P1: UpgradeRevYr2 | Q1: SameRevYr1 | R1: SameDonorYr2 | S1: SameRevYr2 | T1: DowngradeRevYr1 | U1: DowngradeDonorrsYr2 | V1: DowngradeRevYr2 | W1: NewYr1DonorsthatDidnotGiveYr2 | X1: NewYr1RevthatDidnotGiveYr2 | Y1: NonNewYr1DonorsthatDidnotGiveYr2 | Z1: NonNewYr1RevthatDidnotGiveYr2 | AA1: NewRevenueDonorCountYr1 | AB1: NewRevenueYr1 | AC1: NoOneTime | AD1: AmtOneTime | AE1: NoRecap1Yr | AF1: AmtRecap1Yr | AG1: NoDonorsDB
A2: A | B2: B | C2: C | D2: D | E2: E | F2: F | G2: G | H2: H | I2: I | J2: J | K2: K | L2: L | M2: M | N2: N | O2: O | P2: P | Q2: Q | R2: R
A3: 6yearData1
A4: =StepByStep!$A$6 -> NFFS-2017 7-15-17 - 7,015 organizations | D4: GiGextractToFEPdata | M4: ------------------------------------------------------ Future -------------------------------------------------------
B5: 2016 | C5: 2015 | D5: Under 100 | I5: 3589253 | J5: 1698466 | K5: 57932675 | L5: 258842 | M5: 8709409 | N5: 7772468 | O5: 280703 | P5: 13453923 | Q5: 11730780 | R5: 330594 | S5: 11730780 | T5: 10077376 | U5: 216544 | V5: 5776946 | W5: 1458224 | X5: 48383813 | Y5: 472666 | Z5: 16021173 | AA5: 1833543 | AB5: 61198019 | AC5: 8078146 | AD5: 254110144 | AE5: 138648 | AF5: 4802430 | AG5: 12777037 | AI5: =SUM(I5:AG5) -> 542832602
B6: 2016 | C6: 2015 | D6: 100-250 | I6: 3057902 | J6: 663112 | K6: 86379457 | L6: 187000 | M6: 18279907 | N6: 22472404 | O6: 295290 | P6: 41020430 | Q6: 24253368 | R6: 223159 | S6: 24253368 | T6: 31210785 | U6: 230550 | V6: 16882707 | W6: 512650 | X6: 65447678 | Y6: 333183 | Z6: 32696601 | AA6: 771947 | AB6: 93014845 | AC6: 2348063 | AD6: 298578364 | AE6: 106095 | AF6: 10534682 | AG6: 5221992 | AI6: =SUM(I6:AG6) -> 778975539
B7: 2016 | C7: 2015 | D7: 250-1000 | I7: 4178994 | J7: 355901 | K7: 154845821 | L7: 118976 | M7: 32601581 | N7: 86595481 | O7: 343351 | P7: 160454265 | Q7: 48390402 | R7: 144284 | S7: 48390402 | T7: 101128437 | U7: 247312 | V7: 54446939 | W7: 232821 | X7: 97394932 | Y7: 237596 | Z7: 65692272 | AA7: 440630 | AB7: 163190107 | AC7: 1000961 | AD7: 416908122 | AE7: 68854 | AF7: 19037849 | AG7: 3066517 | AI7: 1459512807
B8: 2016 | C8: 2015 | D8: 1000-5000 | I8: 3424634 | J8: 151321 | K8: 249941785 | L8: 59286 | M8: 61621082 | N8: 268197705 | O8: 274757 | P8: 507190034 | Q8: 94125107 | R8: 75414 | S8: 94125107 | T8: 231480796 | U8: 143873 | V8: 121798849 | W8: 89204 | X8: 147986427 | Y8: 114275 | Z8: 117494625 | AA8: 220135 | AB8: 291861483 | AC8: 371207 | AD8: 610552297 | AE8: 34372 | AF8: 36614879 | AG8: 1455163 | AI8: 2839403817
B9: 2016 | C9: 2015 | D9: 5000up | I9: 743356 | J9: 41325 | K9: 966479634 | L9: 23582 | M9: 425365970 | N9: 834711157 | O9: 67062 | P9: 1820059529 | Q9: 364930049 | R9: 26955 | S9: 364930049 | T9: 1758384162 | U9: 62315 | V9: 789072012 | W9: 27404 | X9: 642737921 | Y9: 42790 | Z9: 727189959 | AA9: 61564 | AB9: 1340355999 | AC9: 109835 | AD9: 2731844988 | AE9: 13996 | AF9: 258887021 | AG9: 467149 | AI9: 13026635783
B10: 2015 | C10: 2014 | D10: Under 100 | I10: 3475992 | J10: 1833543 | K10: 61198019 | L10: 248720 | M10: 8166562 | N10: 5949853 | O10: 223841 | P10: 10400057 | Q10: 9599795 | R10: 276127 | S10: 9599795 | T10: 8018459 | U10: 176501 | V10: 4621180 | W10: 1047990 | X10: 34437427 | Y10: 388661 | Z10: 12764549 | AA10: 1303582 | AB10: 42864051 | AC10: 6622017 | AD10: 205774235 | AE10: 126242 | AF10: 4260680 | AG10: 11078571 | AI10: 444456449
B11: 2015 | C11: 2014 | D11: 100-250 | I11: 2908399 | J11: 771947 | K11: 93014845 | L11: 183931 | M11: 17213465 | N11: 17216433 | O11: 251341 | P11: 32763529 | Q11: 19671634 | R11: 195007 | S11: 19671634 | T11: 24740782 | U11: 192606 | V11: 13417365 | W11: 365899 | X11: 45633967 | Y11: 274074 | Z11: 25710485 | AA11: 553771 | AB11: 63628722 | AC11: 1835879 | AD11: 233174873 | AE11: 100458 | AF11: 9533810 | AG11: 4558880 | AI11: 627583736
B12: 2015 | C12: 2014 | D12: 250-1000 | I12: 3878780 | J12: 440630 | K12: 163190107 | L12: 120552 | M12: 30948969 | N12: 65147700 | O12: 302064 | P12: 119893559 | Q12: 42582951 | R12: 136550 | S12: 42582951 | T12: 78857775 | U12: 205568 | V12: 42585936 | W12: 165075 | X12: 66072306 | Y12: 193734 | Z12: 50213538 | AA12: 322236 | AB12: 109152697 | AC12: 768328 | AD12: 319567273 | AE12: 67809 | AF12: 17619980 | AG12: 2710616 | AI12: 1157727684
B13: 2015 | C13: 2014 | D13: 1000-5000 | I13: 2945102 | J13: 220135 | K13: 291861483 | L13: 60930 | M13: 58644774 | N13: 179120907 | O13: 228742 | P13: 335894798 | Q13: 79831098 | R13: 69631 | S13: 79831098 | T13: 176996547 | U13: 118085 | V13: 93052506 | W13: 62932 | X13: 99088480 | Y13: 90142 | Z13: 86871067 | AA13: 151118 | AB13: 185386345 | AC13: 282065 | AD13: 462643630 | AE13: 34553 | AF13: 34205188 | AG13: 1303842 | AI13: 2168995198
B14: 2015 | C14: 2014 | D14: 5000up | I14: 744478 | J14: 61564 | K14: 1340355999 | L14: 23471 | M14: 400304021 | N14: 749832738 | O14: 63844 | P14: 1640249613 | Q14: 306254248 | R14: 24199 | S14: 306254248 | T14: 1415728101 | U14: 53448 | V14: 640789368 | W14: 20029 | X14: 461113227 | Y14: 33701 | Z14: 570345493 | AA14: 46492 | AB14: 930717981 | AC14: 82478 | AD14: 2150880052 | AE14: 13444 | AF14: 220042252 | AG14: 425824 | AI14: 11134460313
B15: 2014 | C15: 2013 | D15: Under 100 | I15: 2641460 | J15: 1303582 | K15: 42864051 | L15: 238078 | M15: 7666711 | N15: 4804385 | O15: 185242 | P15: 8337994 | Q15: 8026149 | R15: 235901 | S15: 8026149 | T15: 6769732 | U15: 150318 | V15: 3875181 | W15: 847787 | X15: 27604768 | Y15: 380012 | Z15: 12242432 | AA15: 1015145 | AB15: 33072303 | AC15: 5638818 | AD15: 173445120 | AE15: 120670 | AF15: 4005758 | AG15: 9245028 | AI15: 362742774
B16: 2014 | C16: 2013 | D16: 100-250 | I16: 2236739 | J16: 553771 | K16: 63628722 | L16: 174968 | M16: 15812305 | N16: 13755213 | O16: 206325 | P16: 25421208 | Q16: 16317491 | R16: 169950 | S16: 16317491 | T16: 21744708 | U16: 173913 | V16: 11793576 | W16: 285909 | X16: 34969804 | Y16: 258778 | Z16: 23683342 | AA16: 401830 | AB16: 45965271 | AC16: 1508609 | AD16: 191455846 | AE16: 95889 | AF16: 8850341 | AG16: 3786933 | AI16: 499568932
B17: 2014 | C17: 2013 | D17: 250-1000 | I17: 3133796 | J17: 322236 | K17: 109152697 | L17: 114305 | M17: 27840939 | N17: 45652283 | O17: 228070 | P17: 84122782 | Q17: 34222539 | R17: 118069 | S17: 34222539 | T17: 82060740 | U17: 220311 | V17: 47535313 | W17: 130551 | X17: 50653742 | Y17: 180566 | Z17: 45481531 | AA17: 233692 | AB17: 78610040 | AC17: 625366 | AD17: 260178202 | AE17: 64158 | AF17: 15809247 | AG17: 2269986 | AI17: 923183700
B18: 2014 | C18: 2013 | D18: 1000-5000 | I18: 2291908 | J18: 151118 | K18: 185386345 | L18: 57216 | M18: 51512319 | N18: 121640395 | O18: 168195 | P18: 220977189 | Q18: 65073025 | R18: 61441 | S18: 65073025 | T18: 173485329 | U18: 131562 | V18: 98959222 | W18: 50254 | X18: 75269123 | Y18: 82239 | Z18: 76240194 | AA18: 110422 | AB18: 129386740 | AC18: 229523 | AD18: 375869312 | AE18: 32298 | AF18: 29855375 | AG18: 1083707 | AI18: 1673177476
B19: 2014 | C19: 2013 | D19: 5000up | I19: 641620 | J19: 46492 | K19: 930717981 | L19: 22568 | M19: 380904552 | N19: 648054534 | O19: 57582 | P19: 1405276313 | Q19: 242619744 | R19: 21041 | S19: 242619744 | T19: 1166130244 | U19: 47538 | V19: 543755220 | W19: 15410 | X19: 363168677 | Y19: 30590 | Z19: 450961151 | AA19: 33013 | AB19: 668616735 | AC19: 66482 | AD19: 1758451953 | AE19: 12899 | AF19: 214711699 | AG19: 364260 | AI19: 9017348042
B20: 2013 | C20: 2012 | D20: Under 100 | I20: 2241177 | J20: 1015145 | K20: 33072303 | L20: 231814 | M20: 7300424 | N20: 4884739 | O20: 183585 | P20: 8205854 | Q20: 7167206 | R20: 220162 | S20: 7167206 | T20: 6529501 | U20: 148554 | V20: 3701675 | W20: 790267 | X20: 25256277 | Y20: 362027 | Z20: 11293974 | AA20: 948861 | AB20: 30387301 | AC20: 4861992 | AD20: 148113978 | AE20: 121741 | AF20: 3922543 | AG20: 7941446 | AI20: 316069752
B21: 2013 | C21: 2012 | D21: 100-250 | I21: 1947559 | J21: 401830 | K21: 45965271 | L21: 166050 | M21: 14560563 | N21: 12744243 | O21: 197016 | P21: 23588726 | Q21: 15386713 | R21: 163626 | S21: 15386713 | T21: 20301908 | U21: 166353 | V21: 10969281 | W21: 254744 | X21: 30654010 | Y21: 240738 | Z21: 21583879 | AA21: 363621 | AB21: 40739210 | AC21: 1266373 | AD21: 160711138 | AE21: 92074 | AF21: 8216297 | AG21: 3233162 | AI21: 429301098
B22: 2013 | C22: 2012 | D22: 250-1000 | I22: 2912996 | J22: 233692 | K22: 78610040 | L22: 107788 | M22: 25221450 | N22: 43809072 | O22: 221745 | P22: 80259623 | Q22: 38700789 | R22: 134066 | S22: 38700789 | T22: 64481899 | U22: 180276 | V22: 35278930 | W22: 114906 | X22: 43182363 | Y22: 162966 | Z22: 39750098 | AA22: 209565 | AB22: 67509454 | AC22: 520603 | AD22: 216733358 | AE22: 61615 | AF22: 14564263 | AG22: 1947750 | AI22: 793610096
B23: 2013 | C23: 2012 | D23: 1000-5000 | I23: 2126445 | J23: 110422 | K23: 129386740 | L23: 53623 | M23: 46254554 | N23: 108445119 | O23: 161485 | P23: 199425367 | Q23: 64228647 | R23: 67650 | S23: 64228647 | T23: 134585308 | U23: 100511 | V23: 72412758 | W23: 44989 | X23: 64358245 | Y23: 73476 | Z23: 65048929 | AA23: 96838 | AB23: 108372655 | AC23: 191667 | AD23: 313583917 | AE23: 31035 | AF23: 27445957 | AG23: 932589 | AI23: 1401767573
B24: 2013 | C24: 2012 | D24: 5000up | I24: 580594 | J24: 33013 | K24: 668616735 | L24: 20992 | M24: 318022530 | N24: 558920635 | O24: 54646 | P24: 1172786069 | Q24: 211301207 | R24: 19635 | S24: 211301207 | T24: 1017676257 | U24: 43875 | V24: 500207812 | W24: 13222 | X24: 366615536 | Y24: 27721 | Z24: 457649320 | AA24: 28875 | AB24: 601281608 | AC24: 55488 | AD24: 1566668254 | AE24: 12289 | AF24: 181720638 | AG24: 317768 | AI24: 7833975926
B25: 2012 | C25: 2011 | D25: Under 100 | I25: 2140240 | J25: 948861 | K25: 30387301 | L25: 217751 | M25: 6695968 | N25: 4522358 | O25: 176305 | P25: 7690281 | Q25: 6729808 | R25: 214016 | S25: 6729808 | T25: 6361243 | U25: 147662 | V25: 3628340 | W25: 752139 | X25: 23524535 | Y25: 352172 | Z25: 10865697 | AA25: 905072 | AB25: 28310569 | AC25: 4151628 | AD25: 125363868 | AE25: 117049 | AF25: 3684310 | AG25: 6926301 | AI25: 281543282
B26: 2012 | C26: 2011 | D26: 100-250 | I26: 1837218 | J26: 363621 | K26: 40739210 | L26: 155278 | M26: 13263851 | N26: 12042516 | O26: 189250 | P26: 22212022 | Q26: 14195133 | R26: 154514 | S26: 14195133 | T26: 19147392 | U26: 159814 | V26: 10260537 | W26: 232964 | X26: 27637364 | Y26: 224622 | Z26: 19783121 | AA26: 335550 | AB26: 36849710 | AC26: 1060449 | AD26: 134605652 | AE26: 89614 | AF26: 7753391 | AG26: 2831332 | AI26: 380319258
B27: 2012 | C27: 2011 | D27: 250-1000 | I27: 2696329 | J27: 209565 | K27: 67509454 | L27: 99630 | M27: 22474621 | N27: 40504604 | O27: 212738 | P27: 74686091 | Q27: 34252197 | R27: 126667 | S27: 34252197 | T27: 57320685 | U27: 165359 | V27: 31001859 | W27: 106020 | X27: 39193889 | Y27: 147610 | Z27: 35094683 | AA27: 196158 | AB27: 61081685 | AC27: 434752 | AD27: 181092440 | AE27: 59055 | AF27: 13435222 | AG27: 1714058 | AI27: 698067568
B28: 2012 | C28: 2011 | D28: 1000-5000 | I28: 1891031 | J28: 96838 | K28: 108372655 | L28: 47900 | M28: 38975525 | N28: 90931906 | O28: 146495 | P28: 167533270 | Q28: 57265963 | R28: 64262 | S28: 57265963 | T28: 121414291 | U28: 92616 | V28: 64518834 | W28: 42530 | X28: 58813776 | Y28: 67393 | Z28: 57745315 | AA28: 93206 | AB28: 98794866 | AC28: 160732 | AD28: 262608323 | AE28: 28764 | AF28: 23799103 | AG28: 822167 | AI28: 1211593724
B29: 2012 | C29: 2011 | D29: 5000up | I29: 541441 | J29: 28875 | K29: 601281608 | L29: 18885 | M29: 278523984 | N29: 494032023 | O29: 50347 | P29: 1040304968 | Q29: 211408378 | R29: 18880 | S29: 211408378 | T29: 1008038269 | U29: 42112 | V29: 480644014 | W29: 12741 | X29: 261231612 | Y29: 25577 | Z29: 353033300 | AA29: 28093 | AB29: 493338531 | AC29: 47165 | AD29: 1217492661 | AE29: 11224 | AF29: 138320019 | AG29: 284755 | AI29: 6790167840
B30: 2011 | C30: 2010 | D30: Under 100 | I30: 2060792 | J30: 905072 | K30: 28310569 | L30: 210586 | M30: 6310095 | N30: 4141969 | O30: 169387 | P30: 7216647 | Q30: 6653107 | R30: 211943 | S30: 6653107 | T30: 6186916 | U30: 145306 | V30: 3513224 | W30: 734813 | X30: 22825998 | Y30: 328834 | Z30: 10069485 | AA30: 888222 | AB30: 27529616 | AC30: 3488554 | AD30: 104561725 | AE30: 115202 | AF30: 3547738 | AG30: 5977440 | AI30: 252756347
B31: 2011 | C31: 2010 | D31: 100-250 | I31: 1731338 | J31: 335550 | K31: 36849710 | L31: 141151 | M31: 11805767 | N31: 11190919 | O31: 179904 | P31: 20816015 | Q31: 13455144 | R31: 148806 | S31: 13455144 | T31: 18482835 | U31: 155753 | V31: 9878893 | W31: 236737 | X31: 27925283 | Y31: 212815 | Z31: 18731304 | AA31: 339733 | AB31: 37002208 | AC31: 879539 | AD31: 111667700 | AE31: 83498 | AF31: 7098648 | AG31: 2467711 | AI31: 345272105
B32: 2011 | C32: 2010 | D32: 250-1000 | I32: 2435461 | J32: 196158 | K32: 61081685 | L32: 90431 | M32: 20007028 | N32: 37110872 | O32: 202508 | P32: 68119659 | Q32: 28296740 | R32: 111731 | S32: 28296740 | T32: 53610223 | U32: 157566 | V32: 28860946 | W32: 107241 | X32: 38792160 | Y32: 135485 | Z32: 32042934 | AA32: 195749 | AB32: 59574258 | AC32: 359823 | AD32: 149830583 | AE32: 54371 | AF32: 12202412 | AG32: 1504493 | AI32: 623377257
B33: 2011 | C33: 2010 | D33: 1000-5000 | I33: 1662312 | J33: 93206 | K33: 98794866 | L33: 44256 | M33: 35284174 | N33: 78398661 | O33: 134206 | P33: 145174053 | Q33: 47777429 | R33: 53964 | S33: 47777429 | T33: 112265394 | U33: 87664 | V33: 59140726 | W33: 40978 | X33: 53621073 | Y33: 61476 | Z33: 52202106 | AA33: 88931 | AB33: 89743096 | AC33: 133355 | AD33: 217497663 | AE33: 26568 | AF33: 21751540 | AG33: 725329 | AI33: 1062580455
B34: 2011 | C34: 2010 | D34: 5000up | I34: 501935 | J34: 28093 | K34: 493338531 | L34: 17439 | M34: 220370961 | N34: 467158154 | O34: 47209 | P34: 983684909 | Q34: 175612075 | R34: 17459 | S34: 175612075 | T34: 913068973 | U34: 39457 | V34: 454737104 | W34: 12130 | X34: 266755657 | Y34: 23117 | Z34: 310496785 | AA34: 26216 | AB34: 460680820 | AC34: 39721 | AD34: 1012061623 | AE34: 10462 | AF34: 131133369 | AG34: 255880 | AI34: 6065730154
B35: 2010 | C35: 2009 | D35: Under 100 | I35: 1976174 | J35: 888222 | K35: 27529616 | L35: 193117 | M35: 5741510 | N35: 3941267 | O35: 161406 | P35: 6824311 | Q35: 6172158 | R35: 199817 | S35: 6172158 | T35: 6346818 | U35: 147721 | V35: 3609884 | W35: 672426 | X35: 20858813 | Y35: 310627 | Z35: 9446350 | AA35: 816239 | AB35: 25272944 | AC35: 2850107 | AD35: 84635471 | AE35: 106868 | AF35: 3264426 | AG35: 5072368 | AI35: 223210818
B36: 2010 | C36: 2009 | D36: 100-250 | I36: 1669099 | J36: 339733 | K36: 37002208 | L36: 130405 | M36: 10938211 | N36: 10638774 | O36: 172243 | P36: 19825873 | Q36: 12387249 | R36: 138580 | S36: 12387249 | T36: 17977724 | U36: 153054 | V36: 9631942 | W36: 205813 | X36: 23919553 | Y36: 188162 | Z36: 16352025 | AA36: 305140 | AB36: 32596367 | AC36: 700685 | AD36: 88927504 | AE36: 77734 | AF36: 6590186 | AG36: 2132161 | AI36: 305387674
B37: 2010 | C37: 2009 | D37: 250-1000 | I37: 2187471 | J37: 195749 | K37: 59574258 | L37: 84264 | M37: 18617456 | N37: 33194552 | O37: 189962 | P37: 61573964 | Q37: 24046435 | R37: 99049 | S37: 24046435 | T37: 48329615 | U37: 145507 | V37: 26040821 | W37: 93291 | X37: 32826834 | Y37: 116239 | Z37: 26626504 | AA37: 175606 | AB37: 51240068 | AC37: 286776 | AD37: 119451473 | AE37: 51931 | AF37: 11616654 | AG37: 1308335 | AI37: 542119249
B38: 2010 | C38: 2009 | D38: 1000-5000 | I38: 1439488 | J38: 88931 | K38: 89743096 | L38: 41977 | M38: 32875101 | N38: 67184133 | O38: 120131 | P38: 127187192 | Q38: 41521072 | R38: 48061 | S38: 41521072 | T38: 100170448 | U38: 79188 | V38: 52938202 | W38: 36065 | X38: 46403624 | Y38: 52714 | Z38: 43246166 | AA38: 79818 | AB38: 78734925 | AC38: 108686 | AD38: 177677595 | AE38: 26193 | AF38: 20890871 | AG38: 632123 | AI38: 922846872
B39: 2010 | C39: 2009 | D39: 5000up | I39: 460765 | J39: 26216 | K39: 460680820 | L39: 16614 | M39: 203484935 | N39: 458953491 | O39: 44528 | P39: 947459339 | Q39: 164610908 | R39: 16310 | S39: 164610908 | T39: 745473302 | U39: 35704 | V39: 356855641 | W39: 10866 | X39: 230808594 | Y39: 20547 | Z39: 282876085 | AA39: 24535 | AB39: 417574464 | AC39: 33227 | AD39: 825560671 | AE39: 10513 | AF39: 130022616 | AG39: 227787 | AI39: 5389899386
B40: 2009 | C40: 2008 | D40: Under 100 | I40: 1879181 | J40: 816239 | K40: 25272944 | L40: 180480 | M40: 5340353 | N40: 4000526 | O40: 162848 | P40: 6945811 | Q40: 5771001 | R40: 189799 | S40: 5771001 | T40: 6040696 | U40: 142631 | V40: 3435293 | W40: 618869 | X40: 19058461 | Y40: 275452 | Z40: 8427906 | AA40: 764845 | AB40: 23430876 | AC40: 2276923 | AD40: 66708161 | AE40: 108939 | AF40: 3338669 | AG40: 4184146 | AI40: 195142050
B41: 2009 | C41: 2008 | D41: 100-250 | I41: 1563440 | J41: 305140 | K41: 32596367 | L41: 115999 | M41: 9548339 | N41: 10038934 | O41: 164472 | P41: 18828113 | Q41: 11300090 | R41: 127603 | S41: 11300090 | T41: 16973660 | U41: 144638 | V41: 9002419 | W41: 196577 | X41: 22604269 | Y41: 164629 | Z41: 14622161 | AA41: 293068 | AB41: 30754799 | AC41: 551535 | AD41: 69940515 | AE41: 76318 | AF41: 6375285 | AG41: 1792428 | AI41: 269380888
B42: 2009 | C42: 2008 | D42: 250-1000 | I42: 1910677 | J42: 175606 | K42: 51240068 | L42: 72834 | M42: 15271169 | N42: 28680335 | O42: 169190 | P42: 53119746 | Q42: 21252293 | R42: 89214 | S42: 21252293 | T42: 45753873 | U42: 137204 | V42: 24140661 | W42: 94050 | X42: 33041853 | Y42: 104739 | Z42: 25263954 | AA42: 169487 | AB42: 49705698 | AC42: 226848 | AD42: 94476464 | AE42: 49527 | AF42: 10524050 | AG42: 1112586 | AI42: 478034419
B43: 2009 | C43: 2008 | D43: 1000-5000 | I43: 1218984 | J43: 79818 | K43: 78734925 | L43: 34544 | M43: 25766170 | N43: 56700172 | O43: 100421 | P43: 105395755 | Q43: 37314091 | R43: 43871 | S43: 37314091 | T43: 99661763 | U43: 77505 | V43: 51314498 | W43: 39185 | X43: 51223209 | Y43: 49609 | Z43: 44270490 | AA43: 77992 | AB43: 81827767 | AC43: 88019 | AD43: 144016224 | AE43: 23920 | AF43: 17954102 | AG43: 543192 | AI43: 833870317
B44: 2009 | C44: 2008 | D44: 5000up | I44: 413287 | J44: 24535 | K44: 417574464 | L44: 13729 | M44: 180965238 | N44: 344508572 | O44: 36909 | P44: 715148146 | Q44: 148162531 | R44: 14606 | S44: 148162531 | T44: 889702472 | U44: 38176 | V44: 420871998 | W44: 12763 | X44: 263616387 | Y44: 19918 | Z44: 283432239 | AA44: 26233 | AB44: 483893870 | AC44: 27770 | AD44: 698143216 | AE44: 9605 | AF44: 127398940 | AG44: 201571 | AI44: 5122419706
B45: 2008 | C45: 2007 | D45: Under 100 | I45: 1749450 | J45: 764845 | K45: 23430876 | L45: 146841 | M45: 4344566 | N45: 3874162 | O45: 156798 | P45: 6653642 | Q45: 5629845 | R45: 185242 | S45: 5629845 | T45: 5739105 | U45: 135874 | V45: 3239661 | W45: 580004 | X45: 17887293 | Y45: 245839 | Z45: 7513352 | AA45: 733335 | AB45: 22526299 | AC45: 1758360 | AD45: 50596625 | AE45: 100096 | AF45: 3050660 | AG45: 3367907 | AI45: 170040522
B46: 2008 | C46: 2007 | D46: 100-250 | I46: 1428834 | J46: 293068 | K46: 30754799 | L46: 94234 | M46: 7918381 | N46: 9567481 | O46: 155962 | P46: 17751400 | Q46: 10722273 | R46: 120414 | S46: 10722273 | T46: 15783866 | U46: 134241 | V46: 8392260 | W46: 193118 | X46: 21890649 | Y46: 143801 | Z46: 13075855 | AA46: 294219 | AB46: 30408354 | AC46: 412574 | AD46: 52330443 | AE46: 67967 | AF46: 5797917 | AG46: 1487288 | AI46: 239941671
B47: 2008 | C47: 2007 | D47: 250-1000 | I47: 1686022 | J47: 169487 | K47: 49705698 | L47: 59276 | M47: 13065384 | N47: 26820862 | O47: 158009 | P47: 49351372 | Q47: 19546754 | R47: 82065 | S47: 19546754 | T47: 42069786 | U47: 125560 | V47: 22323102 | W47: 93203 | X47: 31890925 | Y47: 89209 | Z47: 22081501 | AA47: 170635 | AB47: 49181488 | AC47: 167660 | AD47: 69707918 | AE47: 43796 | AF47: 9810084 | AG47: 936980 | AI47: 428883530
B48: 2008 | C48: 2007 | D48: 1000-5000 | I48: 1065748 | J48: 77992 | K48: 81827767 | L48: 28501 | M48: 23056495 | N48: 54228675 | O48: 93832 | P48: 102334008 | Q48: 35207358 | R48: 40362 | S48: 35207358 | T48: 90989793 | U48: 69904 | V48: 46744100 | W48: 40001 | X48: 50613588 | Y48: 41478 | Z48: 38816566 | AA48: 80571 | AB48: 83459648 | AC48: 65715 | AD48: 107419834 | AE48: 21381 | AF48: 17650255 | AG48: 463374 | AI48: 769644304
B49: 2008 | C49: 2007 | D49: 5000up | I49: 381657 | J49: 26233 | K49: 483893870 | L49: 11799 | M49: 176015532 | N49: 387873192 | O49: 37250 | P49: 791942171 | Q49: 144408028 | R49: 13803 | S49: 144408028 | T49: 792699603 | U49: 33287 | V49: 333162600 | W49: 13908 | X49: 259036534 | Y49: 16603 | Z49: 235982565 | AA49: 28985 | AB49: 498001535 | AC49: 21266 | AD49: 536309332 | AE49: 8953 | AF49: 127390105 | AG49: 177036 | AI49: 4911893875
B50: 2007 | C50: 2006 | D50: Under 100 | I50: 1661774 | J50: 733335 | K50: 22526299 | L50: 111150 | M50: 3316919 | N50: 3662756 | O50: 154908 | P50: 6387085 | Q50: 5332306 | R50: 175779 | S50: 5332306 | T50: 5455864 | U50: 128585 | V50: 3081147 | W50: 557870 | X50: 16681121 | Y50: 191556 | Z50: 5735022 | AA50: 742187 | AB50: 22010851 | AC50: 1290462 | AD50: 36018711 | AE50: 101075 | AF50: 3060979 | AG50: 2603062 | AI50: 147053109
B51: 2007 | C51: 2006 | D51: 100-250 | I51: 1339280 | J51: 294219 | K51: 30408354 | L51: 69894 | M51: 6002495 | N51: 9168338 | O51: 149914 | P51: 17012435 | Q51: 10073874 | R51: 113962 | S51: 10073874 | T51: 14066786 | U51: 119547 | V51: 7542970 | W51: 192749 | X51: 21240009 | Y51: 101838 | Z51: 9246550 | AA51: 316217 | AB51: 31508919 | AC51: 284020 | AD51: 36028418 | AE51: 66105 | AF51: 5737235 | AG51: 1194220 | AI51: 212352222
B52: 2007 | C52: 2006 | D52: 250-1000 | I52: 1523807 | J52: 170635 | K52: 49181488 | L52: 44470 | M52: 9998289 | N52: 24922524 | O52: 150197 | P52: 46167728 | Q52: 17675318 | R52: 74560 | S52: 17675318 | T52: 36061335 | U52: 108184 | V52: 19387011 | W52: 91321 | X52: 29624823 | Y52: 61529 | Z52: 15299966 | AA52: 187587 | AB52: 51766851 | AC52: 112895 | AD52: 46810211 | AE52: 42685 | AF52: 9691013 | AG52: 767493 | AI52: 377597238
B53: 2007 | C53: 2006 | D53: 1000-5000 | I53: 948786 | J53: 80571 | K53: 83459648 | L53: 20780 | M53: 17433922 | N53: 50880605 | O53: 88945 | P53: 96862710 | Q53: 31539222 | R53: 35872 | S53: 31539222 | T53: 77644686 | U53: 59409 | V53: 40560478 | W53: 40313 | X53: 48698872 | Y53: 28321 | Z53: 26127718 | AA53: 93733 | AB53: 95440622 | AC53: 44402 | AD53: 72512413 | AE53: 20224 | AF53: 17077385 | AG53: 385382 | AI53: 691624241
B54: 2007 | C54: 2006 | D54: 5000up | I54: 353409 | J54: 28985 | K54: 498001535 | L54: 8480 | M54: 110399517 | N54: 373554650 | O54: 36870 | P54: 824428012 | Q54: 122660652 | R54: 12695 | S54: 122660652 | T54: 646354355 | U54: 27821 | V54: 264510204 | W54: 14662 | X54: 283901101 | Y54: 11202 | Z54: 185974072 | AA54: 35398 | AB54: 584838673 | AC54: 14498 | AD54: 399401380 | AE54: 8207 | AF54: 103965426 | AG54: 150803 | AI54: 4521353259
B55: 2006 | C55: 2005 | D55: Under 100 | I55: 1559924 | J55: 742187 | K55: 22010851 | L55: 20481 | M55: 544937 | N55: 3561925 | O55: 149656 | P55: 6226128 | Q55: 4968635 | R55: 166741 | S55: 4968635 | T55: 5495815 | U55: 129633 | V55: 3116520 | W55: 723136 | X55: 21386633 | Y55: 36981 | Z55: 956830 | AA55: 1127540 | AB55: 34196482 | AC55: 858567 | AD55: 22942765 | AE55: 11709 | AF55: 322603 | AG55: 1869727 | AI55: 138095041
B56: 2006 | C56: 2005 | D56: 100-250 | I56: 1219753 | J56: 316217 | K56: 31508919 | L56: 9044 | M56: 665423 | N56: 8401772 | O56: 139075 | P56: 15645857 | Q56: 9034353 | R56: 103266 | S56: 9034353 | T56: 13096264 | U56: 110408 | V56: 6941006 | W56: 261254 | X56: 27949315 | Y56: 12075 | Z56: 950263 | AA56: 583784 | AB56: 56190406 | AC56: 164568 | AD56: 20924448 | AE56: 5420 | AF56: 407899 | AG56: 900001 | AI56: 204575143
B57: 2006 | C57: 2005 | D57: 250-1000 | I57: 1348841 | J57: 187587 | K57: 51766851 | L57: 4269 | M57: 767962 | N57: 21221763 | O57: 134366 | P57: 39630368 | Q57: 14171498 | R57: 61666 | S57: 14171498 | T57: 32699177 | U57: 97903 | V57: 17247287 | W57: 133937 | X57: 40601408 | Y57: 5353 | Z57: 1029027 | AA57: 409271 | AB57: 105033603 | AC57: 64924 | AD57: 26840059 | AE57: 2629 | AF57: 482116 | AG57: 596858 | AI57: 368710221
B58: 2006 | C58: 2005 | D58: 1000-5000 | I58: 834463 | J58: 93733 | K58: 95440622 | L58: 1408 | M58: 971897 | N58: 40709429 | O58: 76338 | P58: 79660425 | Q58: 24698524 | R58: 29350 | S58: 24698524 | T58: 66962794 | U58: 52031 | V58: 34119638 | W58: 59143 | X58: 65268495 | Y58: 1670 | Z58: 1261194 | AA58: 211078 | AB58: 193436901 | AC58: 25141 | AD58: 41046244 | AE58: 863 | AF58: 603041 | AG58: 304811 | AI58: 670567757
B59: 2006 | C59: 2005 | D59: 5000up | I59: 320603 | J59: 35398 | K59: 584838673 | L59: 619 | M59: 10687542 | N59: 300586225 | O59: 31947 | P59: 662112475 | Q59: 98666948 | R59: 10922 | S59: 98666948 | T59: 564878032 | U59: 24364 | V59: 256139193 | W59: 21561 | X59: 389018643 | Y59: 715 | Z59: 15770704 | AA59: 86420 | AB59: 1320835422 | AC59: 8315 | AD59: 246209238 | AE59: 348 | AF59: 4193134 | AG59: 121818 | AI59: 4553266207
B60: 2005 | C60: 2004 | D60: Under 100 | I60: 1571884 | J60: 1127540 | K60: 34196482 | L60: 21070 | M60: 534804 | N60: 478183 | O60: 22347 | P60: 838699 | Q60: 402985 | R60: 16949 | S60: 402985 | T60: 699838 | U60: 18241 | V60: 396866 | W60: 42635 | X60: 986853 | Y60: 37413 | Z60: 983903 | AA60: 59362 | AB60: 1371764 | AC60: 329101 | AD60: 7219069 | AE60: 11029 | AF60: 292018 | AG60: 1127540
B61: 2005 | C61: 2004 | D61: 100-250 | I61: 1111884 | J61: 583784 | K61: 56190406 | L61: 8027 | M61: 561920 | N61: 801456 | O61: 15029 | P61: 1464521 | Q61: 558563 | R61: 7656 | S61: 558563 | T61: 1187079 | U61: 11582 | V61: 656556 | W61: 5733 | X61: 569619 | Y61: 12178 | Z61: 939341 | AA61: 11462 | AB61: 914791 | AC61: 26756 | AD61: 3375658 | AE61: 4731 | AF61: 339965 | AG61: 583784
B62: 2005 | C62: 2004 | D62: 250-1000 | I62: 1143892 | J62: 409271 | K62: 105033603 | L62: 3565 | M62: 608215 | N62: 1296572 | O62: 9563 | P62: 2362684 | Q62: 690838 | R62: 3729 | S62: 690838 | T62: 1866236 | U62: 7097 | V62: 1027532 | W62: 2310 | X62: 702186 | Y62: 5333 | Z62: 1007280 | AA62: 5167 | AB62: 1113657 | AC62: 8841 | AD62: 3625727 | AE62: 2194 | AF62: 390312 | AG62: 409271
B63: 2005 | C63: 2004 | D63: 1000-5000 | I63: 669459 | J63: 211078 | K63: 193436901 | L63: 1205 | M63: 783587 | N63: 1377702 | O63: 2879 | P63: 2618053 | Q63: 961756 | R63: 1295 | S63: 961756 | T63: 2068097 | U63: 2075 | V63: 1100138 | W63: 791 | X63: 915342 | Y63: 1630 | Z63: 1136266 | AA63: 1628 | AB63: 1459007 | AC63: 3470 | AD63: 5652757 | AE63: 714 | AF63: 490019 | AG63: 211078 | AH63: =SUM(AH5:AH60) -> 0 | AI63: 107830647006
B64: 2005 | C64: 2004 | D64: 5000up | I64: 269271 | J64: 86420 | K64: 1320835422 | L64: 545 | M64: 13258203 | N64: 10499385 | O64: 1086 | P64: 21216805 | Q64: 5195294 | R64: 601 | S64: 5195294 | T64: 20469641 | U64: 857 | V64: 8414830 | W64: 322 | X64: 9583034 | Y64: 693 | Z64: 30054984 | AA64: 598 | AB64: 15540625 | AC64: 1496 | AD64: 59041467 | AE64: 305 | AF64: 10192633 | AG64: 86420

Sheet StepByStep (hidden)
A1: StepByStep | C1: Fundraising Effectiveness Project (FEP) | G1: =TODAY() -> 2023-09-26
A3: RUN Macro
C4: FEP Fundraising Fitness Test Using "6YearData1" Summary Input Data
A6: NFFS-2017 7-15-17 - 7,015 organizations
G9: Initial Year2
B10: Growth-in-Giving is measured for Year2 --------> | F10: Year2: | G10: 2016 | H10: <-- Always the most current year
F11: Year1: | G11: =G10-1 -> 2015 | H11: <-- Always the prior year
A14: Step 1 - Select and copy (Ctrl-C) cells I1 to AG60 in AFP_FEP_Prelim_Data_Set_2017.xlsx file.
A15: Step 2 - Paste (Ctrl-V) data copied into cell I5 of the "6YearData1" worksheet in this FFT-VBA-xlsm file.
A16: Step 3 - Run "GiGextractToFEPdata" macro.
B17: Enter Year2 above for the initial year to be analyzed
B18: First, delete prior data from row 2 down to end of data.
A19: Step 2 | B19: Enter Year2 above for the initial year to be analyzed
A20: Step 3 | B20: Click on the "FEP Fitness Test" button ----------------------> | G20: GiGextractToFEPdata
B21: Can take up to 30 minutes -- or more
A22: Step 4 | B22: Print and/or save(*) FEP Analytics Tables 1 & 4 and other FEP report worksheets for analysis
A24: Steps 5-7 replace results in Tables 1 & 4 for each additional Year2
A25: Step 5 | B25: Enter another Year2 for each additional year as needed using same gift data.
A26: Step 6 | B26: Click on the "FEP Indicators by Year2" button -------------> | I26: <---Macro calculates in worksheet "FEPdata"
B27: Can take up to 10 minutes -- or more
A28: Step 7 | B28: Repeat print-or-save Step 4 for each Year2. | J28: <-- MultiGift yearly analysis:
J29: Enter 'Only' to include MultiGift donors
A30: Additional "FEP Growth-in-Giving (GiG) Reports" are availble at www.afpnet.org/FEP | J30: or 'Not' to exclude MultiGift donors.
A31: 1. Goto www.afpnet.org/FEP, scroll down to and click on "FEP Growth-in-Giving (GiG) Reports" | J31: Leave blank to skip MultiGift analysis.
A32: and download the Excel-based "GiG Reports Template" that has 8 more very useful GiG reports.
A33: 2. For instruction #2 in the "GiG Reports Template," you can copy gain(loss) data sets from the FEP Fitness Test | J33: Where "X" =
A34: to the "DataInput" worksheet. Copy cells B12 to E18 in Fitness Test worksheets "FEPdata," "FEP100dn," | K34: From: | L34: 1 | M34: times yearly
A35: "FEP100to249." "FEP250to999," "FEP1000to4999," or "FEP5000up"to cells B22 to E28 in the "DataInput" worksheet | K35: To: | L35: 100 | M35: times yearly
A36: of the "GiG Reports Template" and print and/or save the 8 GiG reports.
A37: 3. Other useful FEP data and guidance can be found at www.afpnet.org/FEP.
A39: Questions or comments
A40: Email FEP@afpnet.org
A42: (*) Save FEP report worksheets by copying them (Alt-E;M;Alt-C) to new worksheets in a separate or new workbook.
A43: Then selecting and copying all cells (A1 to Xn) in each new workbook and pasting in cell A1 as values (Alt-E;S;V).

Sheet TOP Indicators
A1: Top Actionable Indicators | C1: FEP Fundraising Fitness Test | G1: =TODAY() -> 2023-09-26
B2: See "All Indicators" worksheet for details and | D2: =StepByStep!$A$6 -> NFFS-2017 7-15-17 - 7,015 organizations
B3: formulas by "Ind. No." | G3: <-- Year-end month
B4: Fundraising Performance Indicators | G4: Year2: | H4: =StepByStep!$G$10 -> 2016
B5: Using Gift Transaction Data By Giving Level/Range | G5: Year1: | H5: =H4-1 -> 2015
A6: Ind | D6: ------------------------------- Giving Level/Range ------------------------------
A7: No. | B7: Fundraising Performance Indicator | C7: All Donors | D7: Under $100 | E7: $100-$249 | F7: $250-$999 | G7: $1,000- $4,999 | H7: $5,000 & Up
A8: Donor retention rate
A9: 1 | B9: New donor retention rate | C9: =(FEPdata!$B22-FEPdata!$B17)/FEPdata!$B22 -> 0.3027556487 | D9: =(FEP100Dn!$B22-FEP100Dn!$B17)/FEP100Dn!$B22 -> 0.2046960448 | E9: =(FEP100to249!$B22-FEP100to249!$B17)/FEP100to249!$B22 -> 0.3359000035 | F9: =(FEP250to999!$B22-FEP250to999!$B17)/FEP250to999!$B22 -> 0.4716179107 | G9: =(FEP1000to4999!$B22-FEP1000to4999!$B17)/FEP1000to4999!$B22 -> 0.594775933 | H9: =(FEP5000Up!$B22-FEP5000Up!$B17)/FEP5000Up!$B22 -> 0.5548697291
A10: 2 | B10: Repeat donor retention rate | C10: =(FEPdata!$B19 - FEPdata!$B22-FEPdata!$B18)/(FEPdata!$B19 - FEPdata!$B22) -> 0.619508633 | D10: =(FEP100Dn!$B19 - FEP100Dn!$B22-FEP100Dn!$B18)/(FEP100Dn!$B19 - FEP100Dn!$B22) -> 0.4891135639 | E10: =(FEP100to249!$B19 - FEP100to249!$B22-FEP100to249!$B18)/(FEP100to249!$B19 - FEP100to249!$B22) -> 0.5951038116 | F10: =(FEP250to999!$B19 - FEP250to999!$B22-FEP250to999!$B18)/(FEP250to999!$B19 - FEP250to999!$B22) -> 0.6893089623 | G10: =(FEP1000to4999!$B19 - FEP1000to4999!$B22-FEP1000to4999!$B18)/(FEP1000to4999!$B19 - FEP1000to4999!$B22) -> 0.7606244816 | H10: =(FEP5000Up!$B19 - FEP5000Up!$B22-FEP5000Up!$B18)/(FEP5000Up!$B19 - FEP5000Up!$B22) -> 0.7406069277
A11: 3 | B11: Overall donor retention rate | C11: =(FEPdata!$B19-FEPdata!$B17-FEPdata!$B18)/FEPdata!$B19 -> 0.4569140777 | D11: =(FEP100Dn!$B19-FEP100Dn!$B17-FEP100Dn!$B18)/FEP100Dn!$B19 -> 0.300080363 | E11: =(FEP100to249!$B19-FEP100to249!$B17-FEP100to249!$B18)/FEP100to249!$B19 -> 0.4696413165 | F11: =(FEP250to999!$B19-FEP250to999!$B17-FEP250to999!$B18)/FEP250to999!$B19 -> 0.6097303387 | G11: =(FEP1000to4999!$B19-FEP1000to4999!$B17-FEP1000to4999!$B18)/FEP1000to4999!$B19 -> 0.7082834545 | H11: =(FEP5000Up!$B19-FEP5000Up!$B17-FEP5000Up!$B18)/FEP5000Up!$B19 -> 0.6901282855
A12: 4 | B12: Database donor retention rate | C12: =C56 -> 0.179793655 | D12: 0.09808873365 | E12: 0.2053133664 | F12: 0.3150291299 | G12: 0.4243842429 | H12: 0.4225078906
A13: Donor acquisition rate
A14: 5a | B14: New donors in Year 2 | C14: =FEPdata!$D12 -> 2910125 | D14: =FEP100Dn!$D12 -> 1698466 | E14: =FEP100to249!$D12 -> 663112 | F14: =FEP250to999!$D12 -> 355901 | G14: =FEP1000to4999!$D12 -> 151321 | H14: =FEP5000Up!$D12 -> 41325
A15: 6a | B15: New donor acquisition rate | C15: =C14/C$32 -> 0.4488872086 | D15: 0.6156693059 | E15: 0.4157879952 | F15: 0.2952643351 | G15: 0.2169405167 | H15: 0.18242939
A16: 5b | B16: Recaptured donors in Year 2 | C16: =FEPdata!$D13 -> 647686 | D16: =FEP100Dn!$D13 -> 258842 | E16: =FEP100to249!$D13 -> 187000 | F16: =FEP250to999!$D13 -> 118976 | G16: =FEP1000to4999!$D13 -> 59286 | H16: =FEP5000Up!$D13 -> 23582
A17: 6b | B17: Repeat donor re-acquisition rate | C17: =C16/C$32 -> 0.09990566061 | D17: 0.09382647311 | E17: 0.1172537295 | F17: 0.09870545329 | G17: 0.08499504676 | H17: 0.1041028403
A18: 5 | B18: Donor gains (New + Recaptured) | C18: =FEPdata!$D12+FEPdata!$D13 -> 3557811 | D18: =FEP100Dn!$D12+FEP100Dn!$D13 -> 1957308 | E18: =FEP100to249!$D12+FEP100to249!$D13 -> 850112 | F18: =FEP250to999!$D12+FEP250to999!$D13 -> 474877 | G18: =FEP1000to4999!$D12+FEP1000to4999!$D13 -> 210607 | H18: =FEP5000Up!$D12+FEP5000Up!$D13 -> 64907
A19: 6 | B19: Overall donor acquisition rate | C19: =C18/C$32 -> 0.5487928692 | D19: 0.709495779 | E19: 0.5330417248 | F19: 0.3939697884 | G19: 0.3019355634 | H19: 0.2865322303
A20: Donor gains, losses & net
A21: 5 | B21: Donor gains | C21: =FEPdata!$D12+FEPdata!$D13 -> 3557811 | D21: =FEP100Dn!$D12+FEP100Dn!$D13 -> 1957308 | E21: =FEP100to249!$D12+FEP100to249!$D13 -> 850112 | F21: =FEP250to999!$D12+FEP250to999!$D13 -> 474877 | G21: =FEP1000to4999!$D12+FEP1000to4999!$D13 -> 210607 | H21: =FEP5000Up!$D12+FEP5000Up!$D13 -> 64907
A22: 6 | B22: Gains as % of Year 1 donors | C22: =C21/C$32 -> 0.5487928692 | D22: 0.709495779 | E22: 0.5330417248 | F22: 0.3939697884 | G22: 0.3019355634 | H22: 0.2865322303
A23: 7 | B23: Donor losses | C23: =FEPdata!$B17+FEPdata!$B18 -> 3520813 | D23: =FEP100Dn!$B17+FEP100Dn!$B18 -> 1930890 | E23: =FEP100to249!$B17+FEP100to249!$B18 -> 845833 | F23: =FEP250to999!$B17+FEP250to999!$B18 -> 470417 | G23: =FEP1000to4999!$B17+FEP1000to4999!$B18 -> 203479 | H23: =FEP5000Up!$B17+FEP5000Up!$B18 -> 70194
A24: 8 | B24: Losses as % of Year 1 donors | C24: =C23/C$32 -> 0.5430859223 | D24: 0.699919637 | E24: 0.5303586835 | F24: 0.3902696613 | G24: 0.2917165455 | H24: 0.3098717145
A25: 9 | B25: Donors lost for every 100 gained | C25: =C23/C21*100 -> 98.96009091 | D25: 98.65028907 | E25: 99.49665456 | F25: 99.06080943 | G25: 96.61549711 | H25: 108.1455005
A26: 10 | B26: Donor losses as % of gains | C26: =C25/100 -> 0.9896009091 | D26: 0.9865028907 | E26: 0.9949665456 | F26: 0.9906080943 | G26: 0.9661549711 | H26: 1.081455005
A27: 9a | B27: Net gain in donors | C27: =C21-C23 -> 36998 | D27: 26418 | E27: 4279 | F27: 4460 | G27: 7128 | H27: -5287
A28: 11 | B28: Net gain in donors | C28: =100-C25 -> 1.03990909 | D28: 1.34971093 | E28: 0.5033454415 | F28: 0.9391905693 | G28: 3.384502889 | H28: -8.145500485
A29: 12 | B29: Net gain in donors (%) | C29: =C28/100 -> 0.0103990909 | D29: 0.0134971093 | E29: 0.005033454415 | F29: 0.009391905693 | G29: 0.03384502889 | H29: -0.08145500485
A30: Number of donors
A31: 13 | B31: Overall donors retained | C31: =FEPdata!$B14+FEPdata!$B15+FEPdata!$B16 -> 2962163 | D31: =FEP100Dn!$B14+FEP100Dn!$B15+FEP100Dn!$B16 -> 827841 | E31: =FEP100to249!$B14+FEP100to249!$B15+FEP100to249!$B16 -> 748999 | F31: =FEP250to999!$B14+FEP250to999!$B15+FEP250to999!$B16 -> 734947 | G31: =FEP1000to4999!$B14+FEP1000to4999!$B15+FEP1000to4999!$B16 -> 494044 | H31: =FEP5000Up!$B14+FEP5000Up!$B15+FEP5000Up!$B16 -> 156332
A32: 14 | B32: Year1 total donors | C32: =FEPdata!$B19 -> 6482976 | D32: =FEP100Dn!$B19 -> 2758731 | E32: =FEP100to249!$B19 -> 1594832 | F32: =FEP250to999!$B19 -> 1205364 | G32: =FEP1000to4999!$B19 -> 697523 | H32: =FEP5000Up!$B19 -> 226526
A33: 15 | B33: Year2 total donors | C33: =FEPdata!$D19 -> 6519974 | D33: =FEP100Dn!$D19 -> 2785149 | E33: =FEP100to249!$D19 -> 1599111 | F33: =FEP250to999!$D19 -> 1209824 | G33: =FEP1000to4999!$D19 -> 704651 | H33: =FEP5000Up!$D19 -> 221239
A34: 16 | B34: Percent of Year2 donors by range | C34: =C33/$C33 -> 1 | D34: 0.4271717955 | E34: 0.2452634014 | F34: 0.1855565682 | G34: 0.1080757377 | H34: 0.03393249728
A35: Amount of gifts
A36: 17 | B36: Amount of gift$ Year2 | C36: =FEPdata!$E19 -> 6135742661 | D36: =FEP100Dn!$E19 -> 97603733 | E36: =FEP100to249!$E19 -> 186815869 | F36: =FEP250to999!$E19 -> 450739008 | G36: =FEP1000to4999!$E19 -> 1034676857 | H36: =FEP5000Up!$E19 -> 4365907194
A37: 18 | B37: Percent of Year2 gift$ by range | C37: =C36/$C36 -> 1 | D37: 0.01590740329 | E37: 0.03044714867 | F37: 0.07346119824 | G37: 0.1686310711 | H37: 0.7115531787
A38: 19 | B38: Average gift size in Year2 | C38: =C36/C33 -> 941.068578 | D38: 35.04434879 | E38: 116.8248289 | F38: 372.5657682 | G38: 1468.353635 | H38: 19733.89499
H39: Page 2
B40: Fundraising Performance Indicator | C40: All Donors | D40: Donors Under $100 | E40: $100 to $249 | F40: $250 to $999 | G40: $1,000 to $4,999 | H40: Donors $5,000 & Up
A42: Dollar gains, losses & net
A43: 20 | B43: Dollar gains | C43: =FEPdata!$E12+FEPdata!$E13+FEPdata!$E14-FEPdata!$C14 -> 3384586287 | D43: =FEP100Dn!$E12+FEP100Dn!$E13+FEP100Dn!$E14-FEP100Dn!$C14 -> 72323539 | E43: =FEP100to249!$E12+FEP100to249!$E13+FEP100to249!$E14-FEP100to249!$C14 -> 123207390 | F43: =FEP250to999!$E12+FEP250to999!$E13+FEP250to999!$E14-FEP250to999!$C14 -> 261306186 | G43: =FEP1000to4999!$E12+FEP1000to4999!$E13+FEP1000to4999!$E14-FEP1000to4999!$C14 -> 550555196 | H43: =FEP5000Up!$E12+FEP5000Up!$E13+FEP5000Up!$E14-FEP5000Up!$C14 -> 2377193976
A44: 21 | B44: Gains as % of Year 1 dollars | C44: =C43/FEPdata!$C$19 -> 0.5779190455 | D44: =D43/FEP100Dn!$C$19 -> 0.7695171527 | E44: =E43/FEP100to249!$C$19 -> 0.6997206101 | F44: =F43/FEP250to999!$C$19 -> 0.6545721153 | G44: =G43/FEP1000to4999!$C$19 -> 0.6407133999 | H44: =H43/FEP5000Up!$C$19 -> 0.5492651699
A45: 22 | B45: Dollar losses | C45: =FEPdata!$C17+FEPdata!$C18+FEPdata!$C16-FEPdata!$E16 -> 3105349504 | D45: =FEP100Dn!$C17+FEP100Dn!$C18+FEP100Dn!$C16-FEP100Dn!$E16 -> 68705416 | E45: =FEP100to249!$C17+FEP100to249!$C18+FEP100to249!$C16-FEP100to249!$E16 -> 112472357 | F45: =FEP250to999!$C17+FEP250to999!$C18+FEP250to999!$C16-FEP250to999!$E16 -> 209768702 | G45: =FEP1000to4999!$C17+FEP1000to4999!$C18+FEP1000to4999!$C16-FEP1000to4999!$E16 -> 375162999 | H45: =FEP5000Up!$C17+FEP5000Up!$C18+FEP5000Up!$C16-FEP5000Up!$E16 -> 2339240030
A46: 22a | B46: Net gain in gifts | C46: =C43-C45 -> 279236783 | D46: 3618123 | E46: 10735033 | F46: 51537484 | G46: 175392197 | H46: 37953946
A47: 23 | B47: Losses as % of Year 1 dollars | C47: =C45/FEPdata!$C$19 -> 0.5302392875 | D47: =D45/FEP100Dn!$C$19 -> 0.7310205892 | E47: =E45/FEP100to249!$C$19 -> 0.6387541061 | F47: =F45/FEP250to999!$C$19 -> 0.5254706943 | G47: =G45/FEP1000to4999!$C$19 -> 0.4365992045 | H47: =H45/FEP5000Up!$C$19 -> 0.5404956791
A48: 24 | B48: Dollars lost for every $100 gained | C48: =C45/C43*100 -> 91.74975139 | D48: 94.99730924 | E48: 91.28702183 | F48: 80.27697515 | G48: 68.14266793 | H48: 98.40341401
A49: 25 | B49: Loss per dollar gained (%) | C49: =C48/100 -> 0.9174975139 | D49: 0.9499730924 | E49: 0.9128702183 | F49: 0.8027697515 | G49: 0.6814266793 | H49: 0.9840341401
A50: 26 | B50: Net gain in gifts per $100 gained | C50: =100-C48 -> 8.250248607 | D50: 5.002690756 | E50: 8.712978174 | F50: 19.72302485 | G50: 31.85733207 | H50: 1.596585991
A51: 27 | B51: Net gain in dollars (%) | C51: =C50/100 -> 0.08250248607 | D51: 0.05002690756 | E51: 0.08712978174 | F51: 0.1972302485 | G51: 0.3185733207 | H51: 0.01596585991
B53: Database & one-time donors
A54: 28 | B54: Prior donors retained in Year2 | C54: =FEPdata!$D19-FEPdata!$D12 -> 3609849 | D54: =FEP100Dn!$D19-FEP100Dn!$D12 -> 1086683 | E54: =FEP100to249!$D19-FEP100to249!$D12 -> 935999 | F54: =FEP250to999!$D19-FEP250to999!$D12 -> 853923 | G54: =FEP1000to4999!$D19-FEP1000to4999!$D12 -> 553330 | H54: =FEP5000Up!$D19-FEP5000Up!$D12 -> 179914
A55: 29 | B55: Donors in database end of Year1 | C55: =FEPdata!$B23 -> 20077733 | D55: =FEP100Dn!$B23 -> 11078571 | E55: =FEP100to249!$B23 -> 4558880 | F55: =FEP250to999!$B23 -> 2710616 | G55: =FEP1000to4999!$B23 -> 1303842 | H55: =FEP5000Up!$B23 -> 425824
A56: 30 | B56: Database donor retention rate | C56: =C54/C55 -> 0.179793655 | D56: 0.09808873365 | E56: 0.2053133664 | F56: 0.3150291299 | G56: 0.4243842429 | H56: 0.4225078906
A57: 31 | B57: Total donors in database | C57: =FEPdata!$K$23 -> 22987858 | D57: =FEP100Dn!$K$23 -> 12777037 | E57: =FEP100to249!$K$23 -> 5221992 | F57: =FEP250to999!$K$23 -> 3066517 | G57: =FEP1000to4999!$K$23 -> 1455163 | H57: =FEP5000Up!$K$23 -> 467149
A58: 32 | B58: Total monthly donors in database | C58: =FEPdata!$K$25 -> 0.05 | D58: =FEP100Dn!$K$25 -> 0.01 | E58: =FEP100to249!$K$25 -> 0.01 | F58: =FEP250to999!$K$25 -> 0.01 | G58: =FEP1000to4999!$K$25 -> 0.01 | H58: =FEP5000Up!$K$25 -> 0.01
A59: 33 | B59: Monthly donors as % of total | C59: =C58/C57 -> 2.175061287e-09 | D59: 7.826540692e-10 | E59: 1.914978039e-09 | F59: 3.261028718e-09 | G59: 6.872082372e-09 | H59: 2.140644634e-08
A60: 34 | B60: One time lapsed donors | C60: =FEPdata!$B24 -> 11908212 | D60: =FEP100Dn!$B24 -> 8078146 | E60: =FEP100to249!$B24 -> 2348063 | F60: =FEP250to999!$B24 -> 1000961 | G60: =FEP1000to4999!$B24 -> 371207 | H60: =FEP5000Up!$B24 -> 109835
A61: 35 | B61: One time lapsed-donor rate | C61: =C60/C55 -> 0.5931054069 | D61: 0.7291685904 | E61: 0.5150526006 | F61: 0.3692743642 | G61: 0.2847024409 | H61: 0.2579352033
A62: Growth in giving (GiG)
A63: 36 | B63: Total gifts raised in Year1 | C63: =FEPdata!$C19 -> 5856505878 | D63: =FEP100Dn!$C19 -> 93985610 | E63: =FEP100to249!$C19 -> 176080836 | F63: =FEP250to999!$C19 -> 399201524 | G63: =FEP1000to4999!$C19 -> 859284660 | H63: =FEP5000Up!$C19 -> 4327953248
A64: 37 | B64: Total gifts raised in Year2 | C64: =FEPdata!$E19 -> 6135742661 | D64: =FEP100Dn!$E19 -> 97603733 | E64: =FEP100to249!$E19 -> 186815869 | F64: =FEP250to999!$E19 -> 450739008 | G64: =FEP1000to4999!$E19 -> 1034676857 | H64: =FEP5000Up!$E19 -> 4365907194
A65: 38 | B65: Net growth in giving | C65: =C64-C63 -> 279236783 | D65: 3618123 | E65: 10735033 | F65: 51537484 | G65: 175392197 | H65: 37953946
A66: 39 | B66: Overall rate of growth in gifts | C66: =C65/C63 -> 0.047679758 | D66: 0.03849656346 | E66: 0.06096650404 | F66: 0.129101421 | G66: 0.2041141954 | H66: 0.008769490756
A67: Growth in donors
A68: 40 | B68: Total donors in Year1 | C68: =FEPdata!$B19 -> 6482976 | D68: =FEP100Dn!$B19 -> 2758731 | E68: =FEP100to249!$B19 -> 1594832 | F68: =FEP250to999!$B19 -> 1205364 | G68: =FEP1000to4999!$B19 -> 697523 | H68: =FEP5000Up!$B19 -> 226526
A69: 41 | B69: Total donors in Year2 | C69: =FEPdata!$D19 -> 6519974 | D69: =FEP100Dn!$D19 -> 2785149 | E69: =FEP100to249!$D19 -> 1599111 | F69: =FEP250to999!$D19 -> 1209824 | G69: =FEP1000to4999!$D19 -> 704651 | H69: =FEP5000Up!$D19 -> 221239
A70: 42 | B70: Net growth in donors | C70: =C69-C68 -> 36998 | D70: 26418 | E70: 4279 | F70: 4460 | G70: 7128 | H70: -5287
A71: 43 | B71: Overall rate of growth in donors | C71: =C70/C68 -> 0.005706946933 | D71: 0.009576142074 | E71: 0.002683041223 | F71: 0.003700127099 | G71: 0.01021901787 | H71: -0.02333948421
H72: Page 3
B73: FEP Gain/Loss Fundraising Performance Indicator | C73: All Donors | D73: Donors Under $100 | E73: $100 to $249 | F73: $250 to $999 | G73: $1,000 to $4,999 | H73: Donors $5,000 & Up
A75: Distribution of Year2 donors & gifts:
A76: 44 | B76: Total number of Year 2 donors | C76: =FEPdata!$D19 -> 6519974 | D76: =FEP100Dn!$D19 -> 2785149 | E76: =FEP100to249!$D19 -> 1599111 | F76: =FEP250to999!$D19 -> 1209824 | G76: =FEP1000to4999!$D19 -> 704651 | H76: =FEP5000Up!$D19 -> 221239
A77: 45 | B77: Total gifts they gave in Year2 | C77: =FEPdata!$E19 -> 6135742661 | D77: =FEP100Dn!$E19 -> 97603733 | E77: =FEP100to249!$E19 -> 186815869 | F77: =FEP250to999!$E19 -> 450739008 | G77: =FEP1000to4999!$E19 -> 1034676857 | H77: =FEP5000Up!$E19 -> 4365907194
A78: 46 | B78: New donors in Year2 % | C78: =FEPdata!$D12/FEPdata!$D$19 -> 0.4463399701 | D78: =FEP100Dn!$D12/FEP100Dn!$D$19 -> 0.6098294921 | E78: =FEP100to249!$D12/FEP100to249!$D$19 -> 0.414675404 | F78: =FEP250to999!$D12/FEP250to999!$D$19 -> 0.2941758471 | G78: =FEP1000to4999!$D12/FEP1000to4999!$D$19 -> 0.2147460232 | H78: =FEP5000Up!$D12/FEP5000Up!$D$19 -> 0.1867889477
A79: 47 | B79: % of gifts they gave in Year2 | C79: =FEPdata!$E12/FEPdata!$E$19 -> 0.2470083013 | D79: =FEP100Dn!$E12/FEP100Dn!$E$19 -> 0.5935497877 | E79: =FEP100to249!$E12/FEP100to249!$E$19 -> 0.4623775136 | F79: =FEP250to999!$E12/FEP250to999!$E$19 -> 0.3435376532 | G79: =FEP1000to4999!$E12/FEP1000to4999!$E$19 -> 0.2415650677 | H79: =FEP5000Up!$E12/FEP5000Up!$E$19 -> 0.2213697156
A80: 48 | B80: Previously lapsed donors in Year2 % | C80: =FEPdata!$D13/FEPdata!$D$19 -> 0.09933873969 | D80: =FEP100Dn!$D13/FEP100Dn!$D$19 -> 0.09293649999 | E80: =FEP100to249!$D13/FEP100to249!$D$19 -> 0.1169399748 | F80: =FEP250to999!$D13/FEP250to999!$D$19 -> 0.09834157696 | G80: =FEP1000to4999!$D13/FEP1000to4999!$D$19 -> 0.08413526696 | H80: =FEP5000Up!$D13/FEP5000Up!$D$19 -> 0.1065906102
A81: 49 | B81: % of gifts they gave in Year2 | C81: =FEPdata!$E13/FEPdata!$E$19 -> 0.0890809767 | D81: =FEP100Dn!$E13/FEP100Dn!$E$19 -> 0.089232335 | E81: =FEP100to249!$E13/FEP100to249!$E$19 -> 0.09784986199 | F81: =FEP250to999!$E13/FEP250to999!$E$19 -> 0.07232917591 | G81: =FEP1000to4999!$E13/FEP1000to4999!$E$19 -> 0.05955587156 | H81: =FEP5000Up!$E13/FEP5000Up!$E$19 -> 0.09742899954
A82: 50 | B82: Upgraded donors in Year2 % | C82: =FEPdata!$D14/FEPdata!$D$19 -> 0.1934306793 | D82: =FEP100Dn!$D14/FEP100Dn!$D$19 -> 0.1007856312 | E82: =FEP100to249!$D14/FEP100to249!$D$19 -> 0.1846588511 | F82: =FEP250to999!$D14/FEP250to999!$D$19 -> 0.2838024374 | G82: =FEP1000to4999!$D14/FEP1000to4999!$D$19 -> 0.389919265 | H82: =FEP5000Up!$D14/FEP5000Up!$D$19 -> 0.3031201551
A83: 51 | B83: % of gifts they gave in Year2 | C83: =FEPdata!$E14/FEPdata!$E$19 -> 0.4143228166 | D83: =FEP100Dn!$E14/FEP100Dn!$E$19 -> 0.1378422995 | E83: =FEP100to249!$E14/FEP100to249!$E$19 -> 0.2195767962 | F83: =FEP250to999!$E14/FEP250to999!$E$19 -> 0.355980428 | G83: =FEP1000to4999!$E14/FEP1000to4999!$E$19 -> 0.4901917256 | H83: =FEP5000Up!$E14/FEP5000Up!$E$19 -> 0.4168800316
A84: 52 | B84: Same gift donors in Year2 % | C84: =FEPdata!$D15/FEPdata!$D$19 -> 0.122762146 | D84: =FEP100Dn!$D15/FEP100Dn!$D$19 -> 0.118698856 | E84: =FEP100to249!$D15/FEP100to249!$D$19 -> 0.1395519135 | F84: =FEP250to999!$D15/FEP250to999!$D$19 -> 0.1192603222 | G84: =FEP1000to4999!$D15/FEP1000to4999!$D$19 -> 0.107023193 | H84: =FEP5000Up!$D15/FEP5000Up!$D$19 -> 0.1218365659
A85: 53 | B85: % of gifts they gave in Year2 | C85: =FEPdata!$E15/FEPdata!$E$19 -> 0.08856787777 | D85: =FEP100Dn!$E15/FEP100Dn!$E$19 -> 0.1201878211 | E85: =FEP100to249!$E15/FEP100to249!$E$19 -> 0.1298249883 | F85: =FEP250to999!$E15/FEP250to999!$E$19 -> 0.1073579192 | G85: =FEP1000to4999!$E15/FEP1000to4999!$E$19 -> 0.09097053477 | H85: =FEP5000Up!$E15/FEP5000Up!$E$19 -> 0.0835863047
A86: 54 | B86: Downgraded donors in Year2 % | C86: =FEPdata!$D16/FEPdata!$D$19 -> 0.1381284649 | D86: =FEP100Dn!$D16/FEP100Dn!$D$19 -> 0.07774952076 | E86: =FEP100to249!$D16/FEP100to249!$D$19 -> 0.1441738566 | F86: =FEP250to999!$D16/FEP250to999!$D$19 -> 0.2044198164 | G86: =FEP1000to4999!$D16/FEP1000to4999!$D$19 -> 0.2041762518 | H86: =FEP5000Up!$D16/FEP5000Up!$D$19 -> 0.2816637211
A87: 55 | B87: % of gifts they gave in Year2 | C87: =FEPdata!$E16/FEPdata!$E$19 -> 0.1610200277 | D87: =FEP100Dn!$E16/FEP100Dn!$E$19 -> 0.05918775668 | E87: =FEP100to249!$E16/FEP100to249!$E$19 -> 0.09037083996 | F87: =FEP250to999!$E16/FEP250to999!$E$19 -> 0.1207948237 | G87: =FEP1000to4999!$E16/FEP1000to4999!$E$19 -> 0.1177168003 | H87: =FEP5000Up!$E16/FEP5000Up!$E$19 -> 0.1807349485
A88: What Year1 donors did in Year2
A89: 56 | B89: Total number of Year 1 donors | C89: =FEPdata!$B19 -> 6482976 | D89: =FEP100Dn!$B19 -> 2758731 | E89: =FEP100to249!$B19 -> 1594832 | F89: =FEP250to999!$B19 -> 1205364 | G89: =FEP1000to4999!$B19 -> 697523 | H89: =FEP5000Up!$B19 -> 226526
A90: 57 | B90: Total gifts they gave in Year1 | C90: =FEPdata!$C19 -> 5856505878 | D90: =FEP100Dn!$C19 -> 93985610 | E90: =FEP100to249!$C19 -> 176080836 | F90: =FEP250to999!$C19 -> 399201524 | G90: =FEP1000to4999!$C19 -> 859284660 | H90: =FEP5000Up!$C19 -> 4327953248
B91: Repeat donors:
A92: 58 | B92: Year1 donors that upgraded % | C92: =FEPdata!$B14/FEPdata!$B$19 -> 0.1945345779 | D92: =FEP100Dn!$B14/FEP100Dn!$B$19 -> 0.1017507687 | E92: =FEP100to249!$B14/FEP100to249!$B$19 -> 0.1851542984 | F92: =FEP250to999!$B14/FEP250to999!$B$19 -> 0.2848525425 | G92: =FEP1000to4999!$B14/FEP1000to4999!$B$19 -> 0.3939038569 | H92: =FEP5000Up!$B14/FEP5000Up!$B$19 -> 0.2960454871
A93: 59 | B93: % of Year1 gifts | C93: =FEPdata!$C14/FEPdata!$C$19 -> 0.2082725161 | D93: =FEP100Dn!$C14/FEP100Dn!$C$19 -> 0.08269848969 | E93: =FEP100to249!$C14/FEP100to249!$C$19 -> 0.1276254958 | F93: =FEP250to999!$C14/FEP250to999!$C$19 -> 0.2169217195 | G93: =FEP1000to4999!$C14/FEP1000to4999!$C$19 -> 0.3121174129 | H93: =FEP5000Up!$C14/FEP5000Up!$C$19 -> 0.1928651049
A94: 60 | B94: Year1 donors that gave same % | C94: =FEPdata!$B15/FEPdata!$B$19 -> 0.123462743 | D94: =FEP100Dn!$B15/FEP100Dn!$B$19 -> 0.1198355331 | E94: =FEP100to249!$B15/FEP100to249!$B$19 -> 0.1399263371 | F94: =FEP250to999!$B15/FEP250to999!$B$19 -> 0.1197016005 | G94: =FEP1000to4999!$B15/FEP1000to4999!$B$19 -> 0.108116865 | H94: =FEP5000Up!$B15/FEP5000Up!$B$19 -> 0.1189929633
A95: 61 | B95: % of Year1 gifts | C95: =FEPdata!$C15/FEPdata!$C$19 -> 0.09279077274 | D95: =FEP100Dn!$C15/FEP100Dn!$C$19 -> 0.1248146392 | E95: =FEP100to249!$C15/FEP100to249!$C$19 -> 0.1377399639 | F95: =FEP250to999!$C15/FEP250to999!$C$19 -> 0.1212179791 | G95: =FEP1000to4999!$C15/FEP1000to4999!$C$19 -> 0.1095389123 | H95: =FEP5000Up!$C15/FEP5000Up!$C$19 -> 0.08431931402
A96: 62 | B96: Year1 donors that downgraded % | C96: =FEPdata!$B16/FEPdata!$B$19 -> 0.1389167567 | D96: =FEP100Dn!$B16/FEP100Dn!$B$19 -> 0.07849406122 | E96: =FEP100to249!$B16/FEP100to249!$B$19 -> 0.144560681 | F96: =FEP250to999!$B16/FEP250to999!$B$19 -> 0.2051761957 | G96: =FEP1000to4999!$B16/FEP1000to4999!$B$19 -> 0.2062627326 | H96: =FEP5000Up!$B16/FEP5000Up!$B$19 -> 0.2750898352
A97: 63 | B97: % of Year1 gifts | C97: =FEPdata!$C16/FEPdata!$C$19 -> 0.364087666 | D97: =FEP100Dn!$C16/FEP100Dn!$C$19 -> 0.1072225418 | E97: =FEP100to249!$C16/FEP100to249!$C$19 -> 0.1772525944 | F97: =FEP250to999!$C16/FEP250to999!$C$19 -> 0.2533267809 | G97: =FEP1000to4999!$C16/FEP1000to4999!$C$19 -> 0.2693877905 | H97: =FEP5000Up!$C16/FEP5000Up!$C$19 -> 0.4062853874
A98: 64 | B98: Subtotal Year1 repeat donors % | C98: =C92+C94+C96 -> 0.4569140777 | D98: =D92+D94+D96 -> 0.300080363 | E98: 0.4696413165 | F98: =F92+F94+F96 -> 0.6097303387 | G98: 0.7082834545 | H98: 0.6901282855
A99: 65 | B99: % of Year1 gifts | C99: =C93+C95+C97 -> 0.6651509549 | D99: 0.3147356707 | E99: 0.4426180541 | F99: =F93+F95+F97 -> 0.5914664795 | G99: 0.6910441157 | H99: 0.6834698063
B100: Lapsed donors (attrition):
A101: 66 | B101: New Year1 donors that lapsed % | C101: =FEPdata!$B17/FEPdata!$B$19 -> 0.3579070785 | D101: =FEP100Dn!$B17/FEP100Dn!$B$19 -> 0.5285850632 | E101: =FEP100to249!$B17/FEP100to249!$B$19 -> 0.3214445158 | F101: =FEP250to999!$B17/FEP250to999!$B$19 -> 0.1931541012 | G101: =FEP1000to4999!$B17/FEP1000to4999!$B$19 -> 0.1278868224 | H101: =FEP5000Up!$B17/FEP5000Up!$B$19 -> 0.1209750757
A102: 67 | B102: % of Year1 gifts | C102: =FEPdata!$C17/FEPdata!$C$19 -> 0.1710833715 | D102: =FEP100Dn!$C17/FEP100Dn!$C$19 -> 0.5148002231 | E102: =FEP100to249!$C17/FEP100to249!$C$19 -> 0.3716910908 | F102: =FEP250to999!$C17/FEP250to999!$C$19 -> 0.2439743492 | G102: =FEP1000to4999!$C17/FEP1000to4999!$C$19 -> 0.1722204921 | H102: =FEP5000Up!$C17/FEP5000Up!$C$19 -> 0.1485085176
A103: 68 | B103: Repeat Year1 donors that lapsed % | C103: =FEPdata!$B18/FEPdata!$B$19 -> 0.1851788438 | D103: =FEP100Dn!$B18/FEP100Dn!$B$19 -> 0.1713345738 | E103: =FEP100to249!$B18/FEP100to249!$B$19 -> 0.2089141678 | F103: =FEP250to999!$B18/FEP250to999!$B$19 -> 0.1971155601 | G103: =FEP1000to4999!$B18/FEP1000to4999!$B$19 -> 0.1638297232 | H103: =FEP5000Up!$B18/FEP5000Up!$B$19 -> 0.1888966388

Sheet Income Summary
B1: Income Summary | C1: FEP Fundraising Fitness Test | G1: =TODAY() -> 2023-09-26
B2: =StepByStep!$A$6 -> NFFS-2017 7-15-17 - 7,015 organizations
B4: Fundraising Income Summary | G4: Year2: | H4: =StepByStep!$G$10 -> 2016
B5: Using Mail, eMail and Website Gift Transaction Data By Giving Level/Range | G5: Year1: | H5: =H4-1 -> 2015
D7: ------------------------------ Giving Level/Range --------------------------------
B8: Fundraising Performance Indicator | C8: All Donors | D8: Donors Under $100 | E8: $100 to $249 | F8: $250 to $999 | G8: $1,000 to $4,999 | H8: Donors $5,000 & Up | J8: Monthly Donors | K8: Monthly as % of all
A11: 36 | B11: Total gifts in Year1 | C11: =FEPdata!$C19 -> 5856505878 | D11: =FEP100Dn!$C19 -> 93985610 | E11: =FEP100to249!$C19 -> 176080836 | F11: =FEP250to999!$C19 -> 399201524 | G11: =FEP1000to4999!$C19 -> 859284660 | H11: =FEP5000Up!$C19 -> 4327953248 | J11: 0.7678571429
A12: 37 | B12: Total gifts in Year2 | C12: =FEPdata!$E19 -> 6135742661 | D12: =FEP100Dn!$E19 -> 97603733 | E12: =FEP100to249!$E19 -> 186815869 | F12: =FEP250to999!$E19 -> 450739008 | G12: =FEP1000to4999!$E19 -> 1034676857 | H12: =FEP5000Up!$E19 -> 4365907194
J13: 0.8902691511
A14: 40 | B14: Total donors in Year1 | C14: =FEPdata!$B19 -> 6482976 | D14: =FEP100Dn!$B19 -> 2758731 | E14: =FEP100to249!$B19 -> 1594832 | F14: =FEP250to999!$B19 -> 1205364 | G14: =FEP1000to4999!$B19 -> 697523 | H14: =FEP5000Up!$B19 -> 226526 | J14: 0.8775510204
A15: 41 | B15: Total donors in Year2 | C15: =FEPdata!$D19 -> 6519974 | D15: =FEP100Dn!$D19 -> 2785149 | E15: =FEP100to249!$D19 -> 1599111 | F15: =FEP250to999!$D19 -> 1209824 | G15: =FEP1000to4999!$D19 -> 704651 | H15: =FEP5000Up!$D19 -> 221239
A16: 78c | B16: Number of gifts in Year2 | C16: =FEPdata!$K24 -> 14994139 | D16: =FEP100Dn!$K24 -> 3589253 | E16: =FEP100to249!$K24 -> 3057902 | F16: =FEP250to999!$K24 -> 4178994 | G16: =FEP1000to4999!$K24 -> 3424634 | H16: =FEP5000Up!$K24 -> 743356
A17: 78d | B17: Average frequency in Year2 | C17: =C16/C15 -> 2.299723741 | D17: 1.288711304 | E17: 1.912251245 | F17: 3.454216481 | G17: 4.860042773 | H17: 3.359968179
A18: 78e | B18: Average amount in Year2 | C18: =C12/C16 -> 409.2094025 | D18: 27.19332769 | E18: 61.0928241 | F18: 107.8582568 | G18: 302.1277185 | H18: 5873.238656
J19: 0.7344559585
A20: 72 | B20: Monthly donors in Year2 *** | C20: =FEPdata!$D$26 -> 0.05 | D20: =FEP100Dn!$D$26 -> 0.01 | E20: =FEP100to249!$D$26 -> 0.01 | F20: =FEP250to999!$D$26 -> 0.01 | G20: =FEP1000to4999!$D$26 -> 0.01 | H20: =FEP5000Up!$D$26 -> 0.01
A21: 73 | B21: Monthly as % of Year2 donors | C21: =C20/C15 -> 7.668742237e-09 | D21: 3.590472179e-09 | E21: 6.253474587e-09 | F21: 8.265665088e-09 | G21: 1.419142242e-08 | H21: 4.519998734e-08
A22: 75 | B22: Monthly donors gifts in Year2 | C22: =FEPdata!$E$26 -> 0.05 | D22: =FEP100Dn!$E$26 -> 0.01 | E22: =FEP100to249!$E$26 -> 0.01 | F22: =FEP250to999!$E$26 -> 0.01 | G22: =FEP1000to4999!$E$26 -> 0.01 | H22: =FEP5000Up!$E$26 -> 0.01
A24: 5a | B24: New donors in Year2 | C24: =FEPdata!$D12 -> 2910125 | D24: =FEP100Dn!$D12 -> 1698466 | E24: =FEP100to249!$D12 -> 663112 | F24: =FEP250to999!$D12 -> 355901 | G24: =FEP1000to4999!$D12 -> 151321 | H24: =FEP5000Up!$D12 -> 41325
A25: 5b | B25: Reactivated donors in Year2 | C25: =FEPdata!$D13 -> 647686 | D25: =FEP100Dn!$D13 -> 258842 | E25: =FEP100to249!$D13 -> 187000 | F25: =FEP250to999!$D13 -> 118976 | G25: =FEP1000to4999!$D13 -> 59286 | H25: =FEP5000Up!$D13 -> 23582
A26: 2a | B26: Repeat donors in Year2 | C26: =FEPdata!D14+FEPdata!D15+FEPdata!D16 -> 2962163 | D26: =FEP100Dn!D14+FEP100Dn!D15+FEP100Dn!D16 -> 827841 | E26: =FEP100to249!D14+FEP100to249!D15+FEP100to249!D16 -> 748999 | F26: =FEP250to999!D14+FEP250to999!D15+FEP250to999!D16 -> 734947 | G26: =FEP1000to4999!D14+FEP1000to4999!D15+FEP1000to4999!D16 -> 494044 | H26: =FEP5000Up!D14+FEP5000Up!D15+FEP5000Up!D16 -> 156332 | J26: 133 | K26: =J26/#REF! -> 
A27: 58a | B27: Upgraded in Year2 | C27: =FEPdata!D14 -> 1261163 | D27: =FEP100Dn!D14 -> 280703 | E27: =FEP100to249!D14 -> 295290 | F27: =FEP250to999!D14 -> 343351 | G27: =FEP1000to4999!D14 -> 274757 | H27: =FEP5000Up!D14 -> 67062
A28: 60a | B28: Same in Year2 | C28: =FEPdata!D15 -> 800406 | D28: =FEP100Dn!D15 -> 330594 | E28: =FEP100to249!D15 -> 223159 | F28: =FEP250to999!D15 -> 144284 | G28: =FEP1000to4999!D15 -> 75414 | H28: =FEP5000Up!D15 -> 26955
A29: 62a | B29: Downgraded in Year2 | C29: =FEPdata!D16 -> 900594 | D29: =FEP100Dn!D16 -> 216544 | E29: =FEP100to249!D16 -> 230550 | F29: =FEP250to999!D16 -> 247312 | G29: =FEP1000to4999!D16 -> 143873 | H29: =FEP5000Up!D16 -> 62315
A30: 7 | B30: Lapsed donors | C30: =FEPdata!B17+FEPdata!B18 -> 3520813 | D30: =FEP100Dn!B17+FEP100Dn!B18 -> 1930890 | E30: =FEP100to249!B17+FEP100to249!B18 -> 845833 | F30: =FEP250to999!B17+FEP250to999!B18 -> 470417 | G30: =FEP1000to4999!B17+FEP1000to4999!B18 -> 203479 | H30: =FEP5000Up!B17+FEP5000Up!B18 -> 70194 | J30: 133 | K30: =J30/#REF! -> 
A31: 7a | B31: New in Year1 | C31: =FEPdata!B17 -> 2320303 | D31: =FEP100Dn!B17 -> 1458224 | E31: =FEP100to249!B17 -> 512650 | F31: =FEP250to999!B17 -> 232821 | G31: =FEP1000to4999!B17 -> 89204 | H31: =FEP5000Up!B17 -> 27404
A32: 7b | B32: Repeat in Year1 | C32: =FEPdata!B18 -> 1200510 | D32: =FEP100Dn!B18 -> 472666 | E32: =FEP100to249!B18 -> 333183 | F32: =FEP250to999!B18 -> 237596 | G32: =FEP1000to4999!B18 -> 114275 | H32: =FEP5000Up!B18 -> 42790
J33: 66 | K33: =J33/C33 -> 
A34: 6a | B34: Acquisition rate** | C34: =C24/C$14 -> 0.4488872086 | D34: 0.6156693059 | E34: 0.4157879952 | F34: 0.2952643351 | G34: 0.2169405167 | H34: 0.18242939 | J34: 0.1224489796
A35: 6b | B35: Reactivation rate** | C35: =C25/C$14 -> 0.09990566061 | D35: =D25/D$14 -> 0.09382647311 | E35: 0.1172537295 | F35: 0.09870545329 | G35: 0.08499504676 | H35: 0.1041028403 | J35: 49.62406015
A36: 64 | B36: Repeat rate** | C36: =C26/C$14 -> 0.4569140777 | D36: 0.300080363 | E36: 0.4696413165 | F36: 0.6097303387 | G36: 0.7082834545 | H36: 0.6901282855 | J36: 0.4962406015
A37: 58 | B37: Upgraded** | C37: =C27/C$14 -> 0.1945345779 | D37: 0.1017507687 | E37: 0.1851542984 | F37: 0.2848525425 | G37: 0.3939038569 | H37: 0.2960454871
A38: 60 | B38: Same** | C38: =C28/C$14 -> 0.123462743 | D38: 0.1198355331 | E38: 0.1399263371 | F38: 0.1197016005 | G38: 0.108116865 | H38: 0.1189929633
A39: 62 | B39: Downgraded** | C39: =C29/C$14 -> 0.1389167567 | D39: 0.07849406122 | E39: 0.144560681 | F39: 0.2051761957 | G39: 0.2062627326 | H39: 0.2750898352
A40: 70 | B40: Attrition rate** | C40: =C30/C$14 -> 0.5430859223 | D40: 0.699919637 | E40: 0.5303586835 | F40: 0.3902696613 | G40: 0.2917165455 | H40: 0.3098717145 | J40: 50.37593985
A41: 66 | B41: New** | C41: =C31/C$14 -> 0.3579070785 | D41: 0.5285850632 | E41: 0.3214445158 | F41: 0.1931541012 | G41: 0.1278868224 | H41: 0.1209750757
A42: 68 | B42: Repeat** | C42: =C32/C$14 -> 0.1851788438 | D42: 0.1713345738 | E42: 0.2089141678 | F42: 0.1971155601 | G42: 0.1638297232 | H42: 0.1888966388
J43: 0.5037593985
A44: 43 | B44: Net change in total donors | C44: =(C15-C14)/C14 -> 0.005706946933 | D44: 0.009576142074 | E44: 0.002683041223 | F44: 0.003700127099 | G44: 0.01021901787 | H44: -0.02333948421
B46: ** Year 2 as a % of Total Year 1 Donors
B47: *** Monthly donors = donors making 6 or more gifts in year

Sheet Pareto Principle
B1: Pareto Principle | C1: FEP Analytics | F1: =TODAY() -> 2023-09-26 | H1: Page 1
B2: =StepByStep!$A$6 -> NFFS-2017 7-15-17 - 7,015 organizations | C2: FEP Fundraising Fitness Test
B4: Fundraising Performance Indicators | G4: Year2: | H4: =StepByStep!$G$10 -> 2016
B5: Using Gift Transaction Data By Giving Level/Range | G5: Year1: | H5: =H4-1 -> 2015
B6: Key indicators | C6: Pareto Principle - 80/20 rule
D8: ----------------------------- Giving Level/Range ------------------------------
B9: Fundraising Performance Indicator | C9: All Donors | D9: Donors Under $100 | E9: $100 to $249 | F9: $250 to $999 | G9: $1,000 to $4,999 | H9: Donors $5,000 & Up
B11: Number of donors
A12: 13 | B12: Overall donors retained | C12: =FEPdata!$B14+FEPdata!$B15+FEPdata!$B16 -> 2962163 | D12: =FEP100Dn!$B14+FEP100Dn!$B15+FEP100Dn!$B16 -> 827841 | E12: =FEP100to249!$B14+FEP100to249!$B15+FEP100to249!$B16 -> 748999 | F12: =FEP250to999!$B14+FEP250to999!$B15+FEP250to999!$B16 -> 734947 | G12: =FEP1000to4999!$B14+FEP1000to4999!$B15+FEP1000to4999!$B16 -> 494044 | H12: =FEP5000Up!$B14+FEP5000Up!$B15+FEP5000Up!$B16 -> 156332
A13: 14 | B13: Year1 total donors | C13: =FEPdata!$B19 -> 6482976 | D13: =FEP100Dn!$B19 -> 2758731 | E13: =FEP100to249!$B19 -> 1594832 | F13: =FEP250to999!$B19 -> 1205364 | G13: =FEP1000to4999!$B19 -> 697523 | H13: =FEP5000Up!$B19 -> 226526
A14: 15 | B14: Year2 total donors | C14: =FEPdata!$D19 -> 6519974 | D14: =FEP100Dn!$D19 -> 2785149 | E14: =FEP100to249!$D19 -> 1599111 | F14: =FEP250to999!$D19 -> 1209824 | G14: =FEP1000to4999!$D19 -> 704651 | H14: =FEP5000Up!$D19 -> 221239
A15: 16 | B15: Percent of Year2 donors by range | C15: =C14/$C14 -> 1 | D15: 0.4271717955 | E15: 0.2452634014 | F15: 0.1855565682 | G15: 0.1080757377 | H15: 0.03393249728
B16: Cum. % of Year2 donors - low to high | D16: =C$16+D$15 -> 0.4271717955 | E16: =D$16+E$15 -> 0.6724351968 | F16: =E$16+F$15 -> 0.857991765 | G16: =F$16+G$15 -> 0.9660675027 | H16: =G$16+H$15 -> 1
B17: Cum. % of Year2 donors - high to low | D17: =E$17+D$15 -> 1 | E17: =F$17+E$15 -> 0.5728282045 | F17: =G$17+F$15 -> 0.3275648032 | G17: =H$17+G$15 -> 0.142008235 | H17: =I$17+H$15 -> 0.03393249728
B19: Amount of gifts
A20: 17 | B20: Amount of gift$ Year2 | C20: =FEPdata!$E19 -> 6135742661 | D20: =FEP100Dn!$E19 -> 97603733 | E20: =FEP100to249!$E19 -> 186815869 | F20: =FEP250to999!$E19 -> 450739008 | G20: =FEP1000to4999!$E19 -> 1034676857 | H20: =FEP5000Up!$E19 -> 4365907194
A21: 18 | B21: Percent of Year2 gift$ by range | C21: =C20/$C20 -> 1 | D21: 0.01590740329 | E21: 0.03044714867 | F21: 0.07346119824 | G21: 0.1686310711 | H21: 0.7115531787
B22: Cum. % of Year2 gift$ - low to high | D22: =C$22+D$21 -> 0.01590740329 | E22: =D$22+E$21 -> 0.04635455196 | F22: =E$22+F$21 -> 0.1198157502 | G22: =F$22+G$21 -> 0.2884468213 | H22: =G$22+H$21 -> 1
B23: Cum. % of Year2 gift$ - high to low | D23: =E$23+D$21 -> 1 | E23: =F$23+E$21 -> 0.9840925967 | F23: =G$23+F$21 -> 0.953645448 | G23: =H$23+G$21 -> 0.8801842498 | H23: =I$23+H$21 -> 0.7115531787
B24: Average annual giving (Ind.17/15) | C24: =C20/C14 -> 941.068578 | D24: =D20/D14 -> 35.04434879 | E24: 116.8248289 | F24: 372.5657682 | G24: 1468.353635 | H24: 19733.89499
B25: Pareto Principle
B26: Donors % to gift$ % - high to low | D26: Pareto 80/20 rule | E26: =F28 -> 0.953645448 | F26: of gifts from | G26: =F27 -> 0.3275648032 | H26: of donors
B27: Cum. % of Year2 donors - high to low | E27: =F$17+E$15 -> 0.5728282045 | F27: =G$17+F$15 -> 0.3275648032 | G27: =H$17+G$15 -> 0.142008235 | H27: =I$17+H$15 -> 0.03393249728
B28: Cum. % of Year2 gift$ - high to low | E28: =F$23+E$21 -> 0.9840925967 | F28: =G$23+F$21 -> 0.953645448 | G28: =H$23+G$21 -> 0.8801842498 | H28: =I$23+H$21 -> 0.7115531787
B30: Donors % to gift$ % - low to high | D30: Conversely | E30: =E32 -> 0.04635455196 | F30: of gifts from | G30: =E31 -> 0.6724351968 | H30: of donors
B31: Cum. % of Year2 donors - low to high | D31: =C$16+D$15 -> 0.4271717955 | E31: =D$16+E$15 -> 0.6724351968 | F31: =E$16+F$15 -> 0.857991765 | G31: =F$16+G$15 -> 0.9660675027
B32: Cum. % of Year2 gift$ - low to high | D32: =C$22+D$21 -> 0.01590740329 | E32: =D$22+E$21 -> 0.04635455196 | F32: =E$22+F$21 -> 0.1198157502 | G32: =F$22+G$21 -> 0.2884468213

Sheet 6 Year Trends
B1: 6 Year Trends | C1: FEP Analytics | G1: =TODAY() -> 2023-09-26
B2: =StepByStep!$A$6 -> NFFS-2017 7-15-17 - 7,015 organizations | C2: FEP Fundraising Fitness Test
B4: Fundraising Income Summary | G4: Year2: | H4: =StepByStep!$G$10 -> 2016
B5: Using Mail, eMail and Website Gift Transaction Data By Giving Level/Range | G5: Year1: | H5: =H4-1 -> 2015
B8: Fundraising Performance Indicator | C8: ='Yr6'!$E$4 -> 2011 | D8: ='Yr5'!$E$4 -> 2012 | E8: ='Yr4'!$E$4 -> 2013 | F8: ='Yr3'!$E$4 -> 2014 | G8: ='Yr2'!$E$4 -> 2015 | H8: ='Yr1'!$E$4 -> 2016 | J8: Monthly Donors | K8: Monthly as % of all
H9: YTD | L9: Rev2015
L10: 6288479128
A11: 36 | B11: Total gifts in Year1 | C11: ='Yr6'!$C19 -> 2806872196 | D11: ='Yr5'!$C19 -> 3065090058 | E11: ='Yr4'!$C19 -> 3434555874 | F11: ='Yr3'!$C19 -> 3810631275 | G11: ='Yr2'!$C19 -> 4631799560 | H11: ='Yr1'!$C19 -> 5856505878 | J11: 0.7678571429 | L11: Rev2014
A12: 37 | B12: Total gifts in Year2 | C12: ='Yr6'!$E19 -> 3065090057 | D12: ='Yr5'!$E19 -> 3434555872 | E12: ='Yr4'!$E19 -> 3810631267 | F12: ='Yr3'!$E19 -> 4631799568 | G12: ='Yr2'!$E19 -> 5856505881 | H12: ='Yr1'!$E19 -> 6135742661 | L12: 5633602651
J13: 0.8902691511 | L13: =H11-L12 -> 222903227
A14: 40 | B14: Total donors in Year1 | C14: ='Yr6'!$B19 -> 3756489 | D14: ='Yr5'!$B19 -> 3924805 | E14: ='Yr4'!$B19 -> 4148241 | F14: ='Yr3'!$B19 -> 4437554 | G14: ='Yr2'!$B19 -> 5159791 | H14: ='Yr1'!$B19 -> 6482976 | J14: 0.8775510204 | L14: =L13/H11 -> 0.03806078772
A15: 41 | B15: Total donors in Year2 | C15: ='Yr6'!$D19 -> 3924805 | D15: ='Yr5'!$D19 -> 4148241 | E15: ='Yr4'!$D19 -> 4437554 | F15: ='Yr3'!$D19 -> 5159792 | G15: ='Yr2'!$D19 -> 6482977 | H15: ='Yr1'!$D19 -> 6519974
A16: 78c | B16: Number of gifts in Year2 | C16: ='Yr6'!$E27 -> 8391838 | D16: ='Yr5'!$E27 -> 9106259 | E16: ='Yr4'!$E27 -> 9808771 | F16: ='Yr3'!$E27 -> 10945523 | G16: ='Yr2'!$E27 -> 13952751 | H16: ='Yr1'!$E27 -> 14994139
A17: 78d | B17: Average frequency in Year2 | C17: =C16/C15 -> 2.138154125 | D17: 2.195209729 | E17: 2.210400369 | F17: 2.121310898 | G17: 2.152213559 | H17: 2.299723741
A18: 78e | B18: Average amount in Year2 | C18: =C12/C16 -> 365.2465714 | D18: 377.1643078 | E18: 388.4922247 | F18: 423.1684103 | G18: 419.7384359 | H18: 409.2094025
J19: 0.7344559585
A20: 72 | B20: Monthly donors in Year2 **** | C20: ='Yr6'!$D$26 -> 0.05 | D20: ='Yr5'!$D$26 -> 0.05 | E20: ='Yr4'!$D$26 -> 0.05 | F20: ='Yr3'!$D$26 -> 0.05 | G20: ='Yr2'!$D$26 -> 0.05 | H20: ='Yr1'!$D$26 -> 0.05
A21: 75 | B21: Monthly-donor gifts in Year2 | C21: ='Yr6'!$E$26 -> 0.05 | D21: ='Yr5'!$E$26 -> 0.05 | E21: ='Yr4'!$E$26 -> 0.05 | F21: ='Yr3'!$E$26 -> 0.05 | G21: ='Yr2'!$E$26 -> 0.05 | H21: ='Yr1'!$E$26 -> 0.05
A22: new | B22: Net change in monthly donors* | C22: n/a | D22: =D20/C20 -> 1 | E22: =E20/D20 -> 1 | F22: =F20/E20 -> 1 | G22: =G20/F20 -> 1 | H22: =H20/G20 -> 1
A25: 5a | B25: New donors in Year2 | C25: ='Yr6'!$D12 -> 1558079 | D25: ='Yr5'!$D12 -> 1647760 | E25: ='Yr4'!$D12 -> 1794102 | F25: ='Yr3'!$D12 -> 2377199 | G25: ='Yr2'!$D12 -> 3327819 | H25: ='Yr1'!$D12 -> 2910125
A26: 5b | B26: Reactivated donors in Year2 | C26: ='Yr6'!$D13 -> 503863 | D26: ='Yr5'!$D13 -> 539444 | E26: ='Yr4'!$D13 -> 580267 | F26: ='Yr3'!$D13 -> 607135 | G26: ='Yr2'!$D13 -> 637604 | H26: ='Yr1'!$D13 -> 647686
A27: 2a | B27: Repeat donors in Year2 | C27: ='Yr6'!$D14+'Yr6'!$D15+'Yr6'!$D16 -> 1862863 | D27: ='Yr5'!$D14+'Yr5'!$D15+'Yr5'!$D16 -> 1961037 | E27: ='Yr4'!$D14+'Yr4'!$D15+'Yr4'!$D16 -> 2063185 | F27: ='Yr3'!$D14+'Yr3'!$D15+'Yr3'!$D16 -> 2175458 | G27: ='Yr2'!$D14+'Yr2'!$D15+'Yr2'!$D16 -> 2517554 | H27: ='Yr1'!$D14+'Yr1'!$D15+'Yr1'!$D16 -> 2962163 | J27: 133 | K27: =J27/#REF! -> 
A28: 58a | B28: Upgraded in Year2 | C28: ='Yr6'!$D14 -> 733214 | D28: ='Yr5'!$D14 -> 775135 | E28: ='Yr4'!$D14 -> 818477 | F28: ='Yr3'!$D14 -> 845414 | G28: ='Yr2'!$D14 -> 1069832 | H28: ='Yr1'!$D14 -> 1261163
A29: 60a | B29: Same in Year2 | C29: ='Yr6'!$D15 -> 543903 | D29: ='Yr5'!$D15 -> 578339 | E29: ='Yr4'!$D15 -> 605139 | F29: ='Yr3'!$D15 -> 606402 | G29: ='Yr2'!$D15 -> 701514 | H29: ='Yr1'!$D15 -> 800406
A30: 62a | B30: Downgraded in Year2 | C30: ='Yr6'!$D16 -> 585746 | D30: ='Yr5'!$D16 -> 607563 | E30: ='Yr4'!$D16 -> 639569 | F30: ='Yr3'!$D16 -> 723642 | G30: ='Yr2'!$D16 -> 746208 | H30: ='Yr1'!$D16 -> 900594
A31: 7 | B31: Lapsed donors | C31: ='Yr6'!$B17+'Yr6'!$B18 -> 1893626 | D31: ='Yr5'!$B17+'Yr5'!$B18 -> 1963768 | E31: ='Yr4'!$B17+'Yr4'!$B18 -> 2085056 | F31: ='Yr3'!$B17+'Yr3'!$B18 -> 2262096 | G31: ='Yr2'!$B17+'Yr2'!$B18 -> 2642237 | H31: ='Yr1'!$B17+'Yr1'!$B18 -> 3520813 | J31: 133 | K31: =J31/#REF! -> 
A32: 7a | B32: New in Year1 | C32: ='Yr6'!$B17 -> 1131899 | D32: ='Yr5'!$B17 -> 1146394 | E32: ='Yr4'!$B17 -> 1218128 | F32: ='Yr3'!$B17 -> 1329911 | G32: ='Yr2'!$B17 -> 1661925 | H32: ='Yr1'!$B17 -> 2320303
A33: 7b | B33: Repeat in Year1 | C33: ='Yr6'!$B18 -> 761727 | D33: ='Yr5'!$B18 -> 817374 | E33: ='Yr4'!$B18 -> 866928 | F33: ='Yr3'!$B18 -> 932185 | G33: ='Yr2'!$B18 -> 980312 | H33: ='Yr1'!$B18 -> 1200510
J34: 66 | K34: =J34/C34 -> 
A35: 6a | B35: Acquisition rate** | C35: =C25/C$14 -> 0.4147700153 | D35: =D25/D$14 -> 0.4198323229 | E35: 0.4324970512 | F35: 0.535700298 | G35: 0.6449522859 | H35: 0.4488872086 | J35: 0.1224489796
A36: 6b | B36: Reactivation rate** [***not yet] | C36: =C26/C$14 -> 0.1341313658 | D36: 0.1374447903 | E36: 0.1398826635 | F36: 0.13681749 | G36: 0.1235716718 | H36: 0.09990566061 | J36: 49.62406015
A37: 64 | B37: Repeat rate** | C37: =C27/C$14 -> 0.495905352 | D37: 0.4996520846 | E37: 0.4973638224 | F37: 0.4902380906 | G37: 0.4879178246 | H37: 0.4569140777 | J37: 0.4962406015
A38: 58 | B38: Upgraded** | C38: =C28/C$14 -> 0.1951859835 | D38: 0.1974964361 | E38: 0.1973070031 | F38: 0.1905135126 | G38: 0.207340181 | H38: 0.1945345779
A39: 60 | B39: Same** | C39: 0.1447902549 | D39: 0.1473548367 | E39: 0.1458784579 | F39: 0.1366523089 | G39: 0.1359578324 | H39: 0.123462743
A40: 62 | B40: Downgraded** | C40: 0.1559291136 | D40: 0.1548008118 | E40: 0.1541783614 | F40: 0.1630722691 | G40: 0.1446198112 | H40: 0.1389167567
A41: 70 | B41: Attrition rate** | C41: 0.504094648 | D41: 0.5003479154 | E41: 0.5026361776 | F41: 0.5097619094 | G41: 0.5120821754 | H41: 0.5430859223 | J41: 50.37593985
A42: 66 | B42: New** | C42: 0.3013183321 | D42: 0.2920894159 | E42: 0.2936492841 | F42: 0.2996946065 | G42: 0.3220915343 | H42: 0.3579070785
A43: 68 | B43: Repeat** | C43: 0.2027763159 | D43: 0.2082584995 | E43: 0.2089868935 | F43: 0.2100673028 | G43: 0.1899906411 | H43: 0.1851788438
J44: 0.5037593985
A45: 43 | B45: Net change in total donors | C45: =(C15-C14)/C14 -> 0.0448067331 | D45: 0.05692919776 | E45: 0.06974353708 | F45: 0.1627558786 | G45: 0.2564417822 | H45: 0.005706946933
B47: * Year 2 as a % of Year 1 - monthly donors only | D47: **** Year2 donors making 6 to 24 gifts in Year2 (no monthly coding yet).
B48: ** Year 2 as a % of Total Year 1 Donors
B49: *** [still old rate, NOT YET-->] Year 2 as a percent of some year but not last year (SYBNT)
B50: **** Monthly donors = donors making 6 or more gifts in year.

Sheet Greenfield
B1: Greenfield | C1: FEP Analytics | F1: =TODAY() -> 2023-09-26 | H1: Page 1
C2: FEP Fundraising Fitness Test
G4: This year: | H4: =StepByStep!$G$10 -> 2016
B5: Overall 3-Year "Growth in Giving" Analysis* | G5: Last year: | H5: =H4-1 -> 2015
G6: 2 years ago: | H6: =H5-1 -> 2014
E8: Rate of | G8: Rate of | H8: 3-Year cum
E9: Growth | G9: Growth | H9: Rate of
C10: 2 Years ago | D10: Last year | E10: Last year | F10: This year | G10: This year | H10: Growth
C11: [A] | D11: [B] | E11: % | F11: [D] | G11: % | H11: %
A13: 1 | B13: Donors of record (end of year) | C13: ='Yr3'!$B23+'Yr3'!$D12 -> 16749914 | D13: ='Yr2'!$B23+'Yr2'!$D12 -> 20077733 | E13: =(D13-C13)/C13 -> 0.1986767813 | F13: ='Yr1'!$B23+'Yr1'!$D12 -> 22987858 | G13: =(F13-D13)/D13 -> 0.1449429076 | H13: =(F13-C13)/C13 -> 0.3724164793
A14: 2 | B14: Donors participating | C14: ='Yr3'!$D19 -> 5159792 | D14: ='Yr2'!$D19 -> 6482977 | E14: =(D14-C14)/C14 -> 0.2564415387 | F14: ='Yr1'!$D19 -> 6519974 | G14: =(F14-D14)/D14 -> 0.005706791803 | H14: =(F14-C14)/C14 -> 0.263611789
A15: 3 | B15: Percent participation (2 div 1) % | C15: =C14/C13 -> 0.3080488652 | D15: =D14/D13 -> 0.3228938745 | F15: =F14/F13 -> 0.2836268608
A16: 4 | B16: Gross revenue | C16: ='Yr3'!$E19 -> 4631799568 | D16: ='Yr2'!$E19 -> 5856505881 | E16: =(D16-C16)/C16 -> 0.2644126316 | F16: ='Yr1'!$E19 -> 6135742661 | G16: =(F16-D16)/D16 -> 0.04767975747 | H16: =(F16-C16)/C16 -> 0.3246995193
A17: 5 | B17: Average gift size (4/2) | C17: =C16/C14 -> 897.6717604 | D17: =D16/D14 -> 903.3667528 | E17: =(D17-C17)/C17 -> 0.006344181297 | F17: =F16/F14 -> 941.068578 | G17: =(F17-D17)/D17 -> 0.04173479388 | H17: =(F17-C17)/C17 -> 0.04834374828
B19: * Source for the design of this report: J.M. Greenfield: "Budgeting for Fundraising and Evaluating Performance", Ch. 31 in
B20: Achieving Excellence in Fundraising: Third Edition, Jossey Bass, A Wiley Imprint, 2011, p. 357
B21: The figures in this report change with each data set imported into the Fundraising Fitness Test
A23: 2 | B23: Donors participating | C23: 459019 | D23: 542034 | E23: 0.1808530802 | F23: 630274 | G23: 0.1627942159 | H23: 0.3730891314
A25: Formula for "Rate of Growth"
A26: A | B26: Net increase in donors | C26: =F23-D23 -> 88240 | D26: Rate of
A27: B | B27: Total donors last year | C27: =D23 -> 542034 | D27: Growth
A28: C | B28: Net as % of total last year [A/B] | C28: =C26/C27 -> 0.1627942159 | D28: This year

Sheet Greenfield GIG
B1: Greenfield GIG | D1: FEP Analytics | G1: =TODAY() -> 2023-09-26
D2: FEP Fundraising Fitness Test
H4: This year: | I4: =StepByStep!$G$10 -> 2016
B5: 3-Year "Growth in Giving" Analysis* by Gift Range
E7: --------------------------------------- Gift Range -------------------------------------------
B8: 3-Year Cumulative Growth in Giving Category | D8: All Donors | E8: Donors Under $100 | F8: $100 to $249 | G8: $250 to $999 | H8: $1,000 to $4,999 | I8: Donors $5,000 & Up
A10: Donors of record
B11: 2 Years ago | D11: ='Yr3'!$B23+'Yr3'!$D12 -> 16749914 | E11: ='Yr3'!$B52+'Yr3'!$D41 -> 9245028 | F11: ='Yr3'!$B81+'Yr3'!$D70 -> 3786933 | G11: ='Yr3'!$B110+'Yr3'!$D99 -> 2269986 | H11: ='Yr3'!$B139+'Yr3'!$D128 -> 1083707 | I11: ='Yr3'!$B168+'Yr3'!$D157 -> 364260
B12: Last year | D12: ='Yr2'!$B23+'Yr2'!$D12 -> 20077733 | E12: ='Yr2'!$B52+'Yr2'!$D41 -> 11078571 | F12: ='Yr2'!$B81+'Yr2'!$D70 -> 4558880 | G12: ='Yr2'!$B110+'Yr2'!$D99 -> 2710616 | H12: ='Yr2'!$B139+'Yr2'!$D128 -> 1303842 | I12: ='Yr2'!$B168+'Yr2'!$D157 -> 425824
B13: Rate of growth last year | D13: =(D12-D11)/D11 -> 0.1986767813 | E13: 0.1983274686 | F13: 0.2038449056 | G13: 0.1941113293 | H13: 0.2031314737 | I13: 0.1690111459
B14: This year | D14: ='Yr1'!$B23+'Yr1'!$D12 -> 22987858 | E14: ='Yr1'!$B52+'Yr1'!$D41 -> 12777037 | F14: ='Yr1'!$B81+'Yr1'!$D70 -> 5221992 | G14: ='Yr1'!$B110+'Yr1'!$D99 -> 3066517 | H14: ='Yr1'!$B139+'Yr1'!$D128 -> 1455163 | I14: ='Yr1'!$B168+'Yr1'!$D157 -> 467149
B15: Rate of growth this year | D15: =(D14-D12)/D12 -> 0.1449429076 | E15: 0.1533109279 | F15: 0.145455024 | G15: 0.1312989372 | H15: 0.1160577739 | I15: 0.09704713685
B16: Donors of record | D16: =(D14-D11)/D11 -> 0.3724164793 | E16: 0.3820441647 | F16: 0.3789501953 | G16: 0.3508968778 | H16: 0.3427642342 | I16: 0.2824603305
A17: Donors participating
B18: 2 Years ago | D18: ='Yr3'!$D19 -> 5159792 | E18: ='Yr3'!$D48 -> 2113121 | F18: ='Yr3'!$D77 -> 1278927 | G18: ='Yr3'!$D106 -> 1002991 | H18: ='Yr3'!$D135 -> 569532 | I18: ='Yr3'!$D164 -> 195221
B19: Last year | D19: ='Yr2'!$D19 -> 6482977 | E19: ='Yr2'!$D48 -> 2758732 | F19: ='Yr2'!$D77 -> 1594832 | G19: ='Yr2'!$D106 -> 1205364 | H19: ='Yr2'!$D135 -> 697523 | I19: ='Yr2'!$D164 -> 226526
B20: Rate of growth last year | D20: =(D19-D18)/D18 -> 0.2564415387 | E20: 0.3055248611 | F20: 0.2470078433 | G20: 0.2017695074 | H20: 0.2247301293 | I20: 0.1603567239
B21: This year | D21: ='Yr1'!$D19 -> 6519974 | E21: ='Yr1'!$D48 -> 2785149 | F21: ='Yr1'!$D77 -> 1599111 | G21: ='Yr1'!$D106 -> 1209824 | H21: ='Yr1'!$D135 -> 704651 | I21: ='Yr1'!$D164 -> 221239
B22: Rate of growth this year | D22: =(D21-D19)/D19 -> 0.005706791803 | E22: 0.009575776117 | F22: 0.002683041223 | G22: 0.003700127099 | H22: 0.01021901787 | I22: -0.02333948421
B23: Donors participating | D23: =(D21-D18)/D18 -> 0.263611789 | E23: 0.3180262749 | F23: 0.2503536167 | G23: 0.2062162073 | H23: 0.2372456684 | I23: 0.1332745965
A24: Percent participation (2/1)
B25: 2 Years ago | D25: =D18/D11 -> 0.3080488652 | E25: 0.2285683721 | F25: 0.3377210529 | G25: 0.4418489806 | H25: 0.5255405751 | I25: 0.5359386153
B26: Last year | D26: 0.3228938745 | E26: 0.2490151483 | F26: 0.3498297828 | G26: 0.4446826847 | H26: 0.5349750967 | I26: 0.5319709551
B27: Rate of growth last year | D27: =(D26-D25)/D25 -> 0.04819043663 | E27: 0.08945584187 | F27: 0.0358542346 | G27: 0.006413286512 | H27: 0.01795203271 | I27: -0.007403198847
B28: This year | D28: =D21/D14 -> 0.2836268608 | E28: 0.2179808198 | F28: 0.3062262447 | G28: 0.3945270807 | H28: 0.4842419715 | I28: 0.4735940781
B29: Rate of growth this year | D29: =(D28-D26)/D26 -> -0.1216096584 | E29: -0.1246282753 | F29: -0.1246421551 | G29: -0.1127896491 | H29: -0.09483268562 | I29: -0.109736963
B30: 3-Year cumulative rate of growth | D30: =(D28-D25)/D25 -> -0.07927964427 | E30: -0.04632116069 | F30: -0.09325686962 | G30: -0.1070997149 | H30: -0.07858309238 | I30: -0.1163277573
A31: Gross revenue
B32: 2 Years ago | D32: ='Yr3'!$E19 -> 4631799568 | E32: ='Yr3'!$E48 -> 70770086 | F32: ='Yr3'!$E77 -> 132973302 | G32: ='Yr3'!$E106 -> 302874270 | H32: ='Yr3'!$E135 -> 621908100 | I32: ='Yr3'!$E164 -> 3503273810
B33: Last year | D33: ='Yr2'!$E19 -> 5856505881 | E33: ='Yr2'!$E48 -> 93985613 | F33: ='Yr2'!$E77 -> 176080838 | G33: ='Yr2'!$E106 -> 399201522 | H33: ='Yr2'!$E135 -> 859284659 | I33: ='Yr2'!$E164 -> 4327953249
B34: Rate of growth last year | D34: =(D33-D32)/D32 -> 0.2644126316 | E34: 0.3280415259 | F34: 0.3241818873 | G34: 0.3180436952 | H34: 0.3816907337 | I34: 0.2354025074
B35: This year | D35: ='Yr1'!$E19 -> 6135742661 | E35: ='Yr1'!$E48 -> 97603733 | F35: ='Yr1'!$E77 -> 186815869 | G35: ='Yr1'!$E106 -> 450739008 | H35: ='Yr1'!$E135 -> 1034676857 | I35: ='Yr1'!$E164 -> 4365907194
B36: Rate of growth this year | D36: =(D35-D33)/D33 -> 0.04767975747 | E36: 0.03849653031 | F36: 0.06096649199 | G36: 0.1291014266 | H36: 0.2041141968 | I36: 0.008769490523
B37: Gross revenue | D37: =(D35-D32)/D32 -> 0.3246995193 | E37: 0.3791665168 | F37: 0.4049126117 | G37: 0.4882050166 | H37: 0.6637134281 | I37: 0.246236358
A38: Average gift size
B39: 2 Years ago | D39: =D32/D18 -> 897.6717604 | E39: =E32/E18 -> 33.49078732 | F39: 103.9725504 | G39: 301.9710745 | H39: 1091.963402 | I39: 17945.16886
B40: Last year | D40: =D33/D19 -> 903.3667528 | E40: 34.06841005 | F40: 110.4071388 | G40: 331.1875268 | H40: 1231.90871 | I40: 19105.76821
B41: Rate of growth last year | D41: =(D40-D39)/D39 -> 0.006344181297 | E41: 0.01724721258 | F41: 0.06188737657 | G41: 0.09675248626 | H41: 0.1281593395 | I41: 0.06467475212
B42: This year | D42: =D35/D21 -> 941.068578 | E42: 35.04434879 | F42: 116.8248289 | G42: 372.5657682 | H42: 1468.353635 | I42: 19733.89499
B43: Rate of growth this year | D43: =(D42-D40)/D40 -> 0.04173479388 | E43: 0.02864644228 | F43: 0.05812749231 | G43: 0.1249390093 | H43: 0.191933804 | I43: 0.03287629039
B44: Average gift size | D44: =(D42-D39)/D39 -> 0.04834374828 | E44: 0.04638772614 | F44: 0.1236122269 | G44: 0.2337796554 | H44: 0.344691253 | I44: 0.09967730844
F48: Rate of | H48: Rate of | I48: 3-Year cum
B49: ='Yr1'!A5 -> All donors | F49: Growth | H49: Growth | I49: Rate of
D50: 2 Years ago | E50: Last year | F50: Last year | G50: This year | H50: This year | I50: Growth
D51: [A] | E51: [B] | F51: [C=(B-A)/A] | G51: [D] | H51: [E=(D-B)/B] | I51: [F=(D-A)/A]
A53: 1 | B53: Donors of record (end of year) | D53: ='Yr3'!$B23+'Yr3'!$D12 -> 16749914 | E53: ='Yr2'!$B23+'Yr2'!$D12 -> 20077733 | F53: =(E53-D53)/D53 -> 0.1986767813 | G53: ='Yr1'!$B23+'Yr1'!$D12 -> 22987858 | H53: =(G53-E53)/E53 -> 0.1449429076 | I53: =(G53-D53)/D53 -> 0.3724164793
A54: 2 | B54: Participation | D54: ='Yr3'!$D19 -> 5159792 | E54: ='Yr2'!$D19 -> 6482977 | F54: =(E54-D54)/D54 -> 0.2564415387 | G54: ='Yr1'!$D19 -> 6519974 | H54: =(G54-E54)/E54 -> 0.005706791803 | I54: =(G54-D54)/D54 -> 0.263611789
A55: 3 | B55: Percent participation (2/1) | D55: =D54/D53 -> 0.3080488652 | E55: =E54/E53 -> 0.3228938745 | F55: =(E55-D55)/D55 -> 0.04819043663 | G55: =G54/G53 -> 0.2836268608 | H55: =(G55-E55)/E55 -> -0.1216096584 | I55: =(G55-D55)/D55 -> -0.07927964427
A56: 4 | B56: Gross revenue | D56: ='Yr3'!$E19 -> 4631799568 | E56: ='Yr2'!$E19 -> 5856505881 | F56: =(E56-D56)/D56 -> 0.2644126316 | G56: ='Yr1'!$E19 -> 6135742661 | H56: =(G56-E56)/E56 -> 0.04767975747 | I56: =(G56-D56)/D56 -> 0.3246995193
A57: 5 | B57: Average gift size (4/2) | D57: =D56/D54 -> 897.6717604 | E57: =E56/E54 -> 903.3667528 | F57: =(E57-D57)/D57 -> 0.006344181297 | G57: =G56/G54 -> 941.068578 | H57: =(G57-E57)/E57 -> 0.04173479388 | I57: =(G57-D57)/D57 -> 0.04834374828
I59: 3-Year cum
B60: ='Yr1'!A150 -> $5,000 and up | F60: Rate of | H60: Rate of | I60: Rate of
D61: 2 Years ago | E61: Last year | F61: Growth | G61: This year | H61: Growth | I61: Growth
D62: [B] | E62: [D] | F62: [E=(D-B)/B] | G62: [F] | H62: [G=(F-D)/D] | I62: [F=(D-A)/A]
A64: 1 | B64: Donors of record (end of year) | D64: ='Yr3'!$B168+'Yr3'!$D157 -> 364260 | E64: ='Yr2'!$B168+'Yr2'!$D157 -> 425824 | F64: =(E64-D64)/D64 -> 0.1690111459 | G64: ='Yr1'!$B168+'Yr1'!$D157 -> 467149 | H64: =(G64-E64)/E64 -> 0.09704713685 | I64: =(G64-D64)/D64 -> 0.2824603305
A65: 2 | B65: Participation | D65: ='Yr3'!$D164 -> 195221 | E65: ='Yr2'!$D164 -> 226526 | F65: =(E65-D65)/D65 -> 0.1603567239 | G65: ='Yr1'!$D164 -> 221239 | H65: =(G65-E65)/E65 -> -0.02333948421 | I65: =(G65-D65)/D65 -> 0.1332745965
A66: 3 | B66: Percent participation (2/1) | D66: =D65/D64 -> 0.5359386153 | E66: =E65/E64 -> 0.5319709551 | F66: =(E66-D66)/D66 -> -0.007403198847 | G66: =G65/G64 -> 0.4735940781 | H66: =(G66-E66)/E66 -> -0.109736963 | I66: =(G66-D66)/D66 -> -0.1163277573
A67: 4 | B67: Gross revenue | D67: ='Yr3'!$E164 -> 3503273810 | E67: ='Yr2'!$E164 -> 4327953249 | F67: =(E67-D67)/D67 -> 0.2354025074 | G67: ='Yr1'!$E164 -> 4365907194 | H67: =(G67-E67)/E67 -> 0.008769490523 | I67: =(G67-D67)/D67 -> 0.246236358
A68: 5 | B68: Average gift size (4/2) | D68: =D67/D65 -> 17945.16886 | E68: =E67/E65 -> 19105.76821 | F68: =(E68-D68)/D68 -> 0.06467475212 | G68: =G67/G65 -> 19733.89499 | H68: =(G68-E68)/E68 -> 0.03287629039 | I68: =(G68-D68)/D68 -> 0.09967730844
B70: * Source: J.M. Greenfield: "Budgeting for Fundraising and Evaluating Performance", Ch. 31 in
B71: Achieving Excellence in Fundraising: Third Edition, Jossey Bass, A Wiley Imprint, 2011, p. 357
I72: Page 2
B73: =B5 -> 3-Year "Growth in Giving" Analysis* by Gift Range
I74: 3-Year cum
B75: ='Yr1'!A121 -> $1,000 to $4,999 | F75: Rate of | H75: Rate of | I75: Rate of
D76: 2 Years ago | E76: Last year | F76: Growth | G76: This year | H76: Growth | I76: Growth
D77: [B] | E77: [D] | F77: [E=(D-B)/B] | G77: [F] | H77: [G=(F-D)/D] | I77: [F=(D-A)/A]
A79: 1 | B79: Donors of record (end of year) | D79: ='Yr3'!$B139+'Yr3'!$D128 -> 1083707 | E79: ='Yr2'!$B139+'Yr2'!$D128 -> 1303842 | F79: =(E79-D79)/D79 -> 0.2031314737 | G79: ='Yr1'!$B139+'Yr1'!$D128 -> 1455163 | H79: =(G79-E79)/E79 -> 0.1160577739 | I79: =(G79-D79)/D79 -> 0.3427642342
A80: 2 | B80: Participation | D80: ='Yr3'!$D135 -> 569532 | E80: ='Yr2'!$D135 -> 697523 | F80: =(E80-D80)/D80 -> 0.2247301293 | G80: ='Yr1'!$D135 -> 704651 | H80: =(G80-E80)/E80 -> 0.01021901787 | I80: =(G80-D80)/D80 -> 0.2372456684
A81: 3 | B81: Percent participation (2/1) | D81: =D80/D79 -> 0.5255405751 | E81: =E80/E79 -> 0.5349750967 | F81: =(E81-D81)/D81 -> 0.01795203271 | G81: =G80/G79 -> 0.4842419715 | H81: =(G81-E81)/E81 -> -0.09483268562 | I81: =(G81-D81)/D81 -> -0.07858309238
A82: 4 | B82: Gross revenue | D82: ='Yr3'!$E135 -> 621908100 | E82: ='Yr2'!$E135 -> 859284659 | F82: =(E82-D82)/D82 -> 0.3816907337 | G82: ='Yr1'!$E135 -> 1034676857 | H82: =(G82-E82)/E82 -> 0.2041141968 | I82: =(G82-D82)/D82 -> 0.6637134281
A83: 5 | B83: Average gift size (4/2) | D83: =D82/D80 -> 1091.963402 | E83: =E82/E80 -> 1231.90871 | F83: =(E83-D83)/D83 -> 0.1281593395 | G83: =G82/G80 -> 1468.353635 | H83: =(G83-E83)/E83 -> 0.191933804 | I83: =(G83-D83)/D83 -> 0.344691253
I85: 3-Year cum
B86: ='Yr1'!A92 -> $250 to $999 | F86: Rate of | H86: Rate of | I86: Rate of
D87: 2 Years ago | E87: Last year | F87: Growth | G87: This year | H87: Growth | I87: Growth
D88: [B] | E88: [D] | F88: [E=(D-B)/B] | G88: [F] | H88: [G=(F-D)/D] | I88: [F=(D-A)/A]
A90: 1 | B90: Donors of record (end of year) | D90: ='Yr3'!$B110+'Yr3'!$D99 -> 2269986 | E90: ='Yr2'!$B110+'Yr2'!$D99 -> 2710616 | F90: =(E90-D90)/D90 -> 0.1941113293 | G90: ='Yr1'!$B110+'Yr1'!$D99 -> 3066517 | H90: =(G90-E90)/E90 -> 0.1312989372 | I90: =(G90-D90)/D90 -> 0.3508968778
A91: 2 | B91: Participation | D91: ='Yr3'!$D106 -> 1002991 | E91: ='Yr2'!$D106 -> 1205364 | F91: =(E91-D91)/D91 -> 0.2017695074 | G91: ='Yr1'!$D106 -> 1209824 | H91: =(G91-E91)/E91 -> 0.003700127099 | I91: =(G91-D91)/D91 -> 0.2062162073
A92: 3 | B92: Percent participation (2/1) | D92: =D91/D90 -> 0.4418489806 | E92: =E91/E90 -> 0.4446826847 | F92: =(E92-D92)/D92 -> 0.006413286512 | G92: =G91/G90 -> 0.3945270807 | H92: =(G92-E92)/E92 -> -0.1127896491 | I92: =(G92-D92)/D92 -> -0.1070997149
A93: 4 | B93: Gross revenue | D93: ='Yr3'!$E106 -> 302874270 | E93: ='Yr2'!$E106 -> 399201522 | F93: =(E93-D93)/D93 -> 0.3180436952 | G93: ='Yr1'!$E106 -> 450739008 | H93: =(G93-E93)/E93 -> 0.1291014266 | I93: =(G93-D93)/D93 -> 0.4882050166
A94: 5 | B94: Average gift size (4/2) | D94: =D93/D91 -> 301.9710745 | E94: =E93/E91 -> 331.1875268 | F94: =(E94-D94)/D94 -> 0.09675248626 | G94: =G93/G91 -> 372.5657682 | H94: =(G94-E94)/E94 -> 0.1249390093 | I94: =(G94-D94)/D94 -> 0.2337796554
I95: Page 3
B96: =B5 -> 3-Year "Growth in Giving" Analysis* by Gift Range
I97: 3-Year cum
B98: ='Yr1'!A63 -> $100 to $249 | F98: Rate of | H98: Rate of | I98: Rate of
D99: 2 Years ago | E99: Last year | F99: Growth | G99: This year | H99: Growth | I99: Growth
D100: [B] | E100: [D] | F100: [E=(D-B)/B] | G100: [F] | H100: [G=(F-D)/D] | I100: [F=(D-A)/A]
A102: 1 | B102: Donors of record (end of year) | D102: ='Yr3'!$B81+'Yr3'!$D70 -> 3786933 | E102: ='Yr2'!$B81+'Yr2'!$D70 -> 4558880 | F102: =(E102-D102)/D102 -> 0.2038449056 | G102: ='Yr1'!$B81+'Yr1'!$D70 -> 5221992 | H102: =(G102-E102)/E102 -> 0.145455024 | I102: =(G102-D102)/D102 -> 0.3789501953
A103: 2 | B103: Participation | D103: ='Yr3'!$D77 -> 1278927 | E103: ='Yr2'!$D77 -> 1594832 | F103: =(E103-D103)/D103 -> 0.2470078433 | G103: ='Yr1'!$D77 -> 1599111 | H103: =(G103-E103)/E103 -> 0.002683041223 | I103: =(G103-D103)/D103 -> 0.2503536167
A104: 3 | B104: Percent participation (2/1) | D104: =D103/D102 -> 0.3377210529 | E104: =E103/E102 -> 0.3498297828 | F104: =(E104-D104)/D104 -> 0.0358542346 | G104: =G103/G102 -> 0.3062262447 | H104: =(G104-E104)/E104 -> -0.1246421551 | I104: =(G104-D104)/D104 -> -0.09325686962
A105: 4 | B105: Gross revenue | D105: ='Yr3'!$E77 -> 132973302 | E105: ='Yr2'!$E77 -> 176080838 | F105: =(E105-D105)/D105 -> 0.3241818873 | G105: ='Yr1'!$E77 -> 186815869 | H105: =(G105-E105)/E105 -> 0.06096649199 | I105: =(G105-D105)/D105 -> 0.4049126117
A106: 5 | B106: Average gift size (4/2) | D106: =D105/D103 -> 103.9725504 | E106: =E105/E103 -> 110.4071388 | F106: =(E106-D106)/D106 -> 0.06188737657 | G106: =G105/G103 -> 116.8248289 | H106: =(G106-E106)/E106 -> 0.05812749231 | I106: =(G106-D106)/D106 -> 0.1236122269
I108: 3-Year cum
B109: ='Yr1'!A34 -> Under $100 | F109: Rate of | H109: Rate of | I109: Rate of
D110: 2 Years ago | E110: Last year | F110: Growth | G110: This year | H110: Growth | I110: Growth
D111: [B] | E111: [D] | F111: [E=(D-B)/B] | G111: [F] | H111: [G=(F-D)/D] | I111: [F=(D-A)/A]
A113: 1 | B113: Donors of record (end of year) | D113: ='Yr3'!$B52+'Yr3'!$D41 -> 9245028 | E113: ='Yr2'!$B52+'Yr2'!$D41 -> 11078571 | F113: =(E113-D113)/D113 -> 0.1983274686 | G113: ='Yr1'!$B52+'Yr1'!$D41 -> 12777037 | H113: =(G113-E113)/E113 -> 0.1533109279 | I113: =(G113-D113)/D113 -> 0.3820441647
A114: 2 | B114: Participation | D114: ='Yr3'!$D48 -> 2113121 | E114: ='Yr2'!$D48 -> 2758732 | F114: =(E114-D114)/D114 -> 0.3055248611 | G114: ='Yr1'!$D48 -> 2785149 | H114: =(G114-E114)/E114 -> 0.009575776117 | I114: =(G114-D114)/D114 -> 0.3180262749
A115: 3 | B115: Percent participation (2/1) | D115: =D114/D113 -> 0.2285683721 | E115: =E114/E113 -> 0.2490151483 | F115: =(E115-D115)/D115 -> 0.08945584187 | G115: =G114/G113 -> 0.2179808198 | H115: =(G115-E115)/E115 -> -0.1246282753 | I115: =(G115-D115)/D115 -> -0.04632116069
A116: 4 | B116: Gross revenue | D116: ='Yr3'!$E48 -> 70770086 | E116: ='Yr2'!$E48 -> 93985613 | F116: =(E116-D116)/D116 -> 0.3280415259 | G116: ='Yr1'!$E48 -> 97603733 | H116: =(G116-E116)/E116 -> 0.03849653031 | I116: =(G116-D116)/D116 -> 0.3791665168
A117: 5 | B117: Average gift size (4/2) | D117: =D116/D114 -> 33.49078732 | E117: =E116/E114 -> 34.06841005 | F117: =(E117-D117)/D117 -> 0.01724721258 | G117: =G116/G114 -> 35.04434879 | H117: =(G117-E117)/E117 -> 0.02864644228 | I117: =(G117-D117)/D117 -> 0.04638772614

Sheet GainLoss
B1: Figure1 | C1: FEP Fundraising Fitness Test
B2: =StepByStep!#REF! -> 
B4: Gain/Loss Growth-in-Giving Performance Report for --> | F4: =StepByStep!$G$10 -> 2016
B5: Base: | C5: Top 20% Fastest Growing | E5: Average/Mean
F6: =F4 -> 2016
B7: Gain/Loss | C7: Period 1 | D7: Period 2 | E7: Gains | F7: Gain/Loss
B8: Category | C8: =F4-1 -> 2015 | D8: =F4 -> 2016 | E8: (Losses) | F8: Ratio
C9: (A$) | D9: (B$) | E9: (C$=B-A) | F9: (D%=C/totA)
A11: Gains | D11: Amount of Gifts
B12: New | C12: 2e-07 | D12: =FEPdata!E12 -> 1515579372 | E12: =D12-C12 -> 1515579372 | F12: =E12/(C$23+0.00001) -> 0.2587855973
B13: Recapture | C13: 2e-07 | D13: =FEPdata!E13 -> 546577949 | E13: =D13-C13 -> 546577949 | F13: =E13/(C$23+0.00001) -> 0.09332833611
B14: Upgrade | C14: =FEPdata!C14 -> 1219749215 | D14: =FEPdata!E14 -> 2542178181 | E14: =D14-C14 -> 1322428966 | F14: =E14/(C$23+0.00001) -> 0.225805112
B15: Subtotal gains | C15: =SUM(C12:C14) -> 1219749215 | D15: =SUM(D12:D14) -> 4604335502 | E15: =D15-C15 -> 3384586287 | F15: =E15/(C$23+0.00001) -> 0.5779190455
A16: Same | C16: =FEPdata!C15 -> 543429706 | D16: =FEPdata!E15 -> 543429706 | E16: =D16-C16 -> 0 | F16: =E16/(C$23+0.00001) -> 0
A17: Losses
B18: Downgrade | C18: =FEPdata!C16 -> 2132281556 | D18: =FEPdata!E16 -> 987977453 | E18: =D18-C18 -> -1144304103 | F18: =E18/(C$23+0.00001) -> -0.1953902424
B19: Lapsed new | C19: =FEPdata!C17 -> 1001950771 | D19: 2e-07 | E19: =D19-C19 -> -1001950771 | F19: =E19/(C$23+0.00001) -> -0.1710833715
B20: Lapsed repeat | C20: =FEPdata!C18 -> 959094630 | D20: 2e-07 | E20: =D20-C20 -> -959094630 | F20: =E20/(C$23+0.00001) -> -0.1637656736
B21: Subtotal losses | C21: =SUM(C17:C20) -> 4093326957 | D21: =SUM(D17:D20) -> 987977453 | E21: =D21-C21 -> -3105349504 | F21: =E21/(C$23+0.00001) -> -0.5302392875
A23: Total - gifts | C23: =C15+C16+C21 -> 5856505878 | D23: =D15+D16+D21 -> 6135742661 | E23: =D23-C23 -> 279236783 | F23: =E23/(C$23+0.00001) -> 0.047679758
F24: Overall rate of growth
A25: Gains | D25: Number of Donors
B26: New | C26: 0.0002 | D26: =FEPdata!D12 -> 2910125 | E26: =D26-C26 -> 2910125 | F26: =E26/(C$37+0.00001) -> 0.4488872085
B27: Recapture | C27: 0.0002 | D27: =FEPdata!D13 -> 647686 | E27: =D27-C27 -> 647685.9998 | F27: =E27/(C$37+0.00001) -> 0.09990566057
B28: Upgrade | C28: =FEPdata!B14 -> 1261163 | D28: =FEPdata!D14 -> 1261163 | E28: 0 | F28: =E28/(C$37+0.00001) -> 0
B29: Subtotal gains | C29: =SUM(C26:C28) -> 1261163 | D29: =SUM(D26:D28) -> 4818974 | E29: =SUM(E26:E28) -> 3557811 | F29: =E29/(C$37+0.00001) -> 0.5487928691
A30: Same | C30: =FEPdata!B15 -> 800406 | D30: =FEPdata!D15 -> 800406 | E30: =D30-C30 -> 0 | F30: =E30/(C$37+0.00001) -> 0
A31: Losses
B32: Downgrade | C32: =FEPdata!B16 -> 900594 | D32: =FEPdata!D16 -> 900594 | E32: =D32-C32 -> 0 | F32: =E32/(C$37+0.00001) -> 0
B33: Lapsed new | C33: =FEPdata!B17 -> 2320303 | D33: 0.0002 | E33: =D33-C33 -> -2320303 | F33: =E33/(C$37+0.00001) -> -0.3579070784
B34: Lapsed repeat | C34: =FEPdata!B18 -> 1200510 | D34: 0.0002 | E34: =D34-C34 -> -1200510 | F34: =E34/(C$37+0.00001) -> -0.1851788437
B35: Subtotal losses | C35: =SUM(C31:C34) -> 4421407 | D35: =SUM(D31:D34) -> 900594.0004 | E35: =D35-C35 -> -3520813 | F35: =E35/(C$37+0.00001) -> -0.5430859222
A37: Total - donors | C37: =C29+C30+C35 -> 6482976 | D37: =D29+D30+D35 -> 6519974 | E37: =D37-C37 -> 36998 | F37: =E37/(C$37+0.00001) -> 0.005706946933
F38: Overall rate of growth
E39: Average gift size --------> | F39: =D23/D37 -> 941.068578
B41: $ lost for every $100 gained | E41: =E21/E15*-100 -> 91.74975139 | F41: =F21/F15*-100 -> 91.74975139
B42: Net per-$100 gain(loss) in giving | E42: =100-E41 -> 8.250248607 | F42: =100-F41 -> 8.250248607
B43: Loss per dollar gain | E43: =E21/E15*-1 -> 0.9174975139 | F43: =F21/F15*-1 -> 0.9174975139
B44: Net per-dollar gain(loss) in giving | E44: =1-E43 -> 0.08250248607 | F44: =1-F43 -> 0.08250248607
B46: Donors lost for every 100 donors gained | E46: =E35/E29*-100 -> 98.96009091 | F46: =F35/F29*-100 -> 98.96009091
B47: Net per-100 gain(loss) in donors | E47: =100-E46 -> 1.03990909 | F47: =100-F46 -> 1.03990909
B48: Donor retention rate | E48: =1+E35/C37 -> 0.4569140778 | F48: =1+F35 -> 0.4569140778

Sheet GainLossRanges
B1: Figure1 | C1: FEP Fundraising Fitness Test
G2: =StepByStep!$A$6 -> NFFS-2017 7-15-17 - 7,015 organizations
B3: Gain/Loss Growth-in-Giving Performance Report for --> | F3: =StepByStep!$G$10 -> 2016
B4: Base: | C4: Top 20% Fastest Growing | E4: Average/Mean
G5: ------------------ Giving Level/Range --------------------
B6: Gain/Loss Category | C6: =F3-1 -> 2015 | D6: =F3 -> 2016 | E6: Gains (Losses) | F6: Gain/Loss Ratio | G6: Donors Under $100 | H6: $100 to $249 | I6: $250 to $999 | J6: $1,000 to $4,999 | K6: Donors $5,000 & Up
C7: (A$) | D7: (B$) | E7: (C$=B-A) | F7: (D%=C/totA)
A9: Gains | D9: Amount of Gifts
B10: New | C10: 2e-07 | D10: =FEPdata!E12 -> 1515579372 | E10: =D10-C10 -> 1515579372 | F10: =E10/(C$21+0.00001) -> 0.2587855973 | G10: =FEP100Dn!$E12/(FEP100Dn!$C$19+0.000001) -> 0.6163994148 | H10: =FEP100to249!$E12/(FEP100to249!$C$19+0.000001) -> 0.4905670541 | I10: =FEP250to999!$E12/(FEP250to999!$C$19+0.000001) -> 0.3878888523 | J10: =FEP1000to4999!$E12/(FEP1000to4999!$C$19+0.000001) -> 0.2908719271 | K10: =FEP5000Up!$E12/(FEP5000Up!$C$19+0.000001) -> 0.2233110153
B11: Recapture | C11: 2e-07 | D11: =FEPdata!E13 -> 546577949 | E11: =D11-C11 -> 546577949 | F11: =E11/(C$21+0.00001) -> 0.09332833611 | G11: =FEP100Dn!$E13/(FEP100Dn!$C$19+0.000001) -> 0.09266747324 | H11: =FEP100to249!$E13/(FEP100to249!$C$19+0.000001) -> 0.103815426 | I11: =FEP250to999!$E13/(FEP250to999!$C$19+0.000001) -> 0.0816669753 | J11: =FEP1000to4999!$E13/(FEP1000to4999!$C$19+0.000001) -> 0.07171207036 | K11: =FEP5000Up!$E13/(FEP5000Up!$C$19+0.000001) -> 0.09828340225
B12: Upgrade | C12: =FEPdata!C14 -> 1219749215 | D12: =FEPdata!E14 -> 2542178181 | E12: =D12-C12 -> 1322428966 | F12: =E12/(C$21+0.00001) -> 0.225805112 | G12: =(FEP100Dn!$E14-FEP100Dn!$C14)/(FEP100Dn!$C$19+0.000001) -> 0.06045026467 | H12: =(FEP100to249!$E14-FEP100to249!$C14)/(FEP100to249!$C$19+0.000001) -> 0.10533813 | I12: =(FEP250to999!$E14-FEP250to999!$C14)/(FEP250to999!$C$19+0.000001) -> 0.1850162877 | J12: =(FEP1000to4999!$E14-FEP1000to4999!$C14)/(FEP1000to4999!$C$19+0.000001) -> 0.2781294024 | K12: =(FEP5000Up!$E14-FEP5000Up!$C14)/(FEP5000Up!$C$19+0.000001) -> 0.2276707523
B13: Subtotal gains | C13: =SUM(C10:C12) -> 1219749215 | D13: =SUM(D10:D12) -> 4604335502 | E13: =D13-C13 -> 3384586287 | F13: =E13/(C$21+0.00001) -> 0.5779190455 | G13: =SUM(G10:G12) -> 0.7695171527 | H13: =SUM(H10:H12) -> 0.6997206101 | I13: =SUM(I10:I12) -> 0.6545721153 | J13: =SUM(J10:J12) -> 0.6407133999 | K13: =SUM(K10:K12) -> 0.5492651699
A14: Same | C14: =FEPdata!C15 -> 543429706 | D14: =FEPdata!E15 -> 543429706 | E14: =D14-C14 -> 0 | F14: =E14/(C$21+0.00001) -> 0 | G14: 0 | H14: 0 | I14: 0 | J14: 0 | K14: 0
A15: Losses
B16: Downgrade | C16: =FEPdata!C16 -> 2132281556 | D16: =FEPdata!E16 -> 987977453 | E16: =D16-C16 -> -1144304103 | F16: =E16/(C$21+0.00001) -> -0.1953902424 | G16: =(FEP100Dn!$E16-FEP100Dn!$C16)/(FEP100Dn!$C$19+0.000001) -> -0.04575625992 | H16: =(FEP100to249!$E16-FEP100to249!$C16)/(FEP100to249!$C$19+0.000001) -> -0.08137216023 | I16: =(FEP250to999!$E16-FEP250to999!$C16)/(FEP250to999!$C$19+0.000001) -> -0.1169371738 | J16: =(FEP1000to4999!$E16-FEP1000to4999!$C16)/(FEP1000to4999!$C$19+0.000001) -> -0.1276433202 | K16: =(FEP5000Up!$E16-FEP5000Up!$C16)/(FEP5000Up!$C$19+0.000001) -> -0.2239654854
B17: Lapsed new | C17: =FEPdata!C17 -> 1001950771 | D17: 2e-07 | E17: =D17-C17 -> -1001950771 | F17: =E17/(C$21+0.00001) -> -0.1710833715 | G17: =-FEP100Dn!$C17/(FEP100Dn!$C$19+0.000001) -> -0.5148002231 | H17: =-FEP100to249!$C17/(FEP100to249!$C$19+0.000001) -> -0.3716910908 | I17: =-FEP250to999!$C17/(FEP250to999!$C$19+0.000001) -> -0.2439743492 | J17: =-FEP1000to4999!$C17/(FEP1000to4999!$C$19+0.000001) -> -0.1722204921 | K17: =-FEP5000Up!$C17/(FEP5000Up!$C$19+0.000001) -> -0.1485085176
B18: Lapsed repeat | C18: =FEPdata!C18 -> 959094630 | D18: 2e-07 | E18: =D18-C18 -> -959094630 | F18: =E18/(C$21+0.00001) -> -0.1637656736 | G18: =-FEP100Dn!$C18/(FEP100Dn!$C$19+0.000001) -> -0.1704641062 | H18: =-FEP100to249!$C18/(FEP100to249!$C$19+0.000001) -> -0.1856908551 | I18: =-FEP250to999!$C18/(FEP250to999!$C$19+0.000001) -> -0.1645591714 | J18: =-FEP1000to4999!$C18/(FEP1000to4999!$C$19+0.000001) -> -0.1367353922 | K18: =-FEP5000Up!$C18/(FEP5000Up!$C$19+0.000001) -> -0.1680216761
B19: Subtotal losses | C19: =SUM(C15:C18) -> 4093326957 | D19: =SUM(D15:D18) -> 987977453 | E19: =D19-C19 -> -3105349504 | F19: =E19/(C$21+0.00001) -> -0.5302392875 | G19: =SUM(G16:G18) -> -0.7310205892 | H19: =SUM(H16:H18) -> -0.6387541061 | I19: =SUM(I16:I18) -> -0.5254706943 | J19: =SUM(J16:J18) -> -0.4365992045 | K19: =SUM(K16:K18) -> -0.5404956791
A21: Total - gifts | C21: =C13+C14+C19 -> 5856505878 | D21: =D13+D14+D19 -> 6135742661 | E21: =D21-C21 -> 279236783 | F21: =E21/(C$21+0.00001) -> 0.047679758 | G21: =G13+G19 -> 0.03849656346 | H21: =H13+H19 -> 0.06096650404 | I21: =I13+I19 -> 0.129101421 | J21: =J13+J19 -> 0.2041141954 | K21: =K13+K19 -> 0.008769490756
F22: Overall rate of growth | H22: Rate of growth | J22: Rate of growth
A23: Gains | D23: Number of Donors
B24: New | C24: 0.0002 | D24: =FEPdata!D12 -> 2910125 | E24: =D24-C24 -> 2910125 | F24: =E24/(C$35+0.00001) -> 0.4488872085 | G24: =FEP100Dn!$D12/(FEP100Dn!$B$19+0.000001) -> 0.6156693059 | H24: =FEP100to249!$D12/(FEP100to249!$B$19+0.000001) -> 0.4157879952 | I24: =FEP250to999!$D12/(FEP250to999!$B$19+0.000001) -> 0.2952643351 | J24: =FEP1000to4999!$D12/(FEP1000to4999!$B$19+0.000001) -> 0.2169405167 | K24: =FEP5000Up!$D12/(FEP5000Up!$B$19+0.000001) -> 0.18242939
B25: Recapture | C25: 0.0002 | D25: =FEPdata!D13 -> 647686 | E25: =D25-C25 -> 647685.9998 | F25: =E25/(C$35+0.00001) -> 0.09990566057 | G25: =FEP100Dn!$D13/(FEP100Dn!$B$19+0.000001) -> 0.09382647311 | H25: =FEP100to249!$D13/(FEP100to249!$B$19+0.000001) -> 0.1172537295 | I25: =FEP250to999!$D13/(FEP250to999!$B$19+0.000001) -> 0.09870545329 | J25: =FEP1000to4999!$D13/(FEP1000to4999!$B$19+0.000001) -> 0.08499504676 | K25: =FEP5000Up!$D13/(FEP5000Up!$B$19+0.000001) -> 0.1041028403
B26: Upgrade | C26: =FEPdata!B14 -> 1261163 | D26: =FEPdata!D14 -> 1261163 | E26: 0 | F26: =E26/(C$35+0.00001) -> 0 | G26: 0 | H26: 0 | I26: 0 | J26: 0 | K26: 0
B27: Subtotal gains | C27: =SUM(C24:C26) -> 1261163 | D27: =SUM(D24:D26) -> 4818974 | E27: =SUM(E24:E26) -> 3557811 | F27: =E27/(C$35+0.00001) -> 0.5487928691 | G27: =SUM(G24:G26) -> 0.709495779 | H27: =SUM(H24:H26) -> 0.5330417248 | I27: =SUM(I24:I26) -> 0.3939697884 | J27: =SUM(J24:J26) -> 0.3019355634 | K27: =SUM(K24:K26) -> 0.2865322303
A28: Same | C28: =FEPdata!B15 -> 800406 | D28: =FEPdata!D15 -> 800406 | E28: =D28-C28 -> 0 | F28: =E28/(C$35+0.00001) -> 0 | G28: 0 | H28: 0 | I28: 0 | J28: 0 | K28: 0
A29: Losses
B30: Downgrade | C30: =FEPdata!B16 -> 900594 | D30: =FEPdata!D16 -> 900594 | E30: =D30-C30 -> 0 | F30: =E30/(C$35+0.00001) -> 0 | G30: 0 | H30: 0 | I30: 0 | J30: 0 | K30: 0
B31: Lapsed new | C31: =FEPdata!B17 -> 2320303 | D31: 0.0002 | E31: =D31-C31 -> -2320303 | F31: =E31/(C$35+0.00001) -> -0.3579070784 | G31: =-FEP100Dn!$B17/(FEP100Dn!$B$19+0.000001) -> -0.5285850632 | H31: =-FEP100to249!$B17/(FEP100to249!$B$19+0.000001) -> -0.3214445158 | I31: =-FEP250to999!$B17/(FEP250to999!$B$19+0.000001) -> -0.1931541012 | J31: =-FEP1000to4999!$B17/(FEP1000to4999!$B$19+0.000001) -> -0.1278868224 | K31: =-FEP5000Up!$B17/(FEP5000Up!$B$19+0.000001) -> -0.1209750757
B32: Lapsed repeat | C32: =FEPdata!B18 -> 1200510 | D32: 0.0002 | E32: =D32-C32 -> -1200510 | F32: =E32/(C$35+0.00001) -> -0.1851788437 | G32: =-FEPdata!$B18/(FEPdata!$B$19+0.000001) -> -0.1851788438 | H32: =-FEP100to249!$B18/(FEP100to249!$B$19+0.000001) -> -0.2089141678 | I32: =-FEP250to999!$B18/(FEP250to999!$B$19+0.000001) -> -0.1971155601 | J32: =-FEP1000to4999!$B18/(FEP1000to4999!$B$19+0.000001) -> -0.1638297232 | K32: =-FEP5000Up!$B18/(FEP5000Up!$B$19+0.000001) -> -0.1888966388
B33: Subtotal losses | C33: =SUM(C29:C32) -> 4421407 | D33: =SUM(D29:D32) -> 900594.0004 | E33: =D33-C33 -> -3520813 | F33: =E33/(C$35+0.00001) -> -0.5430859222 | G33: =SUM(G30:G32) -> -0.713763907 | H33: =SUM(H30:H32) -> -0.5303586835 | I33: =SUM(I30:I32) -> -0.3902696613 | J33: =SUM(J30:J32) -> -0.2917165455 | K33: =SUM(K30:K32) -> -0.3098717145
A35: Total - donors | C35: =C27+C28+C33 -> 6482976 | D35: =D27+D28+D33 -> 6519974 | E35: =D35-C35 -> 36998 | F35: =E35/(C$35+0.00001) -> 0.005706946933 | G35: =G27+G33 -> -0.004268127958 | H35: =H27+H33 -> 0.002683041223 | I35: =I27+I33 -> 0.003700127099 | J35: =J27+J33 -> 0.01021901787 | K35: =K27+K33 -> -0.02333948421
F36: Overall rate of growth | H36: Rate of growth | J36: Rate of growth
E37: Average gift size --------> | F37: =D21/D35 -> 941.068578 | G37: =FEP100Dn!$E19/FEP100Dn!$D19 -> 35.04434879 | H37: =FEP100to249!$E19/FEP100to249!$D19 -> 116.8248289 | I37: =FEP250to999!$E19/FEP250to999!$D19 -> 372.5657682 | J37: =FEP1000to4999!$E19/FEP1000to4999!$D19 -> 1468.353635 | K37: =FEP5000Up!$E19/FEP5000Up!$D19 -> 19733.89499
B39: $ lost for every $100 gained | E39: =E19/E13*-100 -> 91.74975139 | F39: 91.74975139 | G39: 94.99730924 | H39: 91.28702183 | I39: 80.27697515 | J39: 68.14266793 | K39: 98.40341401
B40: Net per-$100 gain(loss) in giving | E40: =100-E39 -> 8.250248607 | F40: 8.250248607 | G40: 5.002690756 | H40: 8.712978174 | I40: 19.72302485 | J40: 31.85733207 | K40: 1.596585991
B41: Loss per dollar gain | E41: =E19/E13*-1 -> 0.9174975139 | F41: 0.9174975139 | G41: 0.9499730924 | H41: 0.9128702183 | I41: 0.8027697515 | J41: 0.6814266793 | K41: 0.9840341401
B42: Net per-dollar gain(loss) in giving | E42: =1-E41 -> 0.08250248607 | F42: 0.08250248607 | G42: 0.05002690756 | H42: 0.08712978174 | I42: 0.1972302485 | J42: 0.3185733207 | K42: 0.01596585991
B44: Donors lost for every 100 donors gained | E44: =E33/E27*-100 -> 98.96009091 | F44: 98.96009091 | G44: 100.601572 | H44: 99.49665456 | I44: 99.06080943 | J44: 96.61549711 | K44: 108.1455005
B45: Net per-100 gain(loss) in donors | E45: =100-E44 -> 1.03990909 | F45: 1.03990909 | G45: -0.6015720014 | H45: 0.5033454415 | I45: 0.9391905693 | J45: 3.384502889 | K45: -8.145500485
B46: Donor retention rate | E46: =1+E33/C35 -> 0.4569140778 | F46: =1+F33 -> 0.4569140778 | G46: 0.286236093 | H46: 0.4696413165 | I46: 0.6097303387 | J46: 0.7082834545 | K46: 0.6901282855

Sheet Year2Distrib
B1: Year2Distrib | C1: FEP Fundraising Fitness Test
B2: =StepByStep!#REF! ->  | G2: Year2: | H2: =StepByStep!$G$10 -> 2016
G3: Year1: | H3: =H2-1 -> 2015
B5: Distribution of Donors and Gifts in Year2
B6: By Gain/Loss Category
B8: Gain/Loss | C8: =$H$2 -> 2016 | D8: Donor | F8: =$H$2 -> 2016 | G8: Gift
B9: Category | C9: Donors | D9: Percent | F9: Gifts | G9: Percent
C11: Number of Donors | F11: Amount of Gifts
B12: New | C12: =FEPdata!D12 -> 2910125 | D12: =C12/C$18 -> 0.4463399701 | F12: =FEPdata!E12 -> 1515579372 | G12: =F12/F$18 -> 0.2470083013
B13: Recapture | C13: =FEPdata!D13 -> 647686 | D13: =C13/C$18 -> 0.09933873969 | F13: =FEPdata!E13 -> 546577949 | G13: =F13/F$18 -> 0.0890809767
B14: Upgrade | C14: =FEPdata!D14 -> 1261163 | D14: =C14/C$18 -> 0.1934306793 | F14: =FEPdata!E14 -> 2542178181 | G14: =F14/F$18 -> 0.4143228166
B15: Same | C15: =FEPdata!D15 -> 800406 | D15: =C15/C$18 -> 0.122762146 | F15: =FEPdata!E15 -> 543429706 | G15: =F15/F$18 -> 0.08856787777
B16: Downgrade | C16: =FEPdata!D16 -> 900594 | D16: =C16/C$18 -> 0.1381284649 | F16: =FEPdata!E16 -> 987977453 | G16: =F16/F$18 -> 0.1610200277
B18: Total | C18: =SUM(C12:C16) -> 6519974 | D18: =C18/C$18 -> 1 | F18: =SUM(F12:F16) -> 6135742661 | G18: =F18/F$18 -> 1
C22: What Previous Year's Donors Did in Year2: | H22: =StepByStep!$G$10 -> 2016
C23: By Gain/Loss Category
B25: Gain/Loss | D25: Donor | I25: Gift
B26: Category | C26: Donors | D26: Percent | H26: Gifts | I26: Percent
C28: Number of Donors | H28: Amount of Gifts
B29: Upgrade | C29: =FEPdata!B14 -> 1261163 | D29: =C29/C$38 -> 0.1945345779 | F29: Gave more in Year2 | H29: =FEPdata!C14 -> 1219749215 | I29: =H29/H$38 -> 0.2082725161
B30: Same | C30: =FEPdata!B15 -> 800406 | D30: =C30/C$38 -> 0.123462743 | F30: Gave the same in Year2 | H30: =FEPdata!C15 -> 543429706 | I30: =H30/H$38 -> 0.09279077274
B31: Downgrade | C31: =FEPdata!B16 -> 900594 | D31: =C31/C$38 -> 0.1389167567 | F31: Gave less in Year2 | H31: =FEPdata!C16 -> 2132281556 | I31: =H31/H$38 -> 0.364087666
B32: Repeat | C32: =SUM(C29:C31) -> 2962163 | D32: =C32/C$38 -> 0.4569140777 | F32: Gave in Year2 | H32: =SUM(H29:H31) -> 3895460477 | I32: =H32/H$38 -> 0.6651509549
B34: Lapsed new | C34: =FEPdata!B17 -> 2320303 | D34: =C34/C$38 -> 0.3579070785 | F34: Did not give in Year2 | H34: =FEPdata!C17 -> 1001950771 | I34: =H34/H$38 -> 0.1710833715
B35: Lapsed repeat | C35: =FEPdata!B18 -> 1200510 | D35: =C35/C$38 -> 0.1851788438 | F35: Did not give in Year2 | H35: =FEPdata!C18 -> 959094630 | I35: =H35/H$38 -> 0.1637656736
B36: Attrition | C36: =SUM(C33:C35) -> 3520813 | D36: =C36/C$38 -> 0.5430859223 | F36: Did not give in Year2 | H36: =SUM(H33:H35) -> 1961045401 | I36: =H36/H$38 -> 0.3348490451
B38: Total | C38: =C32+C36 -> 6482976 | D38: =C38/C$38 -> 1 | H38: =H32+H36 -> 5856505878 | I38: =H38/H$38 -> 1

Sheet Comparison - FEP Ratios (hidden)
B1: Comparison - FEP Ratios | E1: FEP Fundraising Fitness Test
G4: Comparative Gain/Loss Growth-in-Giving for | H4: =StepByStep!$G$10 -> 2016
C5: Comparison with 2010 Fundraising Effectiveness Survey Results (column E%)
F7: -------- Growth-in-Giving Performance Indicators ------- | K7: Caution: if you
C8: -------- Amount of Gifts ------- | F8: YOUR | G8: FEP | K8: enter data in this
B9: Gain(Loss) | C9: Year 1 | D9: Year 2 | E9: Gains | F9: Gain (Loss) | G9: Survey | K9: worksheet, you
B10: Category | C10: =D10-1 -> 2015 | D10: =StepByStep!$G$10 -> 2016 | E10: (Losses) | F10: Ratio | G10: Ratios(*) | H10: Difference | I10: Objective | K10: will destroy the
C11: (A$) | D11: (B$) | E11: (C$=B-A) | F11: (D%=C/totA) | G11: (E%) | H11: (E-D) | K11: formula cells.
A12: Gains | F12: =C24 -> 5856505878
B13: New | C13: n/a | D13: =FEPdata!E12 -> 1515579372 | E13: =D13 -> 1515579372 | F13: =E13/(C$24+0.00001) -> 0.2587855973 | G13: 0.2418032787 | H13: =G13-F13 -> -0.01698231866 | I13: increase | K13: Exception:
B14: Recapture | C14: n/a | D14: =FEPdata!E13 -> 546577949 | E14: =D14 -> 546577949 | F14: =E14/(C$24+0.00001) -> 0.09332833611 | G14: 0.1321721311 | H14: =G14-F14 -> 0.03884379504 | I14: increase | K14: Enter FEP Survey
B15: Upgrade | C15: =FEPdata!C14 -> 1219749215 | D15: =FEPdata!E14 -> 2542178181 | E15: =D15-C15 -> 1322428966 | F15: =E15/(C$24+0.00001) -> 0.225805112 | G15: 0.2346311475 | H15: =G15-F15 -> 0.008826035489 | I15: increase | K15: data in yellow
B16: Subtotal gains | C16: =SUM(C13:C15) -> 1219749215 | D16: =SUM(D13:D15) -> 4604335502 | E16: =D16-C16 -> 3384586287 | F16: =E16/(C$24+0.00001) -> 0.5779190455 | G16: 0.6086065574 | H16: =G16-F16 -> 0.03068751187 | I16: Maximize | K16: hi-lighted fields
A17: Same | C17: =FEPdata!C15 -> 543429706 | D17: =FEPdata!E15 -> 543429706 | E17: =D17-C17 -> 0 | F17: =E17/(C$24+0.00001) -> 0 | G17: 0 | H17: =G17-F17 -> 0 | I17: Upgrade
A18: Losses
B19: Downgrade | C19: =FEPdata!C16 -> 2132281556 | D19: =FEPdata!E16 -> 987977453 | E19: =D19-C19 -> -1144304103 | F19: =E19/(C$24+0.00001) -> -0.1953902424 | G19: -0.2161885246 | H19: =G19-F19 -> -0.02079828221 | I19: Reduce
B20: Lapsed new | C20: =FEPdata!C17 -> 1001950771 | D20: n/a | E20: =-C20 -> -1001950771 | F20: =E20/(C$24+0.00001) -> -0.1710833715 | G20: -0.1321721311 | H20: =G20-F20 -> 0.03891124038 | I20: Reduce
B21: Lapsed repeat | C21: =FEPdata!C18 -> 959094630 | D21: n/a | E21: =-C21 -> -959094630 | F21: =E21/(C$24+0.00001) -> -0.1637656736 | G21: -0.1670081967 | H21: =G21-F21 -> -0.003242523129 | I21: Reduce
B22: Subtotal losses | C22: =SUM(C18:C21) -> 4093326957 | D22: =SUM(D18:D21) -> 987977453 | E22: =D22-C22 -> -3105349504 | F22: =E22/(C$24+0.00001) -> -0.5302392875 | G22: -0.5153688525 | H22: =G22-F22 -> 0.01487043505 | I22: Minimize
A24: Total - gifts | C24: =C16+C17+C22 -> 5856505878 | D24: =D16+D17+D22 -> 6135742661 | E24: =D24-C24 -> 279236783 | F24: =E24/(C$24+0.00001) -> 0.047679758 | G24: 0.09323770492 | H24: =G24-F24 -> 0.04555794692 | I24: Net gain(loss)
F26: -------- Growth-in-Giving Performance Indicators -------
C27: ----- Number of Donors ----- | F27: YOUR | G27: FEP
C28: Year 1 | D28: Year 2 | E28: Gains | F28: Gain (Loss) | G28: Survey
C29: =D29-1 -> 2015 | D29: =StepByStep!$G$10 -> 2016 | E29: (Losses) | F29: Ratio | G29: Ratios(*) | H29: Difference | I29: Objective
C30: (A$) | D30: (B$) | E30: (C$=B-A) | F30: (D%=C/totA) | G30: (E%) | H30: (E-D)
A31: Gains | F31: =C43 -> 6482976
B32: New | C32: n/a | D32: =FEPdata!D12 -> 2910125 | E32: =D32 -> 2910125 | F32: =E32/(C$43+0.00001) -> 0.4488872086 | G32: 0.4621167698 | H32: =G32-F32 -> 0.01322956121 | I32: increase
B33: Recapture | C33: n/a | D33: =FEPdata!D13 -> 647686 | E33: =D33 -> 647686 | F33: =E33/(C$43+0.00001) -> 0.09990566061 | G33: 0.1522133524 | H33: =G33-F33 -> 0.0523076918 | I33: increase
B34: Upgrade | C34: =FEPdata!B14 -> 1261163 | D34: =FEPdata!D14 -> 1261163 | E34: =D34-C34 -> 0 | F34: =E34/(C$43+0.00001) -> 0 | G34: 0 | H34: =G34-F34 -> 0 | I34: increase
B35: Subtotal gains | C35: =SUM(C32:C34) -> 1261163 | D35: =SUM(D32:D34) -> 4818974 | E35: =D35-C35 -> 3557811 | F35: =E35/(C$43+0.00001) -> 0.5487928692 | G35: 0.6143301222 | H35: =G35-F35 -> 0.06553725301 | I35: Maximize
A36: Same | C36: =FEPdata!B15 -> 800406 | D36: =FEPdata!D15 -> 800406 | E36: =D36-C36 -> 0 | F36: =E36/(C$43+0.00001) -> 0 | G36: 0 | H36: =G36-F36 -> 0 | I36: Upgrade
A37: Losses
B38: Downgrade | C38: =FEPdata!B16 -> 900594 | D38: =FEPdata!D16 -> 900594 | E38: =D38-C38 -> 0 | F38: =E38/(C$43+0.00001) -> 0 | G38: 0 | H38: =G38-F38 -> 0 | I38: Reduce
B39: Lapsed new | C39: =FEPdata!B17 -> 2320303 | D39: n/a | E39: =-C39 -> -2320303 | F39: =E39/(C$43+0.00001) -> -0.3579070785 | G39: -0.317475367 | H39: =G39-F39 -> 0.04043171148 | I39: Reduce
B40: Lapsed repeat | C40: =FEPdata!B18 -> 1200510 | D40: n/a | E40: =-C40 -> -1200510 | F40: =E40/(C$43+0.00001) -> -0.1851788438 | G40: -0.2158348174 | H40: =G40-F40 -> -0.03065597362 | I40: Reduce
B41: Subtotal losses | C41: =SUM(C37:C40) -> 4421407 | D41: =SUM(D37:D40) -> 900594 | E41: =D41-C41 -> -3520813 | F41: =E41/(C$43+0.00001) -> -0.5430859223 | G41: -0.5333101844 | H41: =G41-F41 -> 0.00977573786 | I41: Minimize
A43: Total - donors | C43: =C35+C36+C41 -> 6482976 | D43: =D35+D36+D41 -> 6519974 | E43: =D43-C43 -> 36998 | F43: =E43/(C$43+0.00001) -> 0.005706946933 | G43: 0.08101993781 | H43: =G43-F43 -> 0.07531299087 | I43: Net gain(loss)
A44: (*) Comparative FEP survey ratios by size, subsector, region and age for several years can be
A45: found in the appendices of the annual Fundraising Effectiveness Survey reports at | G45: http://www.afpnet.org/FEP.

Sheet All Indicators (hidden)
B1: 153 Performance Indicators | D1: FEP Analytics | G1: =TODAY() -> 2023-09-26 | I1: Page 1
B2: =StepByStep!#REF! ->  | D2: GiGi Fundraising Fitness Test
B4: FEP Fundraising Performance Indicators | H4: Year2: | I4: =StepByStep!$G$10 -> 2016
B5: Using Gift Transaction Data By Giving Level/Range | H5: Year1: | I5: =I4-1 -> 2015
B6: * Key indicators
E7: ------------------------------- Giving Level/Range ----------------------------- | J7: --------- Formulas --------
A8: Ind No. | B8: Fundraising Performance Indicator | C8: Key | D8: All Donors | E8: Donors Under $100 | F8: $100 to $249 | G8: $250 to $999 | H8: $1,000 to $4,999 | I8: Donors $5,000 & Up | J8: Ratio Num | K8: Ratio Denom | L8: Dupe
B10: Donor retention rate
A11: 1 | B11: New donor retention rate | C11: * | D11: =(FEPdata!$B22-FEPdata!$B17)/FEPdata!$B22 -> 0.3027556487 | E11: =(FEP100Dn!$B22-FEP100Dn!$B17)/FEP100Dn!$B22 -> 0.2046960448 | F11: =(FEP100to249!$B22-FEP100to249!$B17)/FEP100to249!$B22 -> 0.3359000035 | G11: =(FEP250to999!$B22-FEP250to999!$B17)/FEP250to999!$B22 -> 0.4716179107 | H11: =(FEP1000to4999!$B22-FEP1000to4999!$B17)/FEP1000to4999!$B22 -> 0.594775933 | I11: =(FEP5000Up!$B22-FEP5000Up!$B17)/FEP5000Up!$B22 -> 0.5548697291 | J11: 1a | K11: 1b
A12: 1a | B12: Year1 new donors retained in Year2 | D12: =FEPdata!$B22-FEPdata!$B17 -> 1007516 | E12: =FEP100Dn!$B22-FEP100Dn!$B17 -> 375319 | F12: =FEP100to249!$B22-FEP100to249!$B17 -> 259297 | G12: =FEP250to999!$B22-FEP250to999!$B17 -> 207809 | H12: =FEP1000to4999!$B22-FEP1000to4999!$B17 -> 130931 | I12: =FEP5000Up!$B22-FEP5000Up!$B17 -> 34160 | M12: =SUM(E12:I12)-D12 -> 0
A13: 1b | B13: New donors in Year 1 | D13: =FEPdata!$B22 -> 3327819 | E13: =FEP100Dn!$B22 -> 1833543 | F13: =FEP100to249!$B22 -> 771947 | G13: =FEP250to999!$B22 -> 440630 | H13: =FEP1000to4999!$B22 -> 220135 | I13: =FEP5000Up!$B22 -> 61564 | M13: =SUM(E13:I13)-D13 -> 0
A15: 2 | B15: Repeat donor retention rate | C15: * | D15: =(FEPdata!$B19 - FEPdata!$B22-FEPdata!$B18)/(FEPdata!$B19 - FEPdata!$B22) -> 0.619508633 | E15: =(FEP100Dn!$B19 - FEP100Dn!$B22-FEP100Dn!$B18)/(FEP100Dn!$B19 - FEP100Dn!$B22) -> 0.4891135639 | F15: =(FEP100to249!$B19 - FEP100to249!$B22-FEP100to249!$B18)/(FEP100to249!$B19 - FEP100to249!$B22) -> 0.5951038116 | G15: =(FEP250to999!$B19 - FEP250to999!$B22-FEP250to999!$B18)/(FEP250to999!$B19 - FEP250to999!$B22) -> 0.6893089623 | H15: =(FEP1000to4999!$B19 - FEP1000to4999!$B22-FEP1000to4999!$B18)/(FEP1000to4999!$B19 - FEP1000to4999!$B22) -> 0.7606244816 | I15: =(FEP5000Up!$B19 - FEP5000Up!$B22-FEP5000Up!$B18)/(FEP5000Up!$B19 - FEP5000Up!$B22) -> 0.7406069277 | J15: 2a | K15: 2b
A16: 2a | B16: Year1 repeat donors retained in Year2 | D16: =FEPdata!$B19 - FEPdata!$B22-FEPdata!$B18 -> 1954647 | E16: =FEP100Dn!$B19 - FEP100Dn!$B22-FEP100Dn!$B18 -> 452522 | F16: =FEP100to249!$B19 - FEP100to249!$B22-FEP100to249!$B18 -> 489702 | G16: =FEP250to999!$B19 - FEP250to999!$B22-FEP250to999!$B18 -> 527138 | H16: =FEP1000to4999!$B19 - FEP1000to4999!$B22-FEP1000to4999!$B18 -> 363113 | I16: =FEP5000Up!$B19 - FEP5000Up!$B22-FEP5000Up!$B18 -> 122172 | M16: =SUM(E16:I16)-D16 -> 0
A17: 2b | B17: Repeat donors in Year 1 | D17: =FEPdata!$B19 - FEPdata!$B22 -> 3155157 | E17: =FEP100Dn!$B19 - FEP100Dn!$B22 -> 925188 | F17: =FEP100to249!$B19 - FEP100to249!$B22 -> 822885 | G17: =FEP250to999!$B19 - FEP250to999!$B22 -> 764734 | H17: =FEP1000to4999!$B19 - FEP1000to4999!$B22 -> 477388 | I17: =FEP5000Up!$B19 - FEP5000Up!$B22 -> 164962 | M17: =SUM(E17:I17)-D17 -> 0
A19: 3 | B19: Overall donor retention rate | D19: =(FEPdata!$B19-FEPdata!$B17-FEPdata!$B18)/FEPdata!$B19 -> 0.4569140777 | E19: =(FEP100Dn!$B19-FEP100Dn!$B17-FEP100Dn!$B18)/FEP100Dn!$B19 -> 0.300080363 | F19: =(FEP100to249!$B19-FEP100to249!$B17-FEP100to249!$B18)/FEP100to249!$B19 -> 0.4696413165 | G19: =(FEP250to999!$B19-FEP250to999!$B17-FEP250to999!$B18)/FEP250to999!$B19 -> 0.6097303387 | H19: =(FEP1000to4999!$B19-FEP1000to4999!$B17-FEP1000to4999!$B18)/FEP1000to4999!$B19 -> 0.7082834545 | I19: =(FEP5000Up!$B19-FEP5000Up!$B17-FEP5000Up!$B18)/FEP5000Up!$B19 -> 0.6901282855 | J19: 3a | K19: 3b
A20: 3a | B20: Year1 donors retained in Year2 | D20: =D12+D16 -> 2962163 | E20: 827841 | F20: 748999 | G20: 734947 | H20: 494044 | I20: 156332 | L20: 13 | M20: =SUM(E20:I20)-D20 -> 0
A21: 3b | B21: Total donors in Year 1 | D21: 6482976 | E21: 2758731 | F21: 1594832 | G21: 1205364 | H21: 697523 | I21: 226526 | L21: 14 | M21: =SUM(E21:I21)-D21 -> 0
A23: 4 | B23: Database donor retention rate | D23: =D110 -> 0.179793655 | E23: 0.09808873365 | F23: 0.2053133664 | G23: 0.3150291299 | H23: 0.4243842429 | I23: 0.4225078906 | J23: 4a | K23: 4b | L23: 30
A24: 4a | B24: Prior donors retained in Year2 | D24: =D108 -> 3609849 | E24: 1086683 | F24: 935999 | G24: 853923 | H24: 553330 | I24: 179914 | L24: 28 | M24: =SUM(E24:I24)-D24 -> 0
A25: 4b | B25: Donors in database end of Year1 | D25: 20077733 | E25: 11078571 | F25: 4558880 | G25: 2710616 | H25: 1303842 | I25: 425824 | L25: 29 | M25: =SUM(E25:I25)-D25 -> 0
B27: Donor gains
A28: 5 | B28: Donor gains (New + Recaptured) | C28: * | D28: =FEPdata!$D12+FEPdata!$D13 -> 3557811 | E28: =FEP100Dn!$D12+FEP100Dn!$D13 -> 1957308 | F28: =FEP100to249!$D12+FEP100to249!$D13 -> 850112 | G28: =FEP250to999!$D12+FEP250to999!$D13 -> 474877 | H28: =FEP1000to4999!$D12+FEP1000to4999!$D13 -> 210607 | I28: =FEP5000Up!$D12+FEP5000Up!$D13 -> 64907 | M28: =SUM(E28:I28)-D28 -> 0
A29: 6 | B29: Overall donor acquisition rate | D29: =D28/D$55 -> 0.5487928692 | E29: 0.709495779 | F29: 0.5330417248 | G29: 0.3939697884 | H29: 0.3019355634 | I29: 0.2865322303 | J29: 5 | K29: 14 | M29: Gains as % of Year 1 donors
A30: 5a | B30: New donors in Year 2 | D30: =FEPdata!$D12 -> 2910125 | E30: =FEP100Dn!$D12 -> 1698466 | F30: =FEP100to249!$D12 -> 663112 | G30: =FEP250to999!$D12 -> 355901 | H30: =FEP1000to4999!$D12 -> 151321 | I30: =FEP5000Up!$D12 -> 41325 | M30: =SUM(E30:I30)-D30 -> 0
A31: 6a | B31: New donor acquisition rate | C31: * | D31: =D30/D$55 -> 0.4488872086 | E31: 0.6156693059 | F31: 0.4157879952 | G31: 0.2952643351 | H31: 0.2169405167 | I31: 0.18242939 | J31: 5a | K31: 14 | M31: New donors as % of Year 1 donors
A32: 5b | B32: Recaptured donors in Year 2 | D32: =FEPdata!$D13 -> 647686 | E32: =FEP100Dn!$D13 -> 258842 | F32: =FEP100to249!$D13 -> 187000 | G32: =FEP250to999!$D13 -> 118976 | H32: =FEP1000to4999!$D13 -> 59286 | I32: =FEP5000Up!$D13 -> 23582 | M32: =SUM(E32:I32)-D32 -> 0
A33: 6b | B33: Repeat donor re-acquisition rate | C33: * | D33: =D32/D$55 -> 0.09990566061 | E33: 0.09382647311 | F33: 0.1172537295 | G33: 0.09870545329 | H33: 0.08499504676 | I33: 0.1041028403 | J33: 5b | K33: 14 | M33: Recap donors as % of Year 1 donors
B35: Donor losses (donor attrition)
A36: 7 | B36: Donor losses | C36: * | D36: =FEPdata!$B17+FEPdata!$B18 -> 3520813 | E36: =FEP100Dn!$B17+FEP100Dn!$B18 -> 1930890 | F36: =FEP100to249!$B17+FEP100to249!$B18 -> 845833 | G36: =FEP250to999!$B17+FEP250to999!$B18 -> 470417 | H36: =FEP1000to4999!$B17+FEP1000to4999!$B18 -> 203479 | I36: =FEP5000Up!$B17+FEP5000Up!$B18 -> 70194 | M36: =SUM(E36:I36)-D36 -> 0
A37: 8 | B37: Losses as % of Year 1 donors | D37: =D36/D$55 -> 0.5430859223 | E37: 0.699919637 | F37: 0.5303586835 | G37: 0.3902696613 | H37: 0.2917165455 | I37: 0.3098717145 | J37: 7 | K37: 14
A38: 7a | B38: Lapsed new Year 1 donors | D38: =FEPdata!$B17 -> 2320303 | E38: =FEP100Dn!$B17 -> 1458224 | F38: =FEP100to249!$B17 -> 512650 | G38: =FEP250to999!$B17 -> 232821 | H38: =FEP1000to4999!$B17 -> 89204 | I38: =FEP5000Up!$B17 -> 27404 | M38: =SUM(E38:I38)-D38 -> 0
A39: 8a | B39: Lapsed new as % of Year 1 donors | C39: * | D39: =D38/D$55 -> 0.3579070785 | E39: 0.5285850632 | F39: 0.3214445158 | G39: 0.1931541012 | H39: 0.1278868224 | I39: 0.1209750757 | J39: 7a | K39: 14
A40: 7b | B40: Lapsed repeat Year 1 donors | D40: =FEPdata!$B18 -> 1200510 | E40: =FEP100Dn!$B18 -> 472666 | F40: =FEP100to249!$B18 -> 333183 | G40: =FEP250to999!$B18 -> 237596 | H40: =FEP1000to4999!$B18 -> 114275 | I40: =FEP5000Up!$B18 -> 42790 | M40: =SUM(E40:I40)-D40 -> 0
A41: 8b | B41: Lapsed repeat as % of Year 1 donors | C41: * | D41: =D40/D$55 -> 0.1851788438 | E41: 0.1713345738 | F41: 0.2089141678 | G41: 0.1971155601 | H41: 0.1638297232 | I41: 0.1888966388 | J41: 7b | K41: 14
I43: Page 2
A44: Ind No. | B44: Fundraising Performance Indicator | C44: Key | D44: All Donors | E44: Donors Under $100 | F44: $100 to $249 | G44: $250 to $999 | H44: $1,000 to $4,999 | I44: Donors $5,000 & Up | J44: Num | K44: Denom | L44: Dupe
B46: Donor gains, losses & net
A47: 9a | B47: Net gain in donors | D47: =D28-D36 -> 36998 | E47: 26418 | F47: 4279 | G47: 4460 | H47: 7128 | I47: -5287
A48: 9 | B48: Donors lost for every 100 gained | C48: * | D48: =D36/D28*100 -> 98.96009091 | E48: 98.65028907 | F48: 99.49665456 | G48: 99.06080943 | H48: 96.61549711 | I48: 108.1455005 | J48: 7*100 | K48: 5
A49: 10 | B49: Donor losses as % of gains | D49: =D48/100 -> 0.9896009091 | E49: 0.9865028907 | F49: 0.9949665456 | G49: 0.9906080943 | H49: 0.9661549711 | I49: 1.081455005 | J49: 9 | K49: [100]
A50: 11 | B50: Net gain per 100 donors | C50: * | D50: =100-D48 -> 1.03990909 | E50: 1.34971093 | F50: 0.5033454415 | G50: 0.9391905693 | H50: 3.384502889 | I50: -8.145500485 | J50: 9 | K50: minus 100
A51: 12 | B51: Net gain in donors (%) | C51: * | D51: =D50/100 -> 0.0103990909 | E51: 0.0134971093 | F51: 0.005033454415 | G51: 0.009391905693 | H51: 0.03384502889 | I51: -0.08145500485 | J51: 11 | K51: [100]
B53: Number of donors
A54: 13 | B54: Overall donors retained | D54: =FEPdata!$B14+FEPdata!$B15+FEPdata!$B16 -> 2962163 | E54: =FEP100Dn!$B14+FEP100Dn!$B15+FEP100Dn!$B16 -> 827841 | F54: =FEP100to249!$B14+FEP100to249!$B15+FEP100to249!$B16 -> 748999 | G54: =FEP250to999!$B14+FEP250to999!$B15+FEP250to999!$B16 -> 734947 | H54: =FEP1000to4999!$B14+FEP1000to4999!$B15+FEP1000to4999!$B16 -> 494044 | I54: =FEP5000Up!$B14+FEP5000Up!$B15+FEP5000Up!$B16 -> 156332 | M54: =SUM(E54:I54)-D54 -> 0
A55: 14 | B55: Year1 total donors | D55: =FEPdata!$B19 -> 6482976 | E55: =FEP100Dn!$B19 -> 2758731 | F55: =FEP100to249!$B19 -> 1594832 | G55: =FEP250to999!$B19 -> 1205364 | H55: =FEP1000to4999!$B19 -> 697523 | I55: =FEP5000Up!$B19 -> 226526 | L55: 37.45,56 | M55: =SUM(E55:I55)-D55 -> 0
A56: 15 | B56: Year2 total donors | D56: =FEPdata!$D19 -> 6519974 | E56: =FEP100Dn!$D19 -> 2785149 | F56: =FEP100to249!$D19 -> 1599111 | G56: =FEP250to999!$D19 -> 1209824 | H56: =FEP1000to4999!$D19 -> 704651 | I56: =FEP5000Up!$D19 -> 221239 | L56: 41,44 | M56: =SUM(E56:I56)-D56 -> 0
A57: 16 | B57: Percent of Year2 donors by range | C57: * | D57: =D56/$D56 -> 1 | E57: 0.4271717955 | F57: 0.2452634014 | G57: 0.1855565682 | H57: 0.1080757377 | I57: 0.03393249728 | J57: 15range | K57: 15all | M57: =SUM(E57:I57)-D57 -> 0
B59: Amount of gift$ (dollars)
A60: 17a | B60: Overall gift$ retained | D60: =FEPdata!$C14+FEPdata!$C15+FEPdata!$C16 -> 3895460477 | E60: =FEP100Dn!$C14+FEP100Dn!$C15+FEP100Dn!$C16 -> 29580624 | F60: =FEP100to249!$C14+FEP100to249!$C15+FEP100to249!$C16 -> 77936557 | G60: =FEP250to999!$C14+FEP250to999!$C15+FEP250to999!$C16 -> 236114320 | H60: =FEP1000to4999!$C14+FEP1000to4999!$C15+FEP1000to4999!$C16 -> 593803608 | I60: =FEP5000Up!$C14+FEP5000Up!$C15+FEP5000Up!$C16 -> 2958025368 | M60: =SUM(E60:I60)-D60 -> 0
A61: 17b | B61: Amount of gift$ Year1 | D61: =FEPdata!$C19 -> 5856505878 | E61: =FEP100Dn!$C19 -> 93985610 | F61: =FEP100to249!$C19 -> 176080836 | G61: =FEP250to999!$C19 -> 399201524 | H61: =FEP1000to4999!$C19 -> 859284660 | I61: =FEP5000Up!$C19 -> 4327953248 | L61: 57 | M61: =SUM(E61:I61)-D61 -> 0
A62: 17 | B62: Amount of gift$ Year2 | D62: =FEPdata!$E19 -> 6135742661 | E62: =FEP100Dn!$E19 -> 97603733 | F62: =FEP100to249!$E19 -> 186815869 | G62: =FEP250to999!$E19 -> 450739008 | H62: =FEP1000to4999!$E19 -> 1034676857 | I62: =FEP5000Up!$E19 -> 4365907194 | M62: =SUM(E62:I62)-D62 -> 0
A63: 18 | B63: Percent of Year2 gift$ by range | C63: * | D63: =D62/$D62 -> 1 | E63: 0.01590740329 | F63: 0.03044714867 | G63: 0.07346119824 | H63: 0.1686310711 | I63: 0.7115531787 | J63: 17range | K63: 17all | M63: =SUM(E63:I63)-D63 -> 0
A64: 19 | B64: Average gift size in Year2 | C64: * | D64: =D62/D56 -> 941.068578 | E64: 35.04434879 | F64: 116.8248289 | G64: 372.5657682 | H64: 1468.353635 | I64: 19733.89499 | J64: 17 | K64: 15
B66: Dollar retention rate
A67: 19a | B67: New dollar retention rate | C67: * | D67: =D68/D69 -> 0.4860790625 | E67: 0.2093892288 | F67: 0.2963738423 | G67: 0.4031811499 | H67: 0.49295664 | I67: 0.5204722316 | J67: 19b | K67: 19a
A68: 19b | B68: Year1 new dollars retained in Year2 | D68: =FEPdata!$C22-FEPdata!$C17 -> 947669682 | E68: =FEP100Dn!$C22-FEP100Dn!$C17 -> 12814206 | F68: =FEP100to249!$C22-FEP100to249!$C17 -> 27567167 | G68: =FEP250to999!$C22-FEP250to999!$C17 -> 65795175 | H68: =FEP1000to4999!$C22-FEP1000to4999!$C17 -> 143875056 | I68: =FEP5000Up!$C22-FEP5000Up!$C17 -> 697618078 | M68: =SUM(E68:I68)-D68 -> 0
A69: 19c | B69: New dollars in Year 1 | D69: =FEPdata!$C22 -> 1949620453 | E69: =FEP100Dn!$C22 -> 61198019 | F69: =FEP100to249!$C22 -> 93014845 | G69: =FEP250to999!$C22 -> 163190107 | H69: =FEP1000to4999!$C22 -> 291861483 | I69: =FEP5000Up!$C22 -> 1340355999 | M69: =SUM(E69:I69)-D69 -> 0
A71: 19d | B71: Repeat dollar retention rate | C71: * | D71: =D72/D73 -> 0.754511708 | E71: 0.5113647416 | F71: 0.6063780061 | G71: 0.7216563807 | H71: 0.7929329824 | I71: 0.7565970583 | J71: 19e | K71: 19f
A72: 19e | B72: Year1 repeat dollars retained in Year2 | D72: =FEPdata!$C19 - FEPdata!$C22-FEPdata!$C18 -> 2947790795 | E72: =FEP100Dn!$C19 - FEP100Dn!$C22-FEP100Dn!$C18 -> 16766418 | F72: =FEP100to249!$C19 - FEP100to249!$C22-FEP100to249!$C18 -> 50369390 | G72: =FEP250to999!$C19 - FEP250to999!$C22-FEP250to999!$C18 -> 170319145 | H72: =FEP1000to4999!$C19 - FEP1000to4999!$C22-FEP1000to4999!$C18 -> 449928552 | I72: =FEP5000Up!$C19 - FEP5000Up!$C22-FEP5000Up!$C18 -> 2260407290 | M72: =SUM(E72:I72)-D72 -> 0
A73: 19f | B73: Repeat dollars in Year 1 | D73: =FEPdata!$C19 - FEPdata!$C22 -> 3906885425 | E73: =FEP100Dn!$C19 - FEP100Dn!$C22 -> 32787591 | F73: =FEP100to249!$C19 - FEP100to249!$C22 -> 83065991 | G73: =FEP250to999!$C19 - FEP250to999!$C22 -> 236011417 | H73: =FEP1000to4999!$C19 - FEP1000to4999!$C22 -> 567423177 | I73: =FEP5000Up!$C19 - FEP5000Up!$C22 -> 2987597249 | M73: =SUM(E73:I73)-D73 -> 0
A75: 19g | B75: Overall dollar retention rate | D75: =D76/D77 -> 0.6651509549 | E75: 0.3147356707 | F75: 0.4426180541 | G75: 0.5914664795 | H75: 0.6910441157 | I75: 0.6834698063 | J75: 19h | K75: 19i
A76: 19h | B76: Year1 dollars retained in Year2 | D76: =D68+D72 -> 3895460477 | E76: 29580624 | F76: 77936557 | G76: 236114320 | H76: 593803608 | I76: 2958025368 | M76: =SUM(E76:I76)-D76 -> 0
A77: 19i | B77: Total dollars in Year 1 | D77: 5856505878 | E77: 93985610 | F77: 176080836 | G77: 399201524 | H77: 859284660 | I77: 4327953248 | L77: 36,56 | M77: =SUM(E77:I77)-D77 -> 0
B79: Dollar gains
A80: 20 | B80: Dollar gains | C80: * | D80: =FEPdata!$E12+FEPdata!$E13+FEPdata!$E14-FEPdata!$C14 -> 3384586287 | E80: =FEP100Dn!$E12+FEP100Dn!$E13+FEP100Dn!$E14-FEP100Dn!$C14 -> 72323539 | F80: =FEP100to249!$E12+FEP100to249!$E13+FEP100to249!$E14-FEP100to249!$C14 -> 123207390 | G80: =FEP250to999!$E12+FEP250to999!$E13+FEP250to999!$E14-FEP250to999!$C14 -> 261306186 | H80: =FEP1000to4999!$E12+FEP1000to4999!$E13+FEP1000to4999!$E14-FEP1000to4999!$C14 -> 550555196 | I80: =FEP5000Up!$E12+FEP5000Up!$E13+FEP5000Up!$E14-FEP5000Up!$C14 -> 2377193976 | M80: =SUM(E80:I80)-D80 -> 0
A81: 21 | B81: Gains as % of Year 1 dollars | D81: =D80/FEPdata!$C$19 -> 0.5779190455 | E81: =E80/FEP100Dn!$C$19 -> 0.7695171527 | F81: =F80/FEP100to249!$C$19 -> 0.6997206101 | G81: =G80/FEP250to999!$C$19 -> 0.6545721153 | H81: =H80/FEP1000to4999!$C$19 -> 0.6407133999 | I81: =I80/FEP5000Up!$C$19 -> 0.5492651699 | J81: 20 | K81: 17a
A82: 21a | B82: New dollars in Year 2 | D82: =FEPdata!$E12 -> 1515579372 | E82: =FEP100Dn!$E12 -> 57932675 | F82: =FEP100to249!$E12 -> 86379457 | G82: =FEP250to999!$E12 -> 154845821 | H82: =FEP1000to4999!$E12 -> 249941785 | I82: =FEP5000Up!$E12 -> 966479634 | M82: =SUM(E82:I82)-D82 -> 0
A83: 21b | B83: New dollars as % of Year 1 dollars | D83: =D82/FEPdata!$C$19 -> 0.2587855973 | E83: =E82/FEP100Dn!$C$19 -> 0.6163994148 | F83: =F82/FEP100to249!$C$19 -> 0.4905670541 | G83: =G82/FEP250to999!$C$19 -> 0.3878888523 | H83: =H82/FEP1000to4999!$C$19 -> 0.2908719271 | I83: =I82/FEP5000Up!$C$19 -> 0.2233110153 | J83: 21a | K83: 17a
A84: 21c | B84: Recaptured dollars in Year 2 | D84: =FEPdata!$E13 -> 546577949 | E84: =FEP100Dn!$E13 -> 8709409 | F84: =FEP100to249!$E13 -> 18279907 | G84: =FEP250to999!$E13 -> 32601581 | H84: =FEP1000to4999!$E13 -> 61621082 | I84: =FEP5000Up!$E13 -> 425365970 | M84: =SUM(E84:I84)-D84 -> 0
A85: 21d | B85: Recap dollars as % of Year 1 dollars | D85: =D84/FEPdata!$C$19 -> 0.09332833611 | E85: =E84/FEP100Dn!$C$19 -> 0.09266747324 | F85: =F84/FEP100to249!$C$19 -> 0.103815426 | G85: =G84/FEP250to999!$C$19 -> 0.0816669753 | H85: =H84/FEP1000to4999!$C$19 -> 0.07171207036 | I85: =I84/FEP5000Up!$C$19 -> 0.09828340225 | J85: 21c | K85: 17a
A86: 21e | B86: Upgraded dollar gains in Year 2 | D86: =FEPdata!$E14-FEPdata!$C14 -> 1322428966 | E86: =FEP100Dn!$E14-FEP100Dn!$C14 -> 5681455 | F86: =FEP100to249!$E14-FEP100to249!$C14 -> 18548026 | G86: =FEP250to999!$E14-FEP250to999!$C14 -> 73858784 | H86: =FEP1000to4999!$E14-FEP1000to4999!$C14 -> 238992329 | I86: =FEP5000Up!$E14-FEP5000Up!$C14 -> 985348372 | M86: =SUM(E86:I86)-D86 -> 0
A87: 21f | B87: Upgraded gains as % of Year 1 dollars | D87: =D86/FEPdata!$C$19 -> 0.225805112 | E87: =E86/FEP100Dn!$C$19 -> 0.06045026467 | F87: =F86/FEP100to249!$C$19 -> 0.10533813 | G87: =G86/FEP250to999!$C$19 -> 0.1850162877 | H87: =H86/FEP1000to4999!$C$19 -> 0.2781294024 | I87: =I86/FEP5000Up!$C$19 -> 0.2276707523 | J87: 21e | K87: 17a
I88: Page 3
A89: Ind No. | B89: FEP Gain/Loss Fundraising Performance Indicator | C89: Key | D89: All Donors | E89: Donors Under $100 | F89: $100 to $249 | G89: $250 to $999 | H89: $1,000 to $4,999 | I89: Donors $5,000 & Up | J89: Num | K89: Denom | L89: Dupe
B91: Dollar losses (dollar attrition)+B116+B181
A92: 22 | B92: Dollar losses | C92: * | D92: =FEPdata!$C17+FEPdata!$C18+FEPdata!$C16-FEPdata!$E16 -> 3105349504 | E92: =FEP100Dn!$C17+FEP100Dn!$C18+FEP100Dn!$C16-FEP100Dn!$E16 -> 68705416 | F92: =FEP100to249!$C17+FEP100to249!$C18+FEP100to249!$C16-FEP100to249!$E16 -> 112472357 | G92: =FEP250to999!$C17+FEP250to999!$C18+FEP250to999!$C16-FEP250to999!$E16 -> 209768702 | H92: =FEP1000to4999!$C17+FEP1000to4999!$C18+FEP1000to4999!$C16-FEP1000to4999!$E16 -> 375162999 | I92: =FEP5000Up!$C17+FEP5000Up!$C18+FEP5000Up!$C16-FEP5000Up!$E16 -> 2339240030 | M92: =SUM(E92:I92)-D92 -> 0
A93: 23 | B93: Losses as % of Year 1 dollars | D93: =D92/FEPdata!$C$19 -> 0.5302392875 | E93: =E92/FEP100Dn!$C$19 -> 0.7310205892 | F93: =F92/FEP100to249!$C$19 -> 0.6387541061 | G93: =G92/FEP250to999!$C$19 -> 0.5254706943 | H93: =H92/FEP1000to4999!$C$19 -> 0.4365992045 | I93: =I92/FEP5000Up!$C$19 -> 0.5404956791 | J93: 22 | K93: 17a
A94: 23a | B94: Lapsed new Year 1 dollars | D94: =FEPdata!$C17 -> 1001950771 | E94: =FEP100Dn!$C17 -> 48383813 | F94: =FEP100to249!$C17 -> 65447678 | G94: =FEP250to999!$C17 -> 97394932 | H94: =FEP1000to4999!$C17 -> 147986427 | I94: =FEP5000Up!$C17 -> 642737921 | M94: =SUM(E94:I94)-D94 -> 0
A95: 23b | B95: Lapsed new as % of Year 1 dollars | D95: =D94/FEPdata!$C$19 -> 0.1710833715 | E95: =E94/FEP100Dn!$C$19 -> 0.5148002231 | F95: =F94/FEP100to249!$C$19 -> 0.3716910908 | G95: =G94/FEP250to999!$C$19 -> 0.2439743492 | H95: =H94/FEP1000to4999!$C$19 -> 0.1722204921 | I95: =I94/FEP5000Up!$C$19 -> 0.1485085176 | J95: 23a | K95: 17a
A96: 23c | B96: Lapsed repeat Year 1 dollars | D96: =FEPdata!$C18 -> 959094630 | E96: =FEP100Dn!$C18 -> 16021173 | F96: =FEP100to249!$C18 -> 32696601 | G96: =FEP250to999!$C18 -> 65692272 | H96: =FEP1000to4999!$C18 -> 117494625 | I96: =FEP5000Up!$C18 -> 727189959 | M96: =SUM(E96:I96)-D96 -> 0
A97: 23d | B97: Lapsed repeat as % of Year 1 dollars | D97: =D96/FEPdata!$C$19 -> 0.1637656736 | E97: =E96/FEP100Dn!$C$19 -> 0.1704641062 | F97: =F96/FEP100to249!$C$19 -> 0.1856908551 | G97: =G96/FEP250to999!$C$19 -> 0.1645591714 | H97: =H96/FEP1000to4999!$C$19 -> 0.1367353922 | I97: =I96/FEP5000Up!$C$19 -> 0.1680216761 | J97: 23c | K97: 17a
A98: 23e | B98: Downgraded dollar losses in Year 2 | D98: =FEPdata!$C16-FEPdata!$E16 -> 1144304103 | E98: =FEP100Dn!$C16-FEP100Dn!$E16 -> 4300430 | F98: =FEP100to249!$C16-FEP100to249!$E16 -> 14328078 | G98: =FEP250to999!$C16-FEP250to999!$E16 -> 46681498 | H98: =FEP1000to4999!$C16-FEP1000to4999!$E16 -> 109681947 | I98: =FEP5000Up!$C16-FEP5000Up!$E16 -> 969312150 | M98: =SUM(E98:I98)-D98 -> 0
A99: 23f | B99: Downgraded losses as % of Year 1 dollars | D99: =D98/FEPdata!$C$19 -> 0.1953902424 | E99: =E98/FEP100Dn!$C$19 -> 0.04575625992 | F99: =F98/FEP100to249!$C$19 -> 0.08137216023 | G99: =G98/FEP250to999!$C$19 -> 0.1169371738 | H99: =H98/FEP1000to4999!$C$19 -> 0.1276433202 | I99: =I98/FEP5000Up!$C$19 -> 0.2239654854 | J99: 23e | K99: 17a
B101: Dollar gains, losses and net
A102: 24 | B102: Dollars lost for every $100 gained | C102: * | D102: =D92/D80*100 -> 91.74975139 | E102: 94.99730924 | F102: 91.28702183 | G102: 80.27697515 | H102: 68.14266793 | I102: 98.40341401 | J102: 22*100 | K102: 20
A103: 25 | B103: Loss per dollar gained (%) | D103: =D102/100 -> 0.9174975139 | E103: 0.9499730924 | F103: 0.9128702183 | G103: 0.8027697515 | H103: 0.6814266793 | I103: 0.9840341401 | J103: 24 | K103: [100]
A104: 26 | B104: Net gain in gifts | C104: * | D104: =100-D102 -> 8.250248607 | E104: 5.002690756 | F104: 8.712978174 | G104: 19.72302485 | H104: 31.85733207 | I104: 1.596585991 | J104: 24 | K104: minus 100
A105: 27 | B105: Net gain in dollars (%) | D105: =D104/100 -> 0.08250248607 | E105: 0.05002690756 | F105: 0.08712978174 | G105: 0.1972302485 | H105: 0.3185733207 | I105: 0.01596585991 | J105: 26 | K105: [100] | M105: Net per dollar gained (%)
B107: Database & one-time donors
A108: 28 | B108: Prior donors retained in Year2 | D108: =FEPdata!$D19-FEPdata!$D12 -> 3609849 | E108: =FEP100Dn!$D19-FEP100Dn!$D12 -> 1086683 | F108: =FEP100to249!$D19-FEP100to249!$D12 -> 935999 | G108: =FEP250to999!$D19-FEP250to999!$D12 -> 853923 | H108: =FEP1000to4999!$D19-FEP1000to4999!$D12 -> 553330 | I108: =FEP5000Up!$D19-FEP5000Up!$D12 -> 179914 | L108: 4a
A109: 29 | B109: Donors in database end of Year1 | D109: =FEPdata!$B23 -> 20077733 | E109: =FEP100Dn!$B23 -> 11078571 | F109: =FEP100to249!$B23 -> 4558880 | G109: =FEP250to999!$B23 -> 2710616 | H109: =FEP1000to4999!$B23 -> 1303842 | I109: =FEP5000Up!$B23 -> 425824 | L109: 4b | M109: =SUM(E109:I109)-D109 -> 0
A110: 30 | B110: Database donor retention rate | D110: =D108/D109 -> 0.179793655 | E110: 0.09808873365 | F110: 0.2053133664 | G110: 0.3150291299 | H110: 0.4243842429 | I110: 0.4225078906 | J110: 28 | K110: 29 | L110: 4
A111: 31 | B111: Total donors in database | D111: =FEPdata!$K$23 -> 22987858 | E111: =FEP100Dn!$K$23 -> 12777037 | F111: =FEP100to249!$K$23 -> 5221992 | G111: =FEP250to999!$K$23 -> 3066517 | H111: =FEP1000to4999!$K$23 -> 1455163 | I111: =FEP5000Up!$K$23 -> 467149 | M111: =SUM(E111:I111)-D111 -> 0
A112: 32 | B112: Total monthly donors in database | D112: =FEPdata!$K$25 -> 0.05 | E112: =FEP100Dn!$K$25 -> 0.01 | F112: =FEP100to249!$K$25 -> 0.01 | G112: =FEP250to999!$K$25 -> 0.01 | H112: =FEP1000to4999!$K$25 -> 0.01 | I112: =FEP5000Up!$K$25 -> 0.01 | M112: =SUM(E112:I112)-D112 -> 0
A113: 33 | B113: Monthly donors as % of total | D113: =D112/D111 -> 2.175061287e-09 | E113: 7.826540692e-10 | F113: 1.914978039e-09 | G113: 3.261028718e-09 | H113: 6.872082372e-09 | I113: 2.140644634e-08 | J113: 32 | K113: 31
A114: 34 | B114: One time lapsed donors (end of Year1) | D114: =FEPdata!$B24 -> 11908212 | E114: =FEP100Dn!$B24 -> 8078146 | F114: =FEP100to249!$B24 -> 2348063 | G114: =FEP250to999!$B24 -> 1000961 | H114: =FEP1000to4999!$B24 -> 371207 | I114: =FEP5000Up!$B24 -> 109835 | M114: =SUM(E114:I114)-D114 -> 0
A115: 35 | B115: One time lapsed-donor rate | D115: =D114/D109 -> 0.5931054069 | E115: 0.7291685904 | F115: 0.5150526006 | G115: 0.3692743642 | H115: 0.2847024409 | I115: 0.2579352033 | J115: 34 | K115: 29
A116: 35a | B116: Repeat lapsed donors in database end Year1 | D116: =D109-D108-D114 -> 4559672 | E116: =E109-E108-E114 -> 1913742 | F116: 1274818 | G116: 855732 | H116: 379305 | I116: 136075 | J116: 29 | K116: minus 28 & 34
A117: 35b | B117: Repeat lapsed-donor rate | D117: =D116/D109 -> 0.2271009381 | E117: =E116/E109 -> 0.1727426759 | F117: 0.2796340329 | G117: 0.3156965059 | H117: 0.2909133162 | I117: 0.3195569061 | J117: 35a | K117: 29
B119: Growth in giving (GiG)
A120: 36 | B120: Total gifts raised in Year1 | D120: =FEPdata!$C19 -> 5856505878 | E120: =FEP100Dn!$C19 -> 93985610 | F120: =FEP100to249!$C19 -> 176080836 | G120: =FEP250to999!$C19 -> 399201524 | H120: =FEP1000to4999!$C19 -> 859284660 | I120: =FEP5000Up!$C19 -> 4327953248 | L120: 17b, 57 | M120: =SUM(E120:I120)-D120 -> 0
A121: 37 | B121: Total gifts raised in Year2 | D121: =FEPdata!$E19 -> 6135742661 | E121: =FEP100Dn!$E19 -> 97603733 | F121: =FEP100to249!$E19 -> 186815869 | G121: =FEP250to999!$E19 -> 450739008 | H121: =FEP1000to4999!$E19 -> 1034676857 | I121: =FEP5000Up!$E19 -> 4365907194 | L121: 17,45 | M121: =SUM(E121:I121)-D121 -> 0
A122: 38 | B122: Net growth in giving | D122: =D121-D120 -> 279236783 | E122: 3618123 | F122: 10735033 | G122: 51537484 | H122: 175392197 | I122: 37953946 | M122: =SUM(E122:I122)-D122 -> 0
A123: 39 | B123: Overall rate of growth in gifts | C123: * | D123: =D122/D120 -> 0.047679758 | E123: 0.03849656346 | F123: 0.06096650404 | G123: 0.129101421 | H123: 0.2041141954 | I123: 0.008769490756 | J123: 38 | K123: 36
B125: Growth in donors
A126: 40 | B126: Total donors in Year1 | D126: =FEPdata!$B19 -> 6482976 | E126: =FEP100Dn!$B19 -> 2758731 | F126: =FEP100to249!$B19 -> 1594832 | G126: =FEP250to999!$B19 -> 1205364 | H126: =FEP1000to4999!$B19 -> 697523 | I126: =FEP5000Up!$B19 -> 226526 | L126: 14,56 | M126: =SUM(E126:I126)-D126 -> 0
A127: 41 | B127: Total donors in Year2 | D127: =FEPdata!$D19 -> 6519974 | E127: =FEP100Dn!$D19 -> 2785149 | F127: =FEP100to249!$D19 -> 1599111 | G127: =FEP250to999!$D19 -> 1209824 | H127: =FEP1000to4999!$D19 -> 704651 | I127: =FEP5000Up!$D19 -> 221239 | L127: 15,44 | M127: =SUM(E127:I127)-D127 -> 0
A128: 42 | B128: Net growth in donors | D128: =D127-D126 -> 36998 | E128: 26418 | F128: 4279 | G128: 4460 | H128: 7128 | I128: -5287 | M128: =SUM(E128:I128)-D128 -> 0
A129: 43 | B129: Overall rate of growth in donors | C129: * | D129: =D128/D126 -> 0.005706946933 | E129: 0.009576142074 | F129: 0.002683041223 | G129: 0.003700127099 | H129: 0.01021901787 | I129: -0.02333948421 | J129: 42 | K129: 40
I130: Page 4
A131: Ind No. | B131: FEP Gain/Loss Fundraising Performance Indicator | C131: Key | D131: All Donors | E131: Donors Under $100 | F131: $100 to $249 | G131: $250 to $999 | H131: $1,000 to $4,999 | I131: Donors $5,000 & Up | J131: Num | K131: Denom | L131: Dupe
A133: Distribution of Year2 donors & gifts:
A134: 44 | B134: Total number of Year 2 donors | D134: =FEPdata!$D19 -> 6519974 | E134: =FEP100Dn!$D19 -> 2785149 | F134: =FEP100to249!$D19 -> 1599111 | G134: =FEP250to999!$D19 -> 1209824 | H134: =FEP1000to4999!$D19 -> 704651 | I134: =FEP5000Up!$D19 -> 221239 | L134: 15,41 | M134: =SUM(E134:I134)-D134 -> 0
A135: 45 | B135: Total gifts they gave in Year2 | D135: =FEPdata!$E19 -> 6135742661 | E135: =FEP100Dn!$E19 -> 97603733 | F135: =FEP100to249!$E19 -> 186815869 | G135: =FEP250to999!$E19 -> 450739008 | H135: =FEP1000to4999!$E19 -> 1034676857 | I135: =FEP5000Up!$E19 -> 4365907194 | L135: 17,37 | M135: =SUM(E135:I135)-D135 -> 0
A136: New donors in Year2
A137: 46a | B137: New donors in Year2 | D137: =FEPdata!$D12 -> 2910125 | E137: =FEP100Dn!$D12 -> 1698466 | F137: =FEP100to249!$D12 -> 663112 | G137: =FEP250to999!$D12 -> 355901 | H137: =FEP1000to4999!$D12 -> 151321 | I137: =FEP5000Up!$D12 -> 41325 | M137: =SUM(E137:I137)-D137 -> 0
A138: 46 | B138: New donors in Year2 % | D138: =FEPdata!$D12/FEPdata!$D$19 -> 0.4463399701 | E138: =FEP100Dn!$D12/FEP100Dn!$D$19 -> 0.6098294921 | F138: =FEP100to249!$D12/FEP100to249!$D$19 -> 0.414675404 | G138: =FEP250to999!$D12/FEP250to999!$D$19 -> 0.2941758471 | H138: =FEP1000to4999!$D12/FEP1000to4999!$D$19 -> 0.2147460232 | I138: =FEP5000Up!$D12/FEP5000Up!$D$19 -> 0.1867889477 | J138: 46a | K138: 44
A139: 47a | B139: Gifts they gave in Year2 | D139: =FEPdata!$E12 -> 1515579372 | E139: =FEP100Dn!$E12 -> 57932675 | F139: =FEP100to249!$E12 -> 86379457 | G139: =FEP250to999!$E12 -> 154845821 | H139: =FEP1000to4999!$E12 -> 249941785 | I139: =FEP5000Up!$E12 -> 966479634 | M139: =SUM(E139:I139)-D139 -> 0
A140: 47 | B140: % of gifts they gave in Year2 | D140: =FEPdata!$E12/FEPdata!$E$19 -> 0.2470083013 | E140: =FEP100Dn!$E12/FEP100Dn!$E$19 -> 0.5935497877 | F140: =FEP100to249!$E12/FEP100to249!$E$19 -> 0.4623775136 | G140: =FEP250to999!$E12/FEP250to999!$E$19 -> 0.3435376532 | H140: =FEP1000to4999!$E12/FEP1000to4999!$E$19 -> 0.2415650677 | I140: =FEP5000Up!$E12/FEP5000Up!$E$19 -> 0.2213697156 | J140: 47a | K140: 45
A141: 47b | B141: New donor average gift size in Year2 | D141: =D139/D137 -> 520.7952827 | E141: =E139/E137 -> 34.10882231 | F141: =F139/F137 -> 130.2637518 | G141: =G139/G137 -> 435.081163 | H141: =H139/H137 -> 1651.732311 | I141: =I139/(I137+0.00001) -> 23387.28696
A142: Previously lapsed donors in Year2
A143: 48a | B143: Previously lapsed donors in Year2 | D143: =FEPdata!$D13 -> 647686 | E143: =FEP100Dn!$D13 -> 258842 | F143: =FEP100to249!$D13 -> 187000 | G143: =FEP250to999!$D13 -> 118976 | H143: =FEP1000to4999!$D13 -> 59286 | I143: =FEP5000Up!$D13 -> 23582 | M143: =SUM(E143:I143)-D143 -> 0
A144: 48 | B144: Previously lapsed donors in Year2 % | D144: =FEPdata!$D13/FEPdata!$D$19 -> 0.09933873969 | E144: =FEP100Dn!$D13/FEP100Dn!$D$19 -> 0.09293649999 | F144: =FEP100to249!$D13/FEP100to249!$D$19 -> 0.1169399748 | G144: =FEP250to999!$D13/FEP250to999!$D$19 -> 0.09834157696 | H144: =FEP1000to4999!$D13/FEP1000to4999!$D$19 -> 0.08413526696 | I144: =FEP5000Up!$D13/FEP5000Up!$D$19 -> 0.1065906102 | J144: 48a | K144: 44
A145: 49a | B145: Gifts they gave in Year2 | D145: =FEPdata!$E13 -> 546577949 | E145: =FEP100Dn!$E13 -> 8709409 | F145: =FEP100to249!$E13 -> 18279907 | G145: =FEP250to999!$E13 -> 32601581 | H145: =FEP1000to4999!$E13 -> 61621082 | I145: =FEP5000Up!$E13 -> 425365970 | M145: =SUM(E145:I145)-D145 -> 0
A146: 49 | B146: % of gifts they gave in Year2 | D146: =FEPdata!$E13/FEPdata!$E$19 -> 0.0890809767 | E146: =FEP100Dn!$E13/FEP100Dn!$E$19 -> 0.089232335 | F146: =FEP100to249!$E13/FEP100to249!$E$19 -> 0.09784986199 | G146: =FEP250to999!$E13/FEP250to999!$E$19 -> 0.07232917591 | H146: =FEP1000to4999!$E13/FEP1000to4999!$E$19 -> 0.05955587156 | I146: =FEP5000Up!$E13/FEP5000Up!$E$19 -> 0.09742899954 | J146: 49a | K146: 45
A147: Upgraded donors in Year2
A148: 50a | B148: Upgraded donors in Year2 | D148: =FEPdata!$D14 -> 1261163 | E148: =FEP100Dn!$D14 -> 280703 | F148: =FEP100to249!$D14 -> 295290 | G148: =FEP250to999!$D14 -> 343351 | H148: =FEP1000to4999!$D14 -> 274757 | I148: =FEP5000Up!$D14 -> 67062 | M148: =SUM(E148:I148)-D148 -> 0
A149: 50 | B149: Upgraded donors in Year2 % | C149: * | D149: =FEPdata!$D14/FEPdata!$D$19 -> 0.1934306793 | E149: =FEP100Dn!$D14/FEP100Dn!$D$19 -> 0.1007856312 | F149: =FEP100to249!$D14/FEP100to249!$D$19 -> 0.1846588511 | G149: =FEP250to999!$D14/FEP250to999!$D$19 -> 0.2838024374 | H149: =FEP1000to4999!$D14/FEP1000to4999!$D$19 -> 0.389919265 | I149: =FEP5000Up!$D14/FEP5000Up!$D$19 -> 0.3031201551 | J149: 50a | K149: 44
A150: 51a | B150: Gifts they gave in Year2 | D150: =FEPdata!$E14 -> 2542178181 | E150: =FEP100Dn!$E14 -> 13453923 | F150: =FEP100to249!$E14 -> 41020430 | G150: =FEP250to999!$E14 -> 160454265 | H150: =FEP1000to4999!$E14 -> 507190034 | I150: =FEP5000Up!$E14 -> 1820059529 | M150: =SUM(E150:I150)-D150 -> 0
A151: 51 | B151: % of gifts they gave in Year2 | D151: =FEPdata!$E14/FEPdata!$E$19 -> 0.4143228166 | E151: =FEP100Dn!$E14/FEP100Dn!$E$19 -> 0.1378422995 | F151: =FEP100to249!$E14/FEP100to249!$E$19 -> 0.2195767962 | G151: =FEP250to999!$E14/FEP250to999!$E$19 -> 0.355980428 | H151: =FEP1000to4999!$E14/FEP1000to4999!$E$19 -> 0.4901917256 | I151: =FEP5000Up!$E14/FEP5000Up!$E$19 -> 0.4168800316 | J151: 51a | K151: 45
A152: 51b | B152: Upgrade dollar rate in Year2 | C152: * | D152: =(D150-D173)/D173 -> 1.084181035 | E152: 0.7309718097 | F152: 0.825369017 | G152: 0.8529173018 | H152: 0.8911050488 | I152: 1.180466277 | J152: 51a-59a | K152: 59a
A153: Same gift donors in Year2
A154: 52a | B154: Same gift donors in Year2 | D154: =FEPdata!$D15 -> 800406 | E154: =FEP100Dn!$D15 -> 330594 | F154: =FEP100to249!$D15 -> 223159 | G154: =FEP250to999!$D15 -> 144284 | H154: =FEP1000to4999!$D15 -> 75414 | I154: =FEP5000Up!$D15 -> 26955 | M154: =SUM(E154:I154)-D154 -> 0
A155: 52 | B155: Same gift donors in Year2 % | D155: =FEPdata!$D15/FEPdata!$D$19 -> 0.122762146 | E155: =FEP100Dn!$D15/FEP100Dn!$D$19 -> 0.118698856 | F155: =FEP100to249!$D15/FEP100to249!$D$19 -> 0.1395519135 | G155: =FEP250to999!$D15/FEP250to999!$D$19 -> 0.1192603222 | H155: =FEP1000to4999!$D15/FEP1000to4999!$D$19 -> 0.107023193 | I155: =FEP5000Up!$D15/FEP5000Up!$D$19 -> 0.1218365659 | J155: 52a | K155: 44
A156: 53a | B156: Gifts they gave in Year2 | D156: =FEPdata!$E15 -> 543429706 | E156: =FEP100Dn!$E15 -> 11730780 | F156: =FEP100to249!$E15 -> 24253368 | G156: =FEP250to999!$E15 -> 48390402 | H156: =FEP1000to4999!$E15 -> 94125107 | I156: =FEP5000Up!$E15 -> 364930049 | M156: =SUM(E156:I156)-D156 -> 0
A157: 53 | B157: % of gifts they gave in Year2 | D157: =FEPdata!$E15/FEPdata!$E$19 -> 0.08856787777 | E157: =FEP100Dn!$E15/FEP100Dn!$E$19 -> 0.1201878211 | F157: =FEP100to249!$E15/FEP100to249!$E$19 -> 0.1298249883 | G157: =FEP250to999!$E15/FEP250to999!$E$19 -> 0.1073579192 | H157: =FEP1000to4999!$E15/FEP1000to4999!$E$19 -> 0.09097053477 | I157: =FEP5000Up!$E15/FEP5000Up!$E$19 -> 0.0835863047 | J157: 53a | K157: 45
A158: Downgraded donors in Year2 %
A159: 54a | B159: Downgraded donors in Year2 % | D159: =FEPdata!$D16 -> 900594 | E159: =FEP100Dn!$D16 -> 216544 | F159: =FEP100to249!$D16 -> 230550 | G159: =FEP250to999!$D16 -> 247312 | H159: =FEP1000to4999!$D16 -> 143873 | I159: =FEP5000Up!$D16 -> 62315 | M159: =SUM(E159:I159)-D159 -> 0
A160: 54 | B160: Downgraded donors in Year2 % | D160: =FEPdata!$D16/FEPdata!$D$19 -> 0.1381284649 | E160: =FEP100Dn!$D16/FEP100Dn!$D$19 -> 0.07774952076 | F160: =FEP100to249!$D16/FEP100to249!$D$19 -> 0.1441738566 | G160: =FEP250to999!$D16/FEP250to999!$D$19 -> 0.2044198164 | H160: =FEP1000to4999!$D16/FEP1000to4999!$D$19 -> 0.2041762518 | I160: =FEP5000Up!$D16/FEP5000Up!$D$19 -> 0.2816637211 | J160: 54a | K160: 44
A161: 55a | B161: Gifts they gave in Year2 | D161: =FEPdata!$E16 -> 987977453 | E161: =FEP100Dn!$E16 -> 5776946 | F161: =FEP100to249!$E16 -> 16882707 | G161: =FEP250to999!$E16 -> 54446939 | H161: =FEP1000to4999!$E16 -> 121798849 | I161: =FEP5000Up!$E16 -> 789072012 | M161: =SUM(E161:I161)-D161 -> 0
A162: 55 | B162: % of gifts they gave in Year2 | D162: =FEPdata!$E16/FEPdata!$E$19 -> 0.1610200277 | E162: =FEP100Dn!$E16/FEP100Dn!$E$19 -> 0.05918775668 | F162: =FEP100to249!$E16/FEP100to249!$E$19 -> 0.09037083996 | G162: =FEP250to999!$E16/FEP250to999!$E$19 -> 0.1207948237 | H162: =FEP1000to4999!$E16/FEP1000to4999!$E$19 -> 0.1177168003 | I162: =FEP5000Up!$E16/FEP5000Up!$E$19 -> 0.1807349485 | J162: 55a | K162: 45
I163: Page 5
A164: Ind No. | B164: FEP Gain/Loss Fundraising Performance Indicator | C164: Key | D164: All Donors | E164: Donors Under $100 | F164: $100 to $249 | G164: $250 to $999 | H164: $1,000 to $4,999 | I164: Donors $5,000 & Up | J164: Num | K164: Denom | L164: Dupe
A166: What Year1 donors did in Year2
A167: 56 | B167: Total number of Year 1 donors | D167: =FEPdata!$B19 -> 6482976 | E167: =FEP100Dn!$B19 -> 2758731 | F167: =FEP100to249!$B19 -> 1594832 | G167: =FEP250to999!$B19 -> 1205364 | H167: =FEP1000to4999!$B19 -> 697523 | I167: =FEP5000Up!$B19 -> 226526 | L167: 14 | M167: =SUM(E167:I167)-D167 -> 0
A168: 57 | B168: Total gifts they gave in Year1 | D168: =FEPdata!$C19 -> 5856505878 | E168: =FEP100Dn!$C19 -> 93985610 | F168: =FEP100to249!$C19 -> 176080836 | G168: =FEP250to999!$C19 -> 399201524 | H168: =FEP1000to4999!$C19 -> 859284660 | I168: =FEP5000Up!$C19 -> 4327953248 | L168: 17a | M168: =SUM(E168:I168)-D168 -> 0
A169: Repeat donors - upgraded:
A170: 58a | B170: Year1 donors that upgraded in Year2 | D170: =FEPdata!$B14 -> 1261163 | E170: =FEP100Dn!$B14 -> 280703 | F170: =FEP100to249!$B14 -> 295290 | G170: =FEP250to999!$B14 -> 343351 | H170: =FEP1000to4999!$B14 -> 274757 | I170: =FEP5000Up!$B14 -> 67062 | M170: =SUM(E170:I170)-D170 -> 0
A171: 58 | B171: Year1 donors that upgraded % | C171: * | D171: =FEPdata!$B14/FEPdata!$B$19 -> 0.1945345779 | E171: =FEP100Dn!$B14/FEP100Dn!$B$19 -> 0.1017507687 | F171: =FEP100to249!$B14/FEP100to249!$B$19 -> 0.1851542984 | G171: =FEP250to999!$B14/FEP250to999!$B$19 -> 0.2848525425 | H171: =FEP1000to4999!$B14/FEP1000to4999!$B$19 -> 0.3939038569 | I171: =FEP5000Up!$B14/FEP5000Up!$B$19 -> 0.2960454871 | J171: 58a | K171: 56
A172: 58b | B172: Upgraded donors as % of repeat donors | C172: * | D172: =D170/D$191 -> 0.4257574617 | E172: 0.3390783979 | F172: 0.3942461872 | G172: 0.4671779053 | H172: 0.5561387245 | I172: 0.4289716757 | J172: 58a | K172: 64a
A173: 59a | B173: Gifts upgraded-donors gave in Year1 | D173: =FEPdata!$C14 -> 1219749215 | E173: =FEP100Dn!$C14 -> 7772468 | F173: =FEP100to249!$C14 -> 22472404 | G173: =FEP250to999!$C14 -> 86595481 | H173: =FEP1000to4999!$C14 -> 268197705 | I173: =FEP5000Up!$C14 -> 834711157 | M173: =SUM(E173:I173)-D173 -> 0
A174: 59 | B174: % of Year1 gifts | D174: =FEPdata!$C14/FEPdata!$C$19 -> 0.2082725161 | E174: =FEP100Dn!$C14/FEP100Dn!$C$19 -> 0.08269848969 | F174: =FEP100to249!$C14/FEP100to249!$C$19 -> 0.1276254958 | G174: =FEP250to999!$C14/FEP250to999!$C$19 -> 0.2169217195 | H174: =FEP1000to4999!$C14/FEP1000to4999!$C$19 -> 0.3121174129 | I174: =FEP5000Up!$C14/FEP5000Up!$C$19 -> 0.1928651049 | J174: 59a | K174: 57
A175: 59b | B175: Upgraded gifts as % of repeat gifts | D175: =D173/D$193 -> 0.3131206753 | E175: 0.2627553766 | F175: 0.2883422731 | G175: 0.3667523469 | H175: 0.4516606187 | I175: 0.2821852598 | J175: 59a | K175: 65a
A176: Repeat donors - same:
A177: 60a | B177: Year1 donors that gave same in Year2 | D177: =FEPdata!$B15 -> 800406 | E177: =FEP100Dn!$B15 -> 330594 | F177: =FEP100to249!$B15 -> 223159 | G177: =FEP250to999!$B15 -> 144284 | H177: =FEP1000to4999!$B15 -> 75414 | I177: =FEP5000Up!$B15 -> 26955 | M177: =SUM(E177:I177)-D177 -> 0
A178: 60 | B178: Year1 donors that gave same % | D178: =FEPdata!$B15/FEPdata!$B$19 -> 0.123462743 | E178: =FEP100Dn!$B15/FEP100Dn!$B$19 -> 0.1198355331 | F178: =FEP100to249!$B15/FEP100to249!$B$19 -> 0.1399263371 | G178: =FEP250to999!$B15/FEP250to999!$B$19 -> 0.1197016005 | H178: =FEP1000to4999!$B15/FEP1000to4999!$B$19 -> 0.108116865 | I178: =FEP5000Up!$B15/FEP5000Up!$B$19 -> 0.1189929633 | J178: 60a | K178: 56
A179: 60b | B179: Same donors as % of repeat donors | C179: * | D179: =D177/D$191 -> 0.2702099783 | E179: 0.3993448017 | F179: 0.2979429879 | G179: 0.1963189182 | H179: 0.152646323 | I179: 0.1724215132 | J179: 60a | K179: 64a
A180: 61a | B180: Gifts same-donors gave in Year1 | D180: =FEPdata!$C15 -> 543429706 | E180: =FEP100Dn!$C15 -> 11730780 | F180: =FEP100to249!$C15 -> 24253368 | G180: =FEP250to999!$C15 -> 48390402 | H180: =FEP1000to4999!$C15 -> 94125107 | I180: =FEP5000Up!$C15 -> 364930049 | M180: =SUM(E180:I180)-D180 -> 0
A181: 61 | B181: % of Year1 gifts | D181: =FEPdata!$C15/FEPdata!$C$19 -> 0.09279077274 | E181: =FEP100Dn!$C15/FEP100Dn!$C$19 -> 0.1248146392 | F181: =FEP100to249!$C15/FEP100to249!$C$19 -> 0.1377399639 | G181: =FEP250to999!$C15/FEP250to999!$C$19 -> 0.1212179791 | H181: =FEP1000to4999!$C15/FEP1000to4999!$C$19 -> 0.1095389123 | I181: =FEP5000Up!$C15/FEP5000Up!$C$19 -> 0.08431931402 | J181: 61a | K181: 57
A182: 61b | B182: Same gifts as % of repeat gifts | D182: =D180/D$193 -> 0.1395033294 | E182: 0.3965697275 | F182: 0.3111937316 | G182: 0.2049447996 | H182: 0.1585121844 | I182: 0.1233694792 | J182: 61a | K182: 65a
A183: Repeat donors - downgraded:
A184: 62a | B184: Year1 donors that downgraded in Year2 | D184: =FEPdata!$B16 -> 900594 | E184: =FEP100Dn!$B16 -> 216544 | F184: =FEP100to249!$B16 -> 230550 | G184: =FEP250to999!$B16 -> 247312 | H184: =FEP1000to4999!$B16 -> 143873 | I184: =FEP5000Up!$B16 -> 62315 | M184: =SUM(E184:I184)-D184 -> 0
A185: 62 | B185: Year1 donors that downgraded % | D185: =FEPdata!$B16/FEPdata!$B$19 -> 0.1389167567 | E185: =FEP100Dn!$B16/FEP100Dn!$B$19 -> 0.07849406122 | F185: =FEP100to249!$B16/FEP100to249!$B$19 -> 0.144560681 | G185: =FEP250to999!$B16/FEP250to999!$B$19 -> 0.2051761957 | H185: =FEP1000to4999!$B16/FEP1000to4999!$B$19 -> 0.2062627326 | I185: =FEP5000Up!$B16/FEP5000Up!$B$19 -> 0.2750898352 | J185: 62a | K185: 56
A186: 62b | B186: Downgraded donors as % of repeat donors | D186: =D184/D$191 -> 0.30403256 | E186: 0.2615768004 | F186: 0.3078108248 | G186: 0.3365031764 | H186: 0.2912149525 | I186: 0.3986068111 | J186: 62a | K186: 64a
A187: 63a | B187: Gifts downgraded-donors gave in Year1 | D187: =FEPdata!$C16 -> 2132281556 | E187: =FEP100Dn!$C16 -> 10077376 | F187: =FEP100to249!$C16 -> 31210785 | G187: =FEP250to999!$C16 -> 101128437 | H187: =FEP1000to4999!$C16 -> 231480796 | I187: =FEP5000Up!$C16 -> 1758384162 | M187: =SUM(E187:I187)-D187 -> 0
A188: 63 | B188: % of Year1 gifts | D188: =FEPdata!$C16/FEPdata!$C$19 -> 0.364087666 | E188: =FEP100Dn!$C16/FEP100Dn!$C$19 -> 0.1072225418 | F188: =FEP100to249!$C16/FEP100to249!$C$19 -> 0.1772525944 | G188: =FEP250to999!$C16/FEP250to999!$C$19 -> 0.2533267809 | H188: =FEP1000to4999!$C16/FEP1000to4999!$C$19 -> 0.2693877905 | I188: =FEP5000Up!$C16/FEP5000Up!$C$19 -> 0.4062853874 | J188: 63a | K188: 57
A189: 63b | B189: Downgraded gifts as % of repeat gifts | D189: =D187/D$193 -> 0.5473759954 | E189: 0.3406748958 | F189: 0.4004639953 | G189: 0.4283028535 | H189: 0.3898271969 | I189: 0.594445261 | J189: 62a | K189: 65a
A190: What Year1 repeat donors did in Year2
A191: 64a | B191: Total Year1 repeat donors | D191: =D170+D177+D184 -> 2962163 | E191: 827841 | F191: 748999 | G191: 734947 | H191: 494044 | I191: 156332 | M191: =SUM(E191:I191)-D191 -> 0
A192: 64 | B192: Total Year1 repeat donors % | D192: =D171+D178+D185 -> 0.4569140777 | E192: 0.300080363 | F192: 0.4696413165 | G192: 0.6097303387 | H192: 0.7082834545 | I192: 0.6901282855 | J192: 64a | K192: 56 | L192: 3
A193: 65a | B193: Gifts repeat donors gave in Year1 | D193: =D173+D180+D187 -> 3895460477 | E193: 29580624 | F193: =F173+F180+F187 -> 77936557 | G193: 236114320 | H193: 593803608 | I193: 2958025368 | M193: =SUM(E193:I193)-D193 -> 0
A194: 65 | B194: % of Year1 gifts | D194: 0.6651509549 | E194: 0.3147356707 | F194: 0.4426180541 | G194: 0.5914664795 | H194: 0.6910441157 | I194: 0.6834698063 | J194: 65a | K194: 57 | L194: 19g
I196: Page 6
A197: Ind No. | B197: FEP Gain/Loss Fundraising Performance Indicator | C197: Key | D197: All Donors | E197: Donors Under $100 | F197: $100 to $249 | G197: $250 to $999 | H197: $1,000 to $4,999 | I197: Donors $5,000 & Up | J197: Num | K197: Denom | L197: Dupe
A199: Lapsed donors (attrition):
A200: New Year1 donors that lapsed
A201: 66a | B201: New Year1 donors that lapsed | D201: =FEPdata!$B17 -> 2320303 | E201: =FEP100Dn!$B17 -> 1458224 | F201: =FEP100to249!$B17 -> 512650 | G201: =FEP250to999!$B17 -> 232821 | H201: =FEP1000to4999!$B17 -> 89204 | I201: =FEP5000Up!$B17 -> 27404 | L201: 7a
A202: 66 | B202: New Year1 donors that lapsed % | C202: * | D202: =FEPdata!$B17/FEPdata!$B$19 -> 0.3579070785 | E202: =FEP100Dn!$B17/FEP100Dn!$B$19 -> 0.5285850632 | F202: =FEP100to249!$B17/FEP100to249!$B$19 -> 0.3214445158 | G202: =FEP250to999!$B17/FEP250to999!$B$19 -> 0.1931541012 | H202: =FEP1000to4999!$B17/FEP1000to4999!$B$19 -> 0.1278868224 | I202: =FEP5000Up!$B17/FEP5000Up!$B$19 -> 0.1209750757 | J202: 66a | K202: 56
A203: 67a | B203: Gifts lapsed-new-donors gave in Year1 | D203: =FEPdata!$C17 -> 1001950771 | E203: =FEP100Dn!$C17 -> 48383813 | F203: =FEP100to249!$C17 -> 65447678 | G203: =FEP250to999!$C17 -> 97394932 | H203: =FEP1000to4999!$C17 -> 147986427 | I203: =FEP5000Up!$C17 -> 642737921
A204: 67 | B204: % of Year1 gifts | D204: =FEPdata!$C17/FEPdata!$C$19 -> 0.1710833715 | E204: =FEP100Dn!$C17/FEP100Dn!$C$19 -> 0.5148002231 | F204: =FEP100to249!$C17/FEP100to249!$C$19 -> 0.3716910908 | G204: =FEP250to999!$C17/FEP250to999!$C$19 -> 0.2439743492 | H204: =FEP1000to4999!$C17/FEP1000to4999!$C$19 -> 0.1722204921 | I204: =FEP5000Up!$C17/FEP5000Up!$C$19 -> 0.1485085176 | J204: 67a | K204: 57
A205: Repeat Year1 donors that lapsed
A206: 68a | B206: Repeat Year1 donors that lapsed | D206: =FEPdata!$B18 -> 1200510 | E206: =FEP100Dn!$B18 -> 472666 | F206: =FEP100to249!$B18 -> 333183 | G206: =FEP250to999!$B18 -> 237596 | H206: =FEP1000to4999!$B18 -> 114275 | I206: =FEP5000Up!$B18 -> 42790 | L206: 7b
A207: 68 | B207: Repeat Year1 donors that lapsed % | C207: * | D207: =FEPdata!$B18/FEPdata!$B$19 -> 0.1851788438 | E207: =FEP100Dn!$B18/FEP100Dn!$B$19 -> 0.1713345738 | F207: =FEP100to249!$B18/FEP100to249!$B$19 -> 0.2089141678 | G207: =FEP250to999!$B18/FEP250to999!$B$19 -> 0.1971155601 | H207: =FEP1000to4999!$B18/FEP1000to4999!$B$19 -> 0.1638297232 | I207: =FEP5000Up!$B18/FEP5000Up!$B$19 -> 0.1888966388 | J207: 68a | K207: 56
A208: 69a | B208: Gifts lapsed-repeat-donors gave in Year1 | D208: =FEPdata!$C18 -> 959094630 | E208: =FEP100Dn!$C18 -> 16021173 | F208: =FEP100to249!$C18 -> 32696601 | G208: =FEP250to999!$C18 -> 65692272 | H208: =FEP1000to4999!$C18 -> 117494625 | I208: =FEP5000Up!$C18 -> 727189959
A209: 69 | B209: % of Year1 gifts | D209: =FEPdata!$C18/FEPdata!$C$19 -> 0.1637656736 | E209: =FEP100Dn!$C18/FEP100Dn!$C$19 -> 0.1704641062 | F209: =FEP100to249!$C18/FEP100to249!$C$19 -> 0.1856908551 | G209: =FEP250to999!$C18/FEP250to999!$C$19 -> 0.1645591714 | H209: =FEP1000to4999!$C18/FEP1000to4999!$C$19 -> 0.1367353922 | I209: =FEP5000Up!$C18/FEP5000Up!$C$19 -> 0.1680216761 | J209: 69a | K209: 57
A210: Total Year1 lapsed donors
A211: 70a | B211: Total Year1 lapsed donors | D211: =D201+D206 -> 3520813 | E211: 1930890 | F211: 845833 | G211: 470417 | H211: 203479 | I211: 70194
A212: 70 | B212: Total Year1 lapsed donors % | D212: 0.5430859223 | E212: 0.699919637 | F212: 0.5303586835 | G212: 0.3902696613 | H212: 0.2917165455 | I212: 0.3098717145 | J212: 70a | K212: 56
A213: 71a | B213: Gifts all-lapsed-donors gave in Year1 | D213: 1961045401 | E213: 64404986 | F213: 98144279 | G213: 163087204 | H213: 265481052 | I213: 1369927880
A214: 71 | B214: % of Year1 gifts | D214: 0.3348490451 | E214: 0.6852643293 | F214: 0.5573819459 | G214: 0.4085335205 | H214: 0.3089558843 | I214: 0.3165301937 | J214: 71a | K214: 57
A216: Monthly donors:
A217: 72 | B217: Monthly donors in Year2 | D217: =FEPdata!$D$26 -> 0.05 | E217: =FEP100Dn!$D$26 -> 0.01 | F217: =FEP100to249!$D$26 -> 0.01 | G217: =FEP250to999!$D$26 -> 0.01 | H217: =FEP1000to4999!$D$26 -> 0.01 | I217: =FEP5000Up!$D$26 -> 0.01 | M217: =SUM(E217:I217)-D217 -> 0
A218: 73 | B218: Monthly as % of Year2 donors | D218: =D217/D56 -> 7.668742237e-09 | E218: 3.590472179e-09 | F218: 6.253474587e-09 | G218: 8.265665088e-09 | H218: 1.419142242e-08 | I218: 4.519998734e-08 | J218: 72 | K218: 15
A219: 74 | B219: % of total monthly donors/database | D219: =D217/D112 -> 1 | E219: 1 | F219: 1 | G219: 1 | H219: 1 | I219: 1 | J219: 72 | K219: 77
A220: 75 | B220: Monthly donor gifts in Year2 | D220: =FEPdata!$E$26 -> 0.05 | E220: =FEP100Dn!$E$26 -> 0.01 | F220: =FEP100to249!$E$26 -> 0.01 | G220: =FEP250to999!$E$26 -> 0.01 | H220: =FEP1000to4999!$E$26 -> 0.01 | I220: =FEP5000Up!$E$26 -> 0.01 | M220: =SUM(E220:I220)-D220 -> 0
A221: 76 | B221: Monthly as % of Year2 gifts | D221: =D220/D135 -> 8.148972791e-12 | E221: 1.024550977e-10 | F221: 5.352864322e-11 | G221: 2.218578783e-11 | H221: 9.664853265e-12 | I221: 2.290474707e-12 | J221: 75 | K221: 17
A222: 77 | B222: Total monthly donors/database | D222: =FEPdata!$K$25 -> 0.05 | E222: =FEP100Dn!$K$25 -> 0.01 | F222: =FEP100to249!$K$25 -> 0.01 | G222: =FEP250to999!$K$25 -> 0.01 | H222: =FEP1000to4999!$K$25 -> 0.01 | I222: =FEP5000Up!$K$25 -> 0.01 | M222: =SUM(E222:I222)-D222 -> 0
A224: Number of gifts
A225: 78a | B225: Total donors in Year2 | D225: =D127 -> 6519974 | E225: 2785149 | F225: 1599111 | G225: 1209824 | H225: 704651 | I225: 221239 | L225: 41 | M225: =SUM(E225:I225)-D225 -> 0
A226: 78b | B226: Total gifts in Year2 | D226: =D121 -> 6135742661 | E226: 97603733 | F226: 186815869 | G226: 450739008 | H226: 1034676857 | I226: 4365907194 | M226: =SUM(E226:I226)-D226 -> 0
... 3 more rows

Sheet Yr1 (hidden)
A1: Yr1 | C1: Fundraising Effectiveness Survey
A3: Growth-in-Giving is measured for Year 2:
D4: Year 2 | E4: 2016
A5: All donors | B5: All
A6: Gain(Loss) Data - Software Extract for Year 2 and Year 1 data
B8: Number of | C8: Amount of | D8: Number of | E8: Amount of
A9: Gain(Loss) | B9: =$E$4-1 -> 2015 | C9: =$E$4-1 -> 2015 | D9: =$E$4 -> 2016 | E9: =$E$4 -> 2016
A10: Category | B10: Donors | C10: Gifts ($) | D10: Donors | E10: Gifts ($)
A12: New | B12: n/a | C12: n/a | D12: =D41+D70+D99+D128+D157 -> 2910125 | E12: 1515579372
A13: Recaptured | B13: n/a | C13: n/a | D13: 647686 | E13: 546577949
A14: Upgraded | B14: =B43+B72+B101+B130+B159 -> 1261163 | C14: 1219749215 | D14: 1261163 | E14: 2542178181
A15: Same | B15: 800406 | C15: 543429706 | D15: 800406 | E15: 543429706
A16: Downgraded | B16: 900594 | C16: 2132281556 | D16: 900594 | E16: 987977453
A17: Lapsed new | B17: 2320303 | C17: 1001950771 | D17: n/a | E17: n/a
A18: Lapsed repeat | B18: 1200510 | C18: 959094630 | D18: n/a | E18: n/a
A19: Total | B19: 6482976 | C19: 5856505878 | D19: =D48+D77+D106+D135+D164 -> 6519974 | E19: =E48+E77+E106+E135+E164 -> 6135742661
B21: Number | C21: Gift$
A22: New in year 1 | B22: =B51+B80+B109+B138+B167 -> 3327819 | C22: =C51+C80+C109+C138+C167 -> 1949620453 | D22: <-- i.e., last year's new donors and gift$
A23: Database EOY1 | B23: =B52+B81+B110+B139+B168 -> 20077733 | D23: <-- i.e., Total number of donors on file at end of Year1
A24: One time donors | B24: =B53+B82+B111+B140+B169 -> 11908212 | C24: =C53+C82+C111+C140+C169 -> 4311993915 | D24: <-- i.e., Number of one-time donors and gifts
A25: Recaptured lapsed 1 year | D25: =D54+D83+D112+D141+D170 -> 361965 | E25: =E54+E83+E112+E141+E170 -> 329876861 | F25: <-- Portion of Recaptured
A26: Monthly donors in Year2 | D26: =D55+D84+D113+D142+D171 -> 0.05 | E26: =E55+E84+E113+E142+E171 -> 0.05 | F26: <-- i.e., Year2 donors making 6 to 24 gifts.
B27: =B56+B85+B114+B143+B172 -> 22987858 | C27: <-- total # of donors on file | E27: =E56+E85+E114+E143+E172 -> 14994139 | F27: <-- Total # of gifts in Year2 (vs #donors)
B28: =B57+B86+B115+B144+B173 -> 0.05 | C28: =C57+C86+C115+C144+C173 -> 0.05 | D28: <-- Total # & $ for monthly donors in database
B29: =B58+B87+B116+B145+B174 -> 0.05 | C29: =C58+C87+C116+C145+C174 -> 0.05 | D29: <-- Portion NEW monthly donors in Year2
A34: Under $100 | B34: A 100 dn
A35: Gain(Loss) Data - Software Extract for Year 2 and Year 1 data
B37: Number of | C37: Amount of | D37: Number of | E37: Amount of
A38: Gain(Loss) | B38: =$E$4-1 -> 2015 | C38: =$E$4-1 -> 2015 | D38: =$E$4 -> 2016 | E38: =$E$4 -> 2016
A39: Category | B39: Donors | C39: Gifts ($) | D39: Donors | E39: Gifts ($)
A41: New | B41: n/a | C41: n/a | D41: 1698466 | E41: 57932675 | F41: 5
A42: Recaptured | B42: n/a | C42: n/a | D42: 258842 | E42: 8709409
A43: Upgraded | B43: =D43 -> 280703 | C43: 7772468 | D43: 280703 | E43: 13453923
A44: Same | B44: =D44 -> 330594 | C44: 11730780 | D44: 330594 | E44: 11730780
A45: Downgraded | B45: =D45 -> 216544 | C45: 10077376 | D45: 216544 | E45: 5776946
A46: Lapsed new | B46: 1458224 | C46: 48383813 | D46: n/a | E46: n/a
A47: Lapsed repeat | B47: 472666 | C47: 16021173 | D47: n/a | E47: n/a
A48: Total | B48: =SUM(B43:B47) -> 2758731 | C48: =SUM(C43:C47) -> 93985610 | D48: =SUM(D41:D45) -> 2785149 | E48: =SUM(E41:E45) -> 97603733
B50: Number | C50: Gift$
A51: New in year 1 | B51: 1833543 | C51: 61198019 | D51: <-- i.e., last year's new donors and gift$
A52: Database EOY1 | B52: 11078571 | D52: <-- i.e., Total number of donors on file at end of Year1
A53: One time donors | B53: 8078146 | C53: 254110144 | D53: <-- i.e., Number of one-time donors and gifts
A54: Recaptured lapsed 1 year | D54: 138648 | E54: 4802430 | F54: <-- Portion of Recaptured
A55: Monthly donors in Year2 | D55: 0.01 | E55: 0.01 | F55: <-- i.e., Year2 donors making 6 to 24 gifts.
B56: 12777037 | C56: <-- total # of donors on file | E56: 3589253 | F56: <-- Total # of gifts in Year2 (vs #donors)
B57: 0.01 | C57: 0.01 | D57: <-- Total # & $ for monthly donors in database
B58: 0.01 | C58: 0.01 | D58: <-- Portion NEW monthly donors in Year2
A63: $100 to $249 | B63: B 100-249
A64: Gain(Loss) Data - Software Extract for Year 2 and Year 1 data
B66: Number of | C66: Amount of | D66: Number of | E66: Amount of
A67: Gain(Loss) | B67: =$E$4-1 -> 2015 | C67: =$E$4-1 -> 2015 | D67: =$E$4 -> 2016 | E67: =$E$4 -> 2016
A68: Category | B68: Donors | C68: Gifts ($) | D68: Donors | E68: Gifts ($)
A70: New | B70: n/a | C70: n/a | D70: 663112 | E70: 86379457 | F70: 6
A71: Recaptured | B71: n/a | C71: n/a | D71: 187000 | E71: 18279907
A72: Upgraded | B72: =D72 -> 295290 | C72: 22472404 | D72: 295290 | E72: 41020430
A73: Same | B73: =D73 -> 223159 | C73: 24253368 | D73: 223159 | E73: 24253368
A74: Downgraded | B74: =D74 -> 230550 | C74: 31210785 | D74: 230550 | E74: 16882707
A75: Lapsed new | B75: 512650 | C75: 65447678 | D75: n/a | E75: n/a
A76: Lapsed repeat | B76: 333183 | C76: 32696601 | D76: n/a | E76: n/a
A77: Total | B77: =SUM(B72:B76) -> 1594832 | C77: =SUM(C72:C76) -> 176080836 | D77: =SUM(D70:D74) -> 1599111 | E77: =SUM(E70:E74) -> 186815869
B79: Number | C79: Gift$
A80: New in year 1 | B80: 771947 | C80: 93014845 | D80: <-- i.e., last year's new donors and gift$
A81: Database EOY1 | B81: 4558880 | D81: <-- i.e., Total number of donors on file at end of Year1
A82: One time donors | B82: 2348063 | C82: 298578364 | D82: <-- i.e., Number of one-time donors and gifts
A83: Recaptured lapsed 1 year | D83: 106095 | E83: 10534682 | F83: <-- Portion of Recaptured
A84: Monthly donors in Year2 | D84: 0.01 | E84: 0.01 | F84: <-- i.e., Year2 donors making 6 to 24 gifts.
B85: 5221992 | C85: <-- total # of donors on file | E85: 3057902 | F85: <-- Total # of gifts in Year2 (vs #donors)
B86: 0.01 | C86: 0.01 | D86: <-- Total # & $ for monthly donors in database
B87: 0.01 | C87: 0.01 | D87: <-- Portion NEW monthly donors in Year2
A92: $250 to $999 | B92: C 250-999
A93: Gain(Loss) Data - Software Extract for Year 2 and Year 1 data
B95: Number of | C95: Amount of | D95: Number of | E95: Amount of
A96: Gain(Loss) | B96: =$E$4-1 -> 2015 | C96: =$E$4-1 -> 2015 | D96: =$E$4 -> 2016 | E96: =$E$4 -> 2016
A97: Category | B97: Donors | C97: Gifts ($) | D97: Donors | E97: Gifts ($)
A99: New | B99: n/a | C99: n/a | D99: 355901 | E99: 154845821 | F99: 7
A100: Recaptured | B100: n/a | C100: n/a | D100: 118976 | E100: 32601581
A101: Upgraded | B101: =D101 -> 343351 | C101: 86595481 | D101: 343351 | E101: 160454265
A102: Same | B102: =D102 -> 144284 | C102: 48390402 | D102: 144284 | E102: 48390402
A103: Downgraded | B103: =D103 -> 247312 | C103: 101128437 | D103: 247312 | E103: 54446939
A104: Lapsed new | B104: 232821 | C104: 97394932 | D104: n/a | E104: n/a
A105: Lapsed repeat | B105: 237596 | C105: 65692272 | D105: n/a | E105: n/a
A106: Total | B106: =SUM(B101:B105) -> 1205364 | C106: =SUM(C101:C105) -> 399201524 | D106: =SUM(D99:D103) -> 1209824 | E106: =SUM(E99:E103) -> 450739008
B108: Number | C108: Gift$
A109: New in year 1 | B109: 440630 | C109: 163190107 | D109: <-- i.e., last year's new donors and gift$
A110: Database EOY1 | B110: 2710616 | D110: <-- i.e., Total number of donors on file at end of Year1
A111: One time donors | B111: 1000961 | C111: 416908122 | D111: <-- i.e., Number of one-time donors and gifts
A112: Recaptured lapsed 1 year | D112: 68854 | E112: 19037849 | F112: <-- Portion of Recaptured
A113: Monthly donors in Year2 | D113: 0.01 | E113: 0.01 | F113: <-- i.e., Year2 donors making 6 to 24 gifts.
B114: 3066517 | C114: <-- total # of donors on file | E114: 4178994 | F114: <-- Total # of gifts in Year2 (vs #donors)
B115: 0.01 | C115: 0.01 | D115: <-- Total # & $ for monthly donors in database
B116: 0.01 | C116: 0.01 | D116: <-- Portion NEW monthly donors in Year2
A121: $1,000 to $4,999 | B121: D 1,000-4,999
A122: Gain(Loss) Data - Software Extract for Year 2 and Year 1 data
B124: Number of | C124: Amount of | D124: Number of | E124: Amount of
A125: Gain(Loss) | B125: =$E$4-1 -> 2015 | C125: =$E$4-1 -> 2015 | D125: =$E$4 -> 2016 | E125: =$E$4 -> 2016
A126: Category | B126: Donors | C126: Gifts ($) | D126: Donors | E126: Gifts ($)
A128: New | B128: n/a | C128: n/a | D128: 151321 | E128: 249941785 | F128: 8
A129: Recaptured | B129: n/a | C129: n/a | D129: 59286 | E129: 61621082
A130: Upgraded | B130: =D130 -> 274757 | C130: 268197705 | D130: 274757 | E130: 507190034
A131: Same | B131: =D131 -> 75414 | C131: 94125107 | D131: 75414 | E131: 94125107
A132: Downgraded | B132: =D132 -> 143873 | C132: 231480796 | D132: 143873 | E132: 121798849
A133: Lapsed new | B133: 89204 | C133: 147986427 | D133: n/a | E133: n/a
A134: Lapsed repeat | B134: 114275 | C134: 117494625 | D134: n/a | E134: n/a
A135: Total | B135: =SUM(B130:B134) -> 697523 | C135: =SUM(C130:C134) -> 859284660 | D135: =SUM(D128:D132) -> 704651 | E135: =SUM(E128:E132) -> 1034676857
B137: Number | C137: Gift$
A138: New in year 1 | B138: 220135 | C138: 291861483 | D138: <-- i.e., last year's new donors and gift$
A139: Database EOY1 | B139: 1303842 | D139: <-- i.e., Total number of donors on file at end of Year1
A140: One time donors | B140: 371207 | C140: 610552297 | D140: <-- i.e., Number of one-time donors and gifts
A141: Recaptured lapsed 1 year | D141: 34372 | E141: 36614879 | F141: <-- Portion of Recaptured
A142: Monthly donors in Year2 | D142: 0.01 | E142: 0.01 | F142: <-- i.e., Year2 donors making 6 to 24 gifts.
B143: 1455163 | C143: <-- total # of donors on file | E143: 3424634 | F143: <-- Total # of gifts in Year2 (vs #donors)
B144: 0.01 | C144: 0.01 | D144: <-- Total # & $ for monthly donors in database
B145: 0.01 | C145: 0.01 | D145: <-- Portion NEW monthly donors in Year2
A150: $5,000 and up | B150: E 5,000 up
A151: Gain(Loss) Data - Software Extract for Year 2 and Year 1 data
B153: Number of | C153: Amount of | D153: Number of | E153: Amount of
A154: Gain(Loss) | B154: =$E$4-1 -> 2015 | C154: =$E$4-1 -> 2015 | D154: =$E$4 -> 2016 | E154: =$E$4 -> 2016
A155: Category | B155: Donors | C155: Gifts ($) | D155: Donors | E155: Gifts ($)
A157: New | B157: n/a | C157: n/a | D157: 41325 | E157: 966479634 | F157: 9
A158: Recaptured | B158: n/a | C158: n/a | D158: 23582 | E158: 425365970
A159: Upgraded | B159: =D159 -> 67062 | C159: 834711157 | D159: 67062 | E159: 1820059529
A160: Same | B160: =D160 -> 26955 | C160: 364930049 | D160: 26955 | E160: 364930049
A161: Downgraded | B161: =D161 -> 62315 | C161: 1758384162 | D161: 62315 | E161: 789072012
A162: Lapsed new | B162: 27404 | C162: 642737921 | D162: n/a | E162: n/a
A163: Lapsed repeat | B163: 42790 | C163: 727189959 | D163: n/a | E163: n/a
A164: Total | B164: =SUM(B159:B163) -> 226526 | C164: =SUM(C159:C163) -> 4327953248 | D164: =SUM(D157:D161) -> 221239 | E164: =SUM(E157:E161) -> 4365907194
B166: Number | C166: Gift$
A167: New in year 1 | B167: 61564 | C167: 1340355999 | D167: <-- i.e., last year's new donors and gift$
A168: Database EOY1 | B168: 425824 | D168: <-- i.e., Total number of donors on file at end of Year1
A169: One time donors | B169: 109835 | C169: 2731844988 | D169: <-- i.e., Number of one-time donors and gifts
A170: Recaptured lapsed 1 year | D170: 13996 | E170: 258887021 | F170: <-- Portion of Recaptured
A171: Monthly donors in Year2 | D171: 0.01 | E171: 0.01 | F171: <-- i.e., Year2 donors making 6 to 24 gifts.
B172: 467149 | C172: <-- total # of donors on file | E172: 743356 | F172: <-- Total # of gifts in Year2 (vs #donors)
B173: 0.01 | C173: 0.01 | D173: <-- Total # & $ for monthly donors in database
B174: 0.01 | C174: 0.01 | D174: <-- Portion NEW monthly donors in Year2

Sheet Yr2 (hidden)
A1: Yr2 | C1: Fundraising Effectiveness Survey
A3: Growth-in-Giving is measured for Year 2:
D4: Year 2 | E4: 2015
A5: All donors | B5: All
A6: Gain(Loss) Data - Software Extract for Year 2 and Year 1 data
B8: Number of | C8: Amount of | D8: Number of | E8: Amount of
A9: Gain(Loss) | B9: =$E$4-1 -> 2014 | C9: =$E$4-1 -> 2014 | D9: =$E$4 -> 2015 | E9: =$E$4 -> 2015
A10: Category | B10: Donors | C10: Gifts ($) | D10: Donors | E10: Gifts ($)
A12: New | B12: n/a | C12: n/a | D12: =D41+D70+D99+D128+D157 -> 3327819 | E12: 1949620453
A13: Recaptured | B13: n/a | C13: n/a | D13: 637604 | E13: 515277791
A14: Upgraded | B14: =B43+B72+B101+B130+B159 -> 1069832 | C14: 1017267631 | D14: 1069832 | E14: 2139201556
A15: Same | B15: 701514 | C15: 457939726 | D15: 701514 | E15: 457939726
A16: Downgraded | B16: 746208 | C16: 1704341664 | D16: 746208 | E16: 794466355
A17: Lapsed new | B17: 1661925 | C17: 706345407 | D17: n/a | E17: n/a
A18: Lapsed repeat | B18: 980312 | C18: 745905132 | D18: n/a | E18: n/a
A19: Total | B19: =B48+B77+B106+B135+B164 -> 5159791 | C19: =C48+C77+C106+C135+C164 -> 4631799560 | D19: =D48+D77+D106+D135+D164 -> 6482977 | E19: =E48+E77+E106+E135+E164 -> 5856505881
B21: Number | C21: Gift$
A22: New in year 1 | B22: =B51+B80+B109+B138+B167 -> 2377199 | C22: =C51+C80+C109+C138+C167 -> 1331749796 | D22: <-- i.e., last year's new donors and gift$
A23: Database EOY1 | B23: =B52+B81+B110+B139+B168 -> 16749914 | D23: <-- i.e., Total number of donors on file at end of Year1
A24: One time donors | B24: =B53+B82+B111+B140+B169 -> 9590767 | C24: =C53+C82+C111+C140+C169 -> 3372040063 | D24: <-- i.e., Number of one-time donors and gifts
A25: Recaptured lapsed 1 year | D25: =D54+D83+D112+D141+D170 -> 342506 | E25: =E54+E83+E112+E141+E170 -> 285661910 | F25: <-- Portion of Recaptured
A26: Monthly donors in Year2 | D26: =D55+D84+D113+D142+D171 -> 0.05 | E26: =E55+E84+E113+E142+E171 -> 0.05 | F26: <-- i.e., Year2 donors making 6 to 24 gifts.
B27: =B56+B85+B114+B143+B172 -> 20077733 | C27: <-- total # of donors on file | E27: =E56+E85+E114+E143+E172 -> 13952751 | F27: <-- Total # of gifts in Year2 (vs #donors)
B28: =B57+B86+B115+B144+B173 -> 0.05 | C28: =C57+C86+C115+C144+C173 -> 0.05 | D28: <-- Total # & $ for monthly donors in database
B29: =B58+B87+B116+B145+B174 -> 0.05 | C29: =C58+C87+C116+C145+C174 -> 0.05 | D29: <-- Portion NEW monthly donors in Year2
A34: Under $100 | B34: A 100 dn
A35: Gain(Loss) Data - Software Extract for Year 2 and Year 1 data
B37: Number of | C37: Amount of | D37: Number of | E37: Amount of
A38: Gain(Loss) | B38: =$E$4-1 -> 2014 | C38: =$E$4-1 -> 2014 | D38: =$E$4 -> 2015 | E38: =$E$4 -> 2015
A39: Category | B39: Donors | C39: Gifts ($) | D39: Donors | E39: Gifts ($)
A41: New | B41: n/a | C41: n/a | D41: 1833543 | E41: 61198019 | F41: 10
A42: Recaptured | B42: n/a | C42: n/a | D42: 248720 | E42: 8166562
A43: Upgraded | B43: =D43 -> 223841 | C43: 5949853 | D43: 223841 | E43: 10400057
A44: Same | B44: =D44 -> 276127 | C44: 9599795 | D44: 276127 | E44: 9599795
A45: Downgraded | B45: =D45 -> 176501 | C45: 8018459 | D45: 176501 | E45: 4621180
A46: Lapsed new | B46: 1047990 | C46: 34437427 | D46: n/a | E46: n/a
A47: Lapsed repeat | B47: 388661 | C47: 12764549 | D47: n/a | E47: n/a
A48: Total | B48: =SUM(B43:B47) -> 2113120 | C48: =SUM(C43:C47) -> 70770083 | D48: =SUM(D41:D45) -> 2758732 | E48: =SUM(E41:E45) -> 93985613
B50: Number | C50: Gift$
A51: New in year 1 | B51: 1303582 | C51: 42864051 | D51: <-- i.e., last year's new donors and gift$
A52: Database EOY1 | B52: 9245028 | D52: <-- i.e., Total number of donors on file at end of Year1
A53: One time donors | B53: 6622017 | C53: 205774235 | D53: <-- i.e., Number of one-time donors and gifts
A54: Recaptured lapsed 1 year | D54: 126242 | E54: 4260680 | F54: <-- Portion of Recaptured
A55: Monthly donors in Year2 | D55: 0.01 | E55: 0.01 | F55: <-- i.e., Year2 donors making 6 to 24 gifts.
B56: 11078571 | C56: <-- total # of donors on file | E56: 3475992 | F56: <-- Total # of gifts in Year2 (vs #donors)
B57: 0.01 | C57: 0.01 | D57: <-- Total # & $ for monthly donors in database
B58: 0.01 | C58: 0.01 | D58: <-- Portion NEW monthly donors in Year2
A63: $100 to $249 | B63: B 100-249
A64: Gain(Loss) Data - Software Extract for Year 2 and Year 1 data
B66: Number of | C66: Amount of | D66: Number of | E66: Amount of
A67: Gain(Loss) | B67: =$E$4-1 -> 2014 | C67: =$E$4-1 -> 2014 | D67: =$E$4 -> 2015 | E67: =$E$4 -> 2015
A68: Category | B68: Donors | C68: Gifts ($) | D68: Donors | E68: Gifts ($)
A70: New | B70: n/a | C70: n/a | D70: 771947 | E70: 93014845 | F70: 11
A71: Recaptured | B71: n/a | C71: n/a | D71: 183931 | E71: 17213465
A72: Upgraded | B72: =D72 -> 251341 | C72: 17216433 | D72: 251341 | E72: 32763529
A73: Same | B73: =D73 -> 195007 | C73: 19671634 | D73: 195007 | E73: 19671634
A74: Downgraded | B74: =D74 -> 192606 | C74: 24740782 | D74: 192606 | E74: 13417365
A75: Lapsed new | B75: 365899 | C75: 45633967 | D75: n/a | E75: n/a
A76: Lapsed repeat | B76: 274074 | C76: 25710485 | D76: n/a | E76: n/a
A77: Total | B77: =SUM(B72:B76) -> 1278927 | C77: =SUM(C72:C76) -> 132973301 | D77: =SUM(D70:D74) -> 1594832 | E77: =SUM(E70:E74) -> 176080838
B79: Number | C79: Gift$
A80: New in year 1 | B80: 553771 | C80: 63628722 | D80: <-- i.e., last year's new donors and gift$
A81: Database EOY1 | B81: 3786933 | D81: <-- i.e., Total number of donors on file at end of Year1
A82: One time donors | B82: 1835879 | C82: 233174873 | D82: <-- i.e., Number of one-time donors and gifts
A83: Recaptured lapsed 1 year | D83: 100458 | E83: 9533810 | F83: <-- Portion of Recaptured
A84: Monthly donors in Year2 | D84: 0.01 | E84: 0.01 | F84: <-- i.e., Year2 donors making 6 to 24 gifts.
B85: 4558880 | C85: <-- total # of donors on file | E85: 2908399 | F85: <-- Total # of gifts in Year2 (vs #donors)
B86: 0.01 | C86: 0.01 | D86: <-- Total # & $ for monthly donors in database
B87: 0.01 | C87: 0.01 | D87: <-- Portion NEW monthly donors in Year2
A92: $250 to $999 | B92: C 250-999
A93: Gain(Loss) Data - Software Extract for Year 2 and Year 1 data
B95: Number of | C95: Amount of | D95: Number of | E95: Amount of
A96: Gain(Loss) | B96: =$E$4-1 -> 2014 | C96: =$E$4-1 -> 2014 | D96: =$E$4 -> 2015 | E96: =$E$4 -> 2015
A97: Category | B97: Donors | C97: Gifts ($) | D97: Donors | E97: Gifts ($)
A99: New | B99: n/a | C99: n/a | D99: 440630 | E99: 163190107 | F99: 12
A100: Recaptured | B100: n/a | C100: n/a | D100: 120552 | E100: 30948969
A101: Upgraded | B101: =D101 -> 302064 | C101: 65147700 | D101: 302064 | E101: 119893559
A102: Same | B102: =D102 -> 136550 | C102: 42582951 | D102: 136550 | E102: 42582951
A103: Downgraded | B103: =D103 -> 205568 | C103: 78857775 | D103: 205568 | E103: 42585936
A104: Lapsed new | B104: 165075 | C104: 66072306 | D104: n/a | E104: n/a
A105: Lapsed repeat | B105: 193734 | C105: 50213538 | D105: n/a | E105: n/a
A106: Total | B106: =SUM(B101:B105) -> 1002991 | C106: =SUM(C101:C105) -> 302874270 | D106: =SUM(D99:D103) -> 1205364 | E106: =SUM(E99:E103) -> 399201522
B108: Number | C108: Gift$
A109: New in year 1 | B109: 322236 | C109: 109152697 | D109: <-- i.e., last year's new donors and gift$
A110: Database EOY1 | B110: 2269986 | D110: <-- i.e., Total number of donors on file at end of Year1
A111: One time donors | B111: 768328 | C111: 319567273 | D111: <-- i.e., Number of one-time donors and gifts
A112: Recaptured lapsed 1 year | D112: 67809 | E112: 17619980 | F112: <-- Portion of Recaptured
A113: Monthly donors in Year2 | D113: 0.01 | E113: 0.01 | F113: <-- i.e., Year2 donors making 6 to 24 gifts.
B114: 2710616 | C114: <-- total # of donors on file | E114: 3878780 | F114: <-- Total # of gifts in Year2 (vs #donors)
B115: 0.01 | C115: 0.01 | D115: <-- Total # & $ for monthly donors in database
B116: 0.01 | C116: 0.01 | D116: <-- Portion NEW monthly donors in Year2
A121: $1,000 to $4,999 | B121: D 1,000-4,999
A122: Gain(Loss) Data - Software Extract for Year 2 and Year 1 data
B124: Number of | C124: Amount of | D124: Number of | E124: Amount of
A125: Gain(Loss) | B125: =$E$4-1 -> 2014 | C125: =$E$4-1 -> 2014 | D125: =$E$4 -> 2015 | E125: =$E$4 -> 2015
A126: Category | B126: Donors | C126: Gifts ($) | D126: Donors | E126: Gifts ($)
A128: New | B128: n/a | C128: n/a | D128: 220135 | E128: 291861483 | F128: 13
A129: Recaptured | B129: n/a | C129: n/a | D129: 60930 | E129: 58644774
A130: Upgraded | B130: =D130 -> 228742 | C130: 179120907 | D130: 228742 | E130: 335894798
A131: Same | B131: =D131 -> 69631 | C131: 79831098 | D131: 69631 | E131: 79831098
A132: Downgraded | B132: =D132 -> 118085 | C132: 176996547 | D132: 118085 | E132: 93052506
A133: Lapsed new | B133: 62932 | C133: 99088480 | D133: n/a | E133: n/a
A134: Lapsed repeat | B134: 90142 | C134: 86871067 | D134: n/a | E134: n/a
A135: Total | B135: =SUM(B130:B134) -> 569532 | C135: =SUM(C130:C134) -> 621908099 | D135: =SUM(D128:D132) -> 697523 | E135: =SUM(E128:E132) -> 859284659
B137: Number | C137: Gift$
A138: New in year 1 | B138: 151118 | C138: 185386345 | D138: <-- i.e., last year's new donors and gift$
A139: Database EOY1 | B139: 1083707 | D139: <-- i.e., Total number of donors on file at end of Year1
A140: One time donors | B140: 282065 | C140: 462643630 | D140: <-- i.e., Number of one-time donors and gifts
A141: Recaptured lapsed 1 year | D141: 34553 | E141: 34205188 | F141: <-- Portion of Recaptured
A142: Monthly donors in Year2 | D142: 0.01 | E142: 0.01 | F142: <-- i.e., Year2 donors making 6 to 24 gifts.
B143: 1303842 | C143: <-- total # of donors on file | E143: 2945102 | F143: <-- Total # of gifts in Year2 (vs #donors)
B144: 0.01 | C144: 0.01 | D144: <-- Total # & $ for monthly donors in database
B145: 0.01 | C145: 0.01 | D145: <-- Portion NEW monthly donors in Year2
A150: $5,000 and up | B150: E 5,000 up
A151: Gain(Loss) Data - Software Extract for Year 2 and Year 1 data
B153: Number of | C153: Amount of | D153: Number of | E153: Amount of
A154: Gain(Loss) | B154: =$E$4-1 -> 2014 | C154: =$E$4-1 -> 2014 | D154: =$E$4 -> 2015 | E154: =$E$4 -> 2015
A155: Category | B155: Donors | C155: Gifts ($) | D155: Donors | E155: Gifts ($)
A157: New | B157: n/a | C157: n/a | D157: 61564 | E157: 1340355999 | F157: 14
A158: Recaptured | B158: n/a | C158: n/a | D158: 23471 | E158: 400304021
A159: Upgraded | B159: =D159 -> 63844 | C159: 749832738 | D159: 63844 | E159: 1640249613
A160: Same | B160: =D160 -> 24199 | C160: 306254248 | D160: 24199 | E160: 306254248
A161: Downgraded | B161: =D161 -> 53448 | C161: 1415728101 | D161: 53448 | E161: 640789368
A162: Lapsed new | B162: 20029 | C162: 461113227 | D162: n/a | E162: n/a
A163: Lapsed repeat | B163: 33701 | C163: 570345493 | D163: n/a | E163: n/a
A164: Total | B164: =SUM(B159:B163) -> 195221 | C164: =SUM(C159:C163) -> 3503273807 | D164: =SUM(D157:D161) -> 226526 | E164: =SUM(E157:E161) -> 4327953249
B166: Number | C166: Gift$
A167: New in year 1 | B167: 46492 | C167: 930717981 | D167: <-- i.e., last year's new donors and gift$
A168: Database EOY1 | B168: 364260 | D168: <-- i.e., Total number of donors on file at end of Year1
A169: One time donors | B169: 82478 | C169: 2150880052 | D169: <-- i.e., Number of one-time donors and gifts
A170: Recaptured lapsed 1 year | D170: 13444 | E170: 220042252 | F170: <-- Portion of Recaptured
A171: Monthly donors in Year2 | D171: 0.01 | E171: 0.01 | F171: <-- i.e., Year2 donors making 6 to 24 gifts.
B172: 425824 | C172: <-- total # of donors on file | E172: 744478 | F172: <-- Total # of gifts in Year2 (vs #donors)
B173: 0.01 | C173: 0.01 | D173: <-- Total # & $ for monthly donors in database
B174: 0.01 | C174: 0.01 | D174: <-- Portion NEW monthly donors in Year2

Sheet Yr3 (hidden)
A1: Yr3 | C1: Fundraising Effectiveness Survey
A3: Growth-in-Giving is measured for Year 2:
D4: Year 2 | E4: 2014
A5: All donors | B5: All
A6: Gain(Loss) Data - Software Extract for Year 2 and Year 1 data
B8: Number of | C8: Amount of | D8: Number of | E8: Amount of
A9: Gain(Loss) | B9: =$E$4-1 -> 2013 | C9: =$E$4-1 -> 2013 | D9: =$E$4 -> 2014 | E9: =$E$4 -> 2014
A10: Category | B10: Donors | C10: Gifts ($) | D10: Donors | E10: Gifts ($)
A12: New | B12: n/a | C12: n/a | D12: =D41+D70+D99+D128+D157 -> 2377199 | E12: 1331749796
A13: Recaptured | B13: n/a | C13: n/a | D13: 607135 | E13: 483736826
A14: Upgraded | B14: =B43+B72+B101+B130+B159 -> 845414 | C14: 833906810 | D14: 845414 | E14: 1744135486
A15: Same | B15: 606402 | C15: 366258948 | D15: 606402 | E15: 366258948
A16: Downgraded | B16: 723642 | C16: 1450190753 | D16: 723642 | E16: 705918512
A17: Lapsed new | B17: 1329911 | C17: 551666114 | D17: n/a | E17: n/a
A18: Lapsed repeat | B18: 932185 | C18: 608608650 | D18: n/a | E18: n/a
A19: Total | B19: =B48+B77+B106+B135+B164 -> 4437554 | C19: =C48+C77+C106+C135+C164 -> 3810631275 | D19: =D48+D77+D106+D135+D164 -> 5159792 | E19: =E48+E77+E106+E135+E164 -> 4631799568
B21: Number | C21: Gift$
A22: New in year 1 | B22: =B51+B80+B109+B138+B167 -> 1794102 | C22: =C51+C80+C109+C138+C167 -> 955651089 | D22: <-- i.e., last year's new donors and gift$
A23: Database EOY1 | B23: =B52+B81+B110+B139+B168 -> 14372715 | D23: <-- i.e., Total number of donors on file at end of Year1
A24: One time donors | B24: =B53+B82+B111+B140+B169 -> 8068798 | C24: =C53+C82+C111+C140+C169 -> 2759400433 | D24: <-- i.e., Number of one-time donors and gifts
A25: Recaptured lapsed 1 year | D25: =D54+D83+D112+D141+D170 -> 325914 | E25: =E54+E83+E112+E141+E170 -> 273232420 | F25: <-- Portion of Recaptured
A26: Monthly donors in Year2 | D26: =D55+D84+D113+D142+D171 -> 0.05 | E26: =E55+E84+E113+E142+E171 -> 0.05 | F26: <-- i.e., Year2 donors making 6 to 24 gifts.
B27: =B56+B85+B114+B143+B172 -> 16749914 | C27: <-- total # of donors on file | E27: =E56+E85+E114+E143+E172 -> 10945523 | F27: <-- Total # of gifts in Year2 (vs #donors)
B28: =B57+B86+B115+B144+B173 -> 0.05 | C28: =C57+C86+C115+C144+C173 -> 0.05 | D28: <-- Total # & $ for monthly donors in database
B29: =B58+B87+B116+B145+B174 -> 0.05 | C29: =C58+C87+C116+C145+C174 -> 0.05 | D29: <-- Portion NEW monthly donors in Year2
A34: Under $100 | B34: A 100 dn
A35: Gain(Loss) Data - Software Extract for Year 2 and Year 1 data
B37: Number of | C37: Amount of | D37: Number of | E37: Amount of
A38: Gain(Loss) | B38: =$E$4-1 -> 2013 | C38: =$E$4-1 -> 2013 | D38: =$E$4 -> 2014 | E38: =$E$4 -> 2014
A39: Category | B39: Donors | C39: Gifts ($) | D39: Donors | E39: Gifts ($)
A41: New | B41: n/a | C41: n/a | D41: 1303582 | E41: 42864051 | F41: 15
A42: Recaptured | B42: n/a | C42: n/a | D42: 238078 | E42: 7666711
A43: Upgraded | B43: =D43 -> 185242 | C43: 4804385 | D43: 185242 | E43: 8337994
A44: Same | B44: =D44 -> 235901 | C44: 8026149 | D44: 235901 | E44: 8026149
A45: Downgraded | B45: =D45 -> 150318 | C45: 6769732 | D45: 150318 | E45: 3875181
A46: Lapsed new | B46: 847787 | C46: 27604768 | D46: n/a | E46: n/a
A47: Lapsed repeat | B47: 380012 | C47: 12242432 | D47: n/a | E47: n/a
A48: Total | B48: =SUM(B43:B47) -> 1799260 | C48: =SUM(C43:C47) -> 59447466 | D48: =SUM(D41:D45) -> 2113121 | E48: =SUM(E41:E45) -> 70770086
B50: Number | C50: Gift$
A51: New in year 1 | B51: 1015145 | C51: 33072303 | D51: <-- i.e., last year's new donors and gift$
A52: Database EOY1 | B52: 7941446 | D52: <-- i.e., Total number of donors on file at end of Year1
A53: One time donors | B53: 5638818 | C53: 173445120 | D53: <-- i.e., Number of one-time donors and gifts
A54: Recaptured lapsed 1 year | D54: 120670 | E54: 4005758 | F54: <-- Portion of Recaptured
A55: Monthly donors in Year2 | D55: 0.01 | E55: 0.01 | F55: <-- i.e., Year2 donors making 6 to 24 gifts.
B56: 9245028 | C56: <-- total # of donors on file | E56: 2641460 | F56: <-- Total # of gifts in Year2 (vs #donors)
B57: 0.01 | C57: 0.01 | D57: <-- Total # & $ for monthly donors in database
B58: 0.01 | C58: 0.01 | D58: <-- Portion NEW monthly donors in Year2
A63: $100 to $249 | B63: B 100-249
A64: Gain(Loss) Data - Software Extract for Year 2 and Year 1 data
B66: Number of | C66: Amount of | D66: Number of | E66: Amount of
A67: Gain(Loss) | B67: =$E$4-1 -> 2013 | C67: =$E$4-1 -> 2013 | D67: =$E$4 -> 2014 | E67: =$E$4 -> 2014
A68: Category | B68: Donors | C68: Gifts ($) | D68: Donors | E68: Gifts ($)
A70: New | B70: n/a | C70: n/a | D70: 553771 | E70: 63628722 | F70: 16
A71: Recaptured | B71: n/a | C71: n/a | D71: 174968 | E71: 15812305
A72: Upgraded | B72: =D72 -> 206325 | C72: 13755213 | D72: 206325 | E72: 25421208
A73: Same | B73: =D73 -> 169950 | C73: 16317491 | D73: 169950 | E73: 16317491
A74: Downgraded | B74: =D74 -> 173913 | C74: 21744708 | D74: 173913 | E74: 11793576
A75: Lapsed new | B75: 285909 | C75: 34969804 | D75: n/a | E75: n/a
A76: Lapsed repeat | B76: 258778 | C76: 23683342 | D76: n/a | E76: n/a
A77: Total | B77: =SUM(B72:B76) -> 1094875 | C77: =SUM(C72:C76) -> 110470558 | D77: =SUM(D70:D74) -> 1278927 | E77: =SUM(E70:E74) -> 132973302
B79: Number | C79: Gift$
A80: New in year 1 | B80: 401830 | C80: 45965271 | D80: <-- i.e., last year's new donors and gift$
A81: Database EOY1 | B81: 3233162 | D81: <-- i.e., Total number of donors on file at end of Year1
A82: One time donors | B82: 1508609 | C82: 191455846 | D82: <-- i.e., Number of one-time donors and gifts
A83: Recaptured lapsed 1 year | D83: 95889 | E83: 8850341 | F83: <-- Portion of Recaptured
A84: Monthly donors in Year2 | D84: 0.01 | E84: 0.01 | F84: <-- i.e., Year2 donors making 6 to 24 gifts.
B85: 3786933 | C85: <-- total # of donors on file | E85: 2236739 | F85: <-- Total # of gifts in Year2 (vs #donors)
B86: 0.01 | C86: 0.01 | D86: <-- Total # & $ for monthly donors in database
B87: 0.01 | C87: 0.01 | D87: <-- Portion NEW monthly donors in Year2
A92: $250 to $999 | B92: C 250-999
A93: Gain(Loss) Data - Software Extract for Year 2 and Year 1 data
B95: Number of | C95: Amount of | D95: Number of | E95: Amount of
A96: Gain(Loss) | B96: =$E$4-1 -> 2013 | C96: =$E$4-1 -> 2013 | D96: =$E$4 -> 2014 | E96: =$E$4 -> 2014
A97: Category | B97: Donors | C97: Gifts ($) | D97: Donors | E97: Gifts ($)
A99: New | B99: n/a | C99: n/a | D99: 322236 | E99: 109152697 | F99: 17
A100: Recaptured | B100: n/a | C100: n/a | D100: 114305 | E100: 27840939
A101: Upgraded | B101: =D101 -> 228070 | C101: 45652283 | D101: 228070 | E101: 84122782
A102: Same | B102: =D102 -> 118069 | C102: 34222539 | D102: 118069 | E102: 34222539
A103: Downgraded | B103: =D103 -> 220311 | C103: 82060740 | D103: 220311 | E103: 47535313
A104: Lapsed new | B104: 130551 | C104: 50653742 | D104: n/a | E104: n/a
A105: Lapsed repeat | B105: 180566 | C105: 45481531 | D105: n/a | E105: n/a
A106: Total | B106: =SUM(B101:B105) -> 877567 | C106: =SUM(C101:C105) -> 258070835 | D106: =SUM(D99:D103) -> 1002991 | E106: =SUM(E99:E103) -> 302874270
B108: Number | C108: Gift$
A109: New in year 1 | B109: 233692 | C109: 78610040 | D109: <-- i.e., last year's new donors and gift$
A110: Database EOY1 | B110: 1947750 | D110: <-- i.e., Total number of donors on file at end of Year1
A111: One time donors | B111: 625366 | C111: 260178202 | D111: <-- i.e., Number of one-time donors and gifts
A112: Recaptured lapsed 1 year | D112: 64158 | E112: 15809247 | F112: <-- Portion of Recaptured
A113: Monthly donors in Year2 | D113: 0.01 | E113: 0.01 | F113: <-- i.e., Year2 donors making 6 to 24 gifts.
B114: 2269986 | C114: <-- total # of donors on file | E114: 3133796 | F114: <-- Total # of gifts in Year2 (vs #donors)
B115: 0.01 | C115: 0.01 | D115: <-- Total # & $ for monthly donors in database
B116: 0.01 | C116: 0.01 | D116: <-- Portion NEW monthly donors in Year2
A121: $1,000 to $4,999 | B121: D 1,000-4,999
A122: Gain(Loss) Data - Software Extract for Year 2 and Year 1 data
B124: Number of | C124: Amount of | D124: Number of | E124: Amount of
A125: Gain(Loss) | B125: =$E$4-1 -> 2013 | C125: =$E$4-1 -> 2013 | D125: =$E$4 -> 2014 | E125: =$E$4 -> 2014
A126: Category | B126: Donors | C126: Gifts ($) | D126: Donors | E126: Gifts ($)
A128: New | B128: n/a | C128: n/a | D128: 151118 | E128: 185386345 | F128: 18
A129: Recaptured | B129: n/a | C129: n/a | D129: 57216 | E129: 51512319
A130: Upgraded | B130: =D130 -> 168195 | C130: 121640395 | D130: 168195 | E130: 220977189
A131: Same | B131: =D131 -> 61441 | C131: 65073025 | D131: 61441 | E131: 65073025
A132: Downgraded | B132: =D132 -> 131562 | C132: 173485329 | D132: 131562 | E132: 98959222
A133: Lapsed new | B133: 50254 | C133: 75269123 | D133: n/a | E133: n/a
A134: Lapsed repeat | B134: 82239 | C134: 76240194 | D134: n/a | E134: n/a
A135: Total | B135: =SUM(B130:B134) -> 493691 | C135: =SUM(C130:C134) -> 511708066 | D135: =SUM(D128:D132) -> 569532 | E135: =SUM(E128:E132) -> 621908100
B137: Number | C137: Gift$
A138: New in year 1 | B138: 110422 | C138: 129386740 | D138: <-- i.e., last year's new donors and gift$
A139: Database EOY1 | B139: 932589 | D139: <-- i.e., Total number of donors on file at end of Year1
A140: One time donors | B140: 229523 | C140: 375869312 | D140: <-- i.e., Number of one-time donors and gifts
A141: Recaptured lapsed 1 year | D141: 32298 | E141: 29855375 | F141: <-- Portion of Recaptured
A142: Monthly donors in Year2 | D142: 0.01 | E142: 0.01 | F142: <-- i.e., Year2 donors making 6 to 24 gifts.
B143: 1083707 | C143: <-- total # of donors on file | E143: 2291908 | F143: <-- Total # of gifts in Year2 (vs #donors)
B144: 0.01 | C144: 0.01 | D144: <-- Total # & $ for monthly donors in database
B145: 0.01 | C145: 0.01 | D145: <-- Portion NEW monthly donors in Year2
A150: $5,000 and up | B150: E 5,000 up
A151: Gain(Loss) Data - Software Extract for Year 2 and Year 1 data
B153: Number of | C153: Amount of | D153: Number of | E153: Amount of
A154: Gain(Loss) | B154: =$E$4-1 -> 2013 | C154: =$E$4-1 -> 2013 | D154: =$E$4 -> 2014 | E154: =$E$4 -> 2014
A155: Category | B155: Donors | C155: Gifts ($) | D155: Donors | E155: Gifts ($)
A157: New | B157: n/a | C157: n/a | D157: 46492 | E157: 930717981 | F157: 19
A158: Recaptured | B158: n/a | C158: n/a | D158: 22568 | E158: 380904552
A159: Upgraded | B159: =D159 -> 57582 | C159: 648054534 | D159: 57582 | E159: 1405276313
A160: Same | B160: =D160 -> 21041 | C160: 242619744 | D160: 21041 | E160: 242619744
A161: Downgraded | B161: =D161 -> 47538 | C161: 1166130244 | D161: 47538 | E161: 543755220
A162: Lapsed new | B162: 15410 | C162: 363168677 | D162: n/a | E162: n/a
A163: Lapsed repeat | B163: 30590 | C163: 450961151 | D163: n/a | E163: n/a
A164: Total | B164: =SUM(B159:B163) -> 172161 | C164: =SUM(C159:C163) -> 2870934350 | D164: =SUM(D157:D161) -> 195221 | E164: =SUM(E157:E161) -> 3503273810
B166: Number | C166: Gift$
A167: New in year 1 | B167: 33013 | C167: 668616735 | D167: <-- i.e., last year's new donors and gift$
A168: Database EOY1 | B168: 317768 | D168: <-- i.e., Total number of donors on file at end of Year1
A169: One time donors | B169: 66482 | C169: 1758451953 | D169: <-- i.e., Number of one-time donors and gifts
A170: Recaptured lapsed 1 year | D170: 12899 | E170: 214711699 | F170: <-- Portion of Recaptured
A171: Monthly donors in Year2 | D171: 0.01 | E171: 0.01 | F171: <-- i.e., Year2 donors making 6 to 24 gifts.
B172: 364260 | C172: <-- total # of donors on file | E172: 641620 | F172: <-- Total # of gifts in Year2 (vs #donors)
B173: 0.01 | C173: 0.01 | D173: <-- Total # & $ for monthly donors in database
B174: 0.01 | C174: 0.01 | D174: <-- Portion NEW monthly donors in Year2

Sheet Yr4 (hidden)
A1: Yr4 | C1: Fundraising Effectiveness Survey
A3: Growth-in-Giving is measured for Year 2:
D4: Year 2 | E4: 2013
A5: All donors | B5: All
A6: Gain(Loss) Data - Software Extract for Year 2 and Year 1 data
B8: Number of | C8: Amount of | D8: Number of | E8: Amount of
A9: Gain(Loss) | B9: =$E$4-1 -> 2012 | C9: =$E$4-1 -> 2012 | D9: =$E$4 -> 2013 | E9: =$E$4 -> 2013
A10: Category | B10: Donors | C10: Gifts ($) | D10: Donors | E10: Gifts ($)
A12: New | B12: n/a | C12: n/a | D12: =D41+D70+D99+D128+D157 -> 1794102 | E12: 955651089
A13: Recaptured | B13: n/a | C13: n/a | D13: 580267 | E13: 411359521
A14: Upgraded | B14: =B43+B72+B101+B130+B159 -> 818477 | C14: 728803808 | D14: 818477 | E14: 1484265639
A15: Same | B15: 605139 | C15: 336784562 | D15: 605139 | E15: 336784562
A16: Downgraded | B16: 639569 | C16: 1243574873 | D16: 639569 | E16: 622570456
A17: Lapsed new | B17: 1218128 | C17: 530066431 | D17: n/a | E17: n/a
A18: Lapsed repeat | B18: 866928 | C18: 595326200 | D18: n/a | E18: n/a
A19: Total | B19: =B48+B77+B106+B135+B164 -> 4148241 | C19: =C48+C77+C106+C135+C164 -> 3434555874 | D19: =D48+D77+D106+D135+D164 -> 4437554 | E19: =E48+E77+E106+E135+E164 -> 3810631267
B21: Number | C21: Gift$
A22: New in year 1 | B22: =B51+B80+B109+B138+B167 -> 1647760 | C22: =C51+C80+C109+C138+C167 -> 848290228 | D22: <-- i.e., last year's new donors and gift$
A23: Database EOY1 | B23: =B52+B81+B110+B139+B168 -> 12578613 | D23: <-- i.e., Total number of donors on file at end of Year1
A24: One time donors | B24: =B53+B82+B111+B140+B169 -> 6896123 | C24: =C53+C82+C111+C140+C169 -> 2405810645 | D24: <-- i.e., Number of one-time donors and gifts
A25: Recaptured lapsed 1 year | D25: =D54+D83+D112+D141+D170 -> 318754 | E25: =E54+E83+E112+E141+E170 -> 235869698 | F25: <-- Portion of Recaptured
A26: Monthly donors in Year2 | D26: =D55+D84+D113+D142+D171 -> 0.05 | E26: =E55+E84+E113+E142+E171 -> 0.05 | F26: <-- i.e., Year2 donors making 6 to 24 gifts.
B27: =B56+B85+B114+B143+B172 -> 14372715 | C27: <-- total # of donors on file | E27: =E56+E85+E114+E143+E172 -> 9808771 | F27: <-- Total # of gifts in Year2 (vs #donors)
B28: =B57+B86+B115+B144+B173 -> 0.05 | C28: =C57+C86+C115+C144+C173 -> 0.05 | D28: <-- Total # & $ for monthly donors in database
B29: =B58+B87+B116+B145+B174 -> 0.05 | C29: =C58+C87+C116+C145+C174 -> 0.05 | D29: <-- Portion NEW monthly donors in Year2
A34: Under $100 | B34: A 100 dn
A35: Gain(Loss) Data - Software Extract for Year 2 and Year 1 data
B37: Number of | C37: Amount of | D37: Number of | E37: Amount of
A38: Gain(Loss) | B38: =$E$4-1 -> 2012 | C38: =$E$4-1 -> 2012 | D38: =$E$4 -> 2013 | E38: =$E$4 -> 2013
A39: Category | B39: Donors | C39: Gifts ($) | D39: Donors | E39: Gifts ($)
A41: New | B41: n/a | C41: n/a | D41: 1015145 | E41: 33072303 | F41: 20
A42: Recaptured | B42: n/a | C42: n/a | D42: 231814 | E42: 7300424
A43: Upgraded | B43: =D43 -> 183585 | C43: 4884739 | D43: 183585 | E43: 8205854
A44: Same | B44: =D44 -> 220162 | C44: 7167206 | D44: 220162 | E44: 7167206
A45: Downgraded | B45: =D45 -> 148554 | C45: 6529501 | D45: 148554 | E45: 3701675
A46: Lapsed new | B46: 790267 | C46: 25256277 | D46: n/a | E46: n/a
A47: Lapsed repeat | B47: 362027 | C47: 11293974 | D47: n/a | E47: n/a
A48: Total | B48: =SUM(B43:B47) -> 1704595 | C48: =SUM(C43:C47) -> 55131697 | D48: =SUM(D41:D45) -> 1799260 | E48: =SUM(E41:E45) -> 59447462
B50: Number | C50: Gift$
A51: New in year 1 | B51: 948861 | C51: 30387301 | D51: <-- i.e., last year's new donors and gift$
A52: Database EOY1 | B52: 6926301 | D52: <-- i.e., Total number of donors on file at end of Year1
A53: One time donors | B53: 4861992 | C53: 148113978 | D53: <-- i.e., Number of one-time donors and gifts
A54: Recaptured lapsed 1 year | D54: 121741 | E54: 3922543 | F54: <-- Portion of Recaptured
A55: Monthly donors in Year2 | D55: 0.01 | E55: 0.01 | F55: <-- i.e., Year2 donors making 6 to 24 gifts.
B56: 7941446 | C56: <-- total # of donors on file | E56: 2241177 | F56: <-- Total # of gifts in Year2 (vs #donors)
B57: 0.01 | C57: 0.01 | D57: <-- Total # & $ for monthly donors in database
B58: 0.01 | C58: 0.01 | D58: <-- Portion NEW monthly donors in Year2
A63: $100 to $249 | B63: B 100-249
A64: Gain(Loss) Data - Software Extract for Year 2 and Year 1 data
B66: Number of | C66: Amount of | D66: Number of | E66: Amount of
A67: Gain(Loss) | B67: =$E$4-1 -> 2012 | C67: =$E$4-1 -> 2012 | D67: =$E$4 -> 2013 | E67: =$E$4 -> 2013
A68: Category | B68: Donors | C68: Gifts ($) | D68: Donors | E68: Gifts ($)
A70: New | B70: n/a | C70: n/a | D70: 401830 | E70: 45965271 | F70: 21
A71: Recaptured | B71: n/a | C71: n/a | D71: 166050 | E71: 14560563
A72: Upgraded | B72: =D72 -> 197016 | C72: 12744243 | D72: 197016 | E72: 23588726
A73: Same | B73: =D73 -> 163626 | C73: 15386713 | D73: 163626 | E73: 15386713
A74: Downgraded | B74: =D74 -> 166353 | C74: 20301908 | D74: 166353 | E74: 10969281
A75: Lapsed new | B75: 254744 | C75: 30654010 | D75: n/a | E75: n/a
A76: Lapsed repeat | B76: 240738 | C76: 21583879 | D76: n/a | E76: n/a
A77: Total | B77: =SUM(B72:B76) -> 1022477 | C77: =SUM(C72:C76) -> 100670753 | D77: =SUM(D70:D74) -> 1094875 | E77: =SUM(E70:E74) -> 110470554
B79: Number | C79: Gift$
A80: New in year 1 | B80: 363621 | C80: 40739210 | D80: <-- i.e., last year's new donors and gift$
A81: Database EOY1 | B81: 2831332 | D81: <-- i.e., Total number of donors on file at end of Year1
A82: One time donors | B82: 1266373 | C82: 160711138 | D82: <-- i.e., Number of one-time donors and gifts
A83: Recaptured lapsed 1 year | D83: 92074 | E83: 8216297 | F83: <-- Portion of Recaptured
A84: Monthly donors in Year2 | D84: 0.01 | E84: 0.01 | F84: <-- i.e., Year2 donors making 6 to 24 gifts.
B85: 3233162 | C85: <-- total # of donors on file | E85: 1947559 | F85: <-- Total # of gifts in Year2 (vs #donors)
B86: 0.01 | C86: 0.01 | D86: <-- Total # & $ for monthly donors in database
B87: 0.01 | C87: 0.01 | D87: <-- Portion NEW monthly donors in Year2
A92: $250 to $999 | B92: C 250-999
A93: Gain(Loss) Data - Software Extract for Year 2 and Year 1 data
B95: Number of | C95: Amount of | D95: Number of | E95: Amount of
A96: Gain(Loss) | B96: =$E$4-1 -> 2012 | C96: =$E$4-1 -> 2012 | D96: =$E$4 -> 2013 | E96: =$E$4 -> 2013
A97: Category | B97: Donors | C97: Gifts ($) | D97: Donors | E97: Gifts ($)
A99: New | B99: n/a | C99: n/a | D99: 233692 | E99: 78610040 | F99: 22
A100: Recaptured | B100: n/a | C100: n/a | D100: 107788 | E100: 25221450
A101: Upgraded | B101: =D101 -> 221745 | C101: 43809072 | D101: 221745 | E101: 80259623
A102: Same | B102: =D102 -> 134066 | C102: 38700789 | D102: 134066 | E102: 38700789
A103: Downgraded | B103: =D103 -> 180276 | C103: 64481899 | D103: 180276 | E103: 35278930
A104: Lapsed new | B104: 114906 | C104: 43182363 | D104: n/a | E104: n/a
A105: Lapsed repeat | B105: 162966 | C105: 39750098 | D105: n/a | E105: n/a
A106: Total | B106: =SUM(B101:B105) -> 813959 | C106: =SUM(C101:C105) -> 229924221 | D106: =SUM(D99:D103) -> 877567 | E106: =SUM(E99:E103) -> 258070832
B108: Number | C108: Gift$
A109: New in year 1 | B109: 209565 | C109: 67509454 | D109: <-- i.e., last year's new donors and gift$
A110: Database EOY1 | B110: 1714058 | D110: <-- i.e., Total number of donors on file at end of Year1
A111: One time donors | B111: 520603 | C111: 216733358 | D111: <-- i.e., Number of one-time donors and gifts
A112: Recaptured lapsed 1 year | D112: 61615 | E112: 14564263 | F112: <-- Portion of Recaptured
A113: Monthly donors in Year2 | D113: 0.01 | E113: 0.01 | F113: <-- i.e., Year2 donors making 6 to 24 gifts.
B114: 1947750 | C114: <-- total # of donors on file | E114: 2912996 | F114: <-- Total # of gifts in Year2 (vs #donors)
B115: 0.01 | C115: 0.01 | D115: <-- Total # & $ for monthly donors in database
B116: 0.01 | C116: 0.01 | D116: <-- Portion NEW monthly donors in Year2
A121: $1,000 to $4,999 | B121: D 1,000-4,999
A122: Gain(Loss) Data - Software Extract for Year 2 and Year 1 data
B124: Number of | C124: Amount of | D124: Number of | E124: Amount of
A125: Gain(Loss) | B125: =$E$4-1 -> 2012 | C125: =$E$4-1 -> 2012 | D125: =$E$4 -> 2013 | E125: =$E$4 -> 2013
A126: Category | B126: Donors | C126: Gifts ($) | D126: Donors | E126: Gifts ($)
A128: New | B128: n/a | C128: n/a | D128: 110422 | E128: 129386740 | F128: 23
A129: Recaptured | B129: n/a | C129: n/a | D129: 53623 | E129: 46254554
A130: Upgraded | B130: =D130 -> 161485 | C130: 108445119 | D130: 161485 | E130: 199425367
A131: Same | B131: =D131 -> 67650 | C131: 64228647 | D131: 67650 | E131: 64228647
A132: Downgraded | B132: =D132 -> 100511 | C132: 134585308 | D132: 100511 | E132: 72412758
A133: Lapsed new | B133: 44989 | C133: 64358245 | D133: n/a | E133: n/a
A134: Lapsed repeat | B134: 73476 | C134: 65048929 | D134: n/a | E134: n/a
A135: Total | B135: =SUM(B130:B134) -> 448111 | C135: =SUM(C130:C134) -> 436666248 | D135: =SUM(D128:D132) -> 493691 | E135: =SUM(E128:E132) -> 511708066
B137: Number | C137: Gift$
A138: New in year 1 | B138: 96838 | C138: 108372655 | D138: <-- i.e., last year's new donors and gift$
A139: Database EOY1 | B139: 822167 | D139: <-- i.e., Total number of donors on file at end of Year1
A140: One time donors | B140: 191667 | C140: 313583917 | D140: <-- i.e., Number of one-time donors and gifts
A141: Recaptured lapsed 1 year | D141: 31035 | E141: 27445957 | F141: <-- Portion of Recaptured
A142: Monthly donors in Year2 | D142: 0.01 | E142: 0.01 | F142: <-- i.e., Year2 donors making 6 to 24 gifts.
B143: 932589 | C143: <-- total # of donors on file | E143: 2126445 | F143: <-- Total # of gifts in Year2 (vs #donors)
B144: 0.01 | C144: 0.01 | D144: <-- Total # & $ for monthly donors in database
B145: 0.01 | C145: 0.01 | D145: <-- Portion NEW monthly donors in Year2
A150: $5,000 and up | B150: E 5,000 up
A151: Gain(Loss) Data - Software Extract for Year 2 and Year 1 data
B153: Number of | C153: Amount of | D153: Number of | E153: Amount of
A154: Gain(Loss) | B154: =$E$4-1 -> 2012 | C154: =$E$4-1 -> 2012 | D154: =$E$4 -> 2013 | E154: =$E$4 -> 2013
A155: Category | B155: Donors | C155: Gifts ($) | D155: Donors | E155: Gifts ($)
A157: New | B157: n/a | C157: n/a | D157: 33013 | E157: 668616735 | F157: 24
A158: Recaptured | B158: n/a | C158: n/a | D158: 20992 | E158: 318022530
A159: Upgraded | B159: =D159 -> 54646 | C159: 558920635 | D159: 54646 | E159: 1172786069
A160: Same | B160: =D160 -> 19635 | C160: 211301207 | D160: 19635 | E160: 211301207
A161: Downgraded | B161: =D161 -> 43875 | C161: 1017676257 | D161: 43875 | E161: 500207812
A162: Lapsed new | B162: 13222 | C162: 366615536 | D162: n/a | E162: n/a
A163: Lapsed repeat | B163: 27721 | C163: 457649320 | D163: n/a | E163: n/a
A164: Total | B164: =SUM(B159:B163) -> 159099 | C164: =SUM(C159:C163) -> 2612162955 | D164: =SUM(D157:D161) -> 172161 | E164: =SUM(E157:E161) -> 2870934353
B166: Number | C166: Gift$
A167: New in year 1 | B167: 28875 | C167: 601281608 | D167: <-- i.e., last year's new donors and gift$
A168: Database EOY1 | B168: 284755 | D168: <-- i.e., Total number of donors on file at end of Year1
A169: One time donors | B169: 55488 | C169: 1566668254 | D169: <-- i.e., Number of one-time donors and gifts
A170: Recaptured lapsed 1 year | D170: 12289 | E170: 181720638 | F170: <-- Portion of Recaptured
A171: Monthly donors in Year2 | D171: 0.01 | E171: 0.01 | F171: <-- i.e., Year2 donors making 6 to 24 gifts.
B172: 317768 | C172: <-- total # of donors on file | E172: 580594 | F172: <-- Total # of gifts in Year2 (vs #donors)
B173: 0.01 | C173: 0.01 | D173: <-- Total # & $ for monthly donors in database
B174: 0.01 | C174: 0.01 | D174: <-- Portion NEW monthly donors in Year2

Sheet Yr5 (hidden)
A1: Yr5 | C1: Fundraising Effectiveness Survey
A3: Growth-in-Giving is measured for Year 2:
D4: Year 2 | E4: 2012
A5: All donors | B5: All
A6: Gain(Loss) Data - Software Extract for Year 2 and Year 1 data
B8: Number of | C8: Amount of | D8: Number of | E8: Amount of
A9: Gain(Loss) | B9: =$E$4-1 -> 2011 | C9: =$E$4-1 -> 2011 | D9: =$E$4 -> 2012 | E9: =$E$4 -> 2012
A10: Category | B10: Donors | C10: Gifts ($) | D10: Donors | E10: Gifts ($)
A12: New | B12: n/a | C12: n/a | D12: =D41+D70+D99+D128+D157 -> 1647760 | E12: 848290228
A13: Recaptured | B13: n/a | C13: n/a | D13: 539444 | E13: 359933949
A14: Upgraded | B14: =B43+B72+B101+B130+B159 -> 775135 | C14: 642033407 | D14: 775135 | E14: 1312426632
A15: Same | B15: 578339 | C15: 323851479 | D15: 578339 | E15: 323851479
A16: Downgraded | B16: 607563 | C16: 1212281880 | D16: 607563 | E16: 590053584
A17: Lapsed new | B17: 1146394 | C17: 410401176 | D17: n/a | E17: n/a
A18: Lapsed repeat | B18: 817374 | C18: 476522116 | D18: n/a | E18: n/a
A19: Total | B19: =B48+B77+B106+B135+B164 -> 3924805 | C19: =C48+C77+C106+C135+C164 -> 3065090058 | D19: =D48+D77+D106+D135+D164 -> 4148241 | E19: =E48+E77+E106+E135+E164 -> 3434555872
B21: Number | C21: Gift$
A22: New in year 1 | B22: =B51+B80+B109+B138+B167 -> 1558079 | C22: =C51+C80+C109+C138+C167 -> 718375361 | D22: <-- i.e., last year's new donors and gift$
A23: Database EOY1 | B23: =B52+B81+B110+B139+B168 -> 10930853 | D23: <-- i.e., Total number of donors on file at end of Year1
A24: One time donors | B24: =B53+B82+B111+B140+B169 -> 5854726 | C24: =C53+C82+C111+C140+C169 -> 1921162944 | D24: <-- i.e., Number of one-time donors and gifts
A25: Recaptured lapsed 1 year | D25: =D54+D83+D112+D141+D170 -> 305706 | E25: =E54+E83+E112+E141+E170 -> 186992045 | F25: <-- Portion of Recaptured
A26: Monthly donors in Year2 | D26: =D55+D84+D113+D142+D171 -> 0.05 | E26: =E55+E84+E113+E142+E171 -> 0.05 | F26: <-- i.e., Year2 donors making 6 to 24 gifts.
B27: =B56+B85+B114+B143+B172 -> 12578613 | C27: <-- total # of donors on file | E27: =E56+E85+E114+E143+E172 -> 9106259 | F27: <-- Total # of gifts in Year2 (vs #donors)
B28: =B57+B86+B115+B144+B173 -> 0.05 | C28: =C57+C86+C115+C144+C173 -> 0.05 | D28: <-- Total # & $ for monthly donors in database
B29: =B58+B87+B116+B145+B174 -> 0.05 | C29: =C58+C87+C116+C145+C174 -> 0.05 | D29: <-- Portion NEW monthly donors in Year2
A34: Under $100 | B34: A 100 dn
A35: Gain(Loss) Data - Software Extract for Year 2 and Year 1 data
B37: Number of | C37: Amount of | D37: Number of | E37: Amount of
A38: Gain(Loss) | B38: =$E$4-1 -> 2011 | C38: =$E$4-1 -> 2011 | D38: =$E$4 -> 2012 | E38: =$E$4 -> 2012
A39: Category | B39: Donors | C39: Gifts ($) | D39: Donors | E39: Gifts ($)
A41: New | B41: n/a | C41: n/a | D41: 948861 | E41: 30387301 | F41: 25
A42: Recaptured | B42: n/a | C42: n/a | D42: 217751 | E42: 6695968
A43: Upgraded | B43: =D43 -> 176305 | C43: 4522358 | D43: 176305 | E43: 7690281
A44: Same | B44: =D44 -> 214016 | C44: 6729808 | D44: 214016 | E44: 6729808
A45: Downgraded | B45: =D45 -> 147662 | C45: 6361243 | D45: 147662 | E45: 3628340
A46: Lapsed new | B46: 752139 | C46: 23524535 | D46: n/a | E46: n/a
A47: Lapsed repeat | B47: 352172 | C47: 10865697 | D47: n/a | E47: n/a
A48: Total | B48: =SUM(B43:B47) -> 1642294 | C48: =SUM(C43:C47) -> 52003641 | D48: =SUM(D41:D45) -> 1704595 | E48: =SUM(E41:E45) -> 55131698
B50: Number | C50: Gift$
A51: New in year 1 | B51: 905072 | C51: 28310569 | D51: <-- i.e., last year's new donors and gift$
A52: Database EOY1 | B52: 5977440 | D52: <-- i.e., Total number of donors on file at end of Year1
A53: One time donors | B53: 4151628 | C53: 125363868 | D53: <-- i.e., Number of one-time donors and gifts
A54: Recaptured lapsed 1 year | D54: 117049 | E54: 3684310 | F54: <-- Portion of Recaptured
A55: Monthly donors in Year2 | D55: 0.01 | E55: 0.01 | F55: <-- i.e., Year2 donors making 6 to 24 gifts.
B56: 6926301 | C56: <-- total # of donors on file | E56: 2140240 | F56: <-- Total # of gifts in Year2 (vs #donors)
B57: 0.01 | C57: 0.01 | D57: <-- Total # & $ for monthly donors in database
B58: 0.01 | C58: 0.01 | D58: <-- Portion NEW monthly donors in Year2
A63: $100 to $249 | B63: B 100-249
A64: Gain(Loss) Data - Software Extract for Year 2 and Year 1 data
B66: Number of | C66: Amount of | D66: Number of | E66: Amount of
A67: Gain(Loss) | B67: =$E$4-1 -> 2011 | C67: =$E$4-1 -> 2011 | D67: =$E$4 -> 2012 | E67: =$E$4 -> 2012
A68: Category | B68: Donors | C68: Gifts ($) | D68: Donors | E68: Gifts ($)
A70: New | B70: n/a | C70: n/a | D70: 363621 | E70: 40739210 | F70: 26
A71: Recaptured | B71: n/a | C71: n/a | D71: 155278 | E71: 13263851
A72: Upgraded | B72: =D72 -> 189250 | C72: 12042516 | D72: 189250 | E72: 22212022
A73: Same | B73: =D73 -> 154514 | C73: 14195133 | D73: 154514 | E73: 14195133
A74: Downgraded | B74: =D74 -> 159814 | C74: 19147392 | D74: 159814 | E74: 10260537
A75: Lapsed new | B75: 232964 | C75: 27637364 | D75: n/a | E75: n/a
A76: Lapsed repeat | B76: 224622 | C76: 19783121 | D76: n/a | E76: n/a
A77: Total | B77: =SUM(B72:B76) -> 961164 | C77: =SUM(C72:C76) -> 92805526 | D77: =SUM(D70:D74) -> 1022477 | E77: =SUM(E70:E74) -> 100670753
B79: Number | C79: Gift$
A80: New in year 1 | B80: 335550 | C80: 36849710 | D80: <-- i.e., last year's new donors and gift$
A81: Database EOY1 | B81: 2467711 | D81: <-- i.e., Total number of donors on file at end of Year1
A82: One time donors | B82: 1060449 | C82: 134605652 | D82: <-- i.e., Number of one-time donors and gifts
A83: Recaptured lapsed 1 year | D83: 89614 | E83: 7753391 | F83: <-- Portion of Recaptured
A84: Monthly donors in Year2 | D84: 0.01 | E84: 0.01 | F84: <-- i.e., Year2 donors making 6 to 24 gifts.
B85: 2831332 | C85: <-- total # of donors on file | E85: 1837218 | F85: <-- Total # of gifts in Year2 (vs #donors)
B86: 0.01 | C86: 0.01 | D86: <-- Total # & $ for monthly donors in database
B87: 0.01 | C87: 0.01 | D87: <-- Portion NEW monthly donors in Year2
A92: $250 to $999 | B92: C 250-999
A93: Gain(Loss) Data - Software Extract for Year 2 and Year 1 data
B95: Number of | C95: Amount of | D95: Number of | E95: Amount of
A96: Gain(Loss) | B96: =$E$4-1 -> 2011 | C96: =$E$4-1 -> 2011 | D96: =$E$4 -> 2012 | E96: =$E$4 -> 2012
A97: Category | B97: Donors | C97: Gifts ($) | D97: Donors | E97: Gifts ($)
A99: New | B99: n/a | C99: n/a | D99: 209565 | E99: 67509454 | F99: 27
A100: Recaptured | B100: n/a | C100: n/a | D100: 99630 | E100: 22474621
A101: Upgraded | B101: =D101 -> 212738 | C101: 40504604 | D101: 212738 | E101: 74686091
A102: Same | B102: =D102 -> 126667 | C102: 34252197 | D102: 126667 | E102: 34252197
A103: Downgraded | B103: =D103 -> 165359 | C103: 57320685 | D103: 165359 | E103: 31001859
A104: Lapsed new | B104: 106020 | C104: 39193889 | D104: n/a | E104: n/a
A105: Lapsed repeat | B105: 147610 | C105: 35094683 | D105: n/a | E105: n/a
A106: Total | B106: =SUM(B101:B105) -> 758394 | C106: =SUM(C101:C105) -> 206366058 | D106: =SUM(D99:D103) -> 813959 | E106: =SUM(E99:E103) -> 229924222
B108: Number | C108: Gift$
A109: New in year 1 | B109: 196158 | C109: 61081685 | D109: <-- i.e., last year's new donors and gift$
A110: Database EOY1 | B110: 1504493 | D110: <-- i.e., Total number of donors on file at end of Year1
A111: One time donors | B111: 434752 | C111: 181092440 | D111: <-- i.e., Number of one-time donors and gifts
A112: Recaptured lapsed 1 year | D112: 59055 | E112: 13435222 | F112: <-- Portion of Recaptured
A113: Monthly donors in Year2 | D113: 0.01 | E113: 0.01 | F113: <-- i.e., Year2 donors making 6 to 24 gifts.
B114: 1714058 | C114: <-- total # of donors on file | E114: 2696329 | F114: <-- Total # of gifts in Year2 (vs #donors)
B115: 0.01 | C115: 0.01 | D115: <-- Total # & $ for monthly donors in database
B116: 0.01 | C116: 0.01 | D116: <-- Portion NEW monthly donors in Year2
A121: $1,000 to $4,999 | B121: D 1,000-4,999
A122: Gain(Loss) Data - Software Extract for Year 2 and Year 1 data
B124: Number of | C124: Amount of | D124: Number of | E124: Amount of
A125: Gain(Loss) | B125: =$E$4-1 -> 2011 | C125: =$E$4-1 -> 2011 | D125: =$E$4 -> 2012 | E125: =$E$4 -> 2012
A126: Category | B126: Donors | C126: Gifts ($) | D126: Donors | E126: Gifts ($)
A128: New | B128: n/a | C128: n/a | D128: 96838 | E128: 108372655 | F128: 28
A129: Recaptured | B129: n/a | C129: n/a | D129: 47900 | E129: 38975525
A130: Upgraded | B130: =D130 -> 146495 | C130: 90931906 | D130: 146495 | E130: 167533270
A131: Same | B131: =D131 -> 64262 | C131: 57265963 | D131: 64262 | E131: 57265963
A132: Downgraded | B132: =D132 -> 92616 | C132: 121414291 | D132: 92616 | E132: 64518834
A133: Lapsed new | B133: 42530 | C133: 58813776 | D133: n/a | E133: n/a
A134: Lapsed repeat | B134: 67393 | C134: 57745315 | D134: n/a | E134: n/a
A135: Total | B135: =SUM(B130:B134) -> 413296 | C135: =SUM(C130:C134) -> 386171251 | D135: =SUM(D128:D132) -> 448111 | E135: =SUM(E128:E132) -> 436666247
B137: Number | C137: Gift$
A138: New in year 1 | B138: 93206 | C138: 98794866 | D138: <-- i.e., last year's new donors and gift$
A139: Database EOY1 | B139: 725329 | D139: <-- i.e., Total number of donors on file at end of Year1
A140: One time donors | B140: 160732 | C140: 262608323 | D140: <-- i.e., Number of one-time donors and gifts
A141: Recaptured lapsed 1 year | D141: 28764 | E141: 23799103 | F141: <-- Portion of Recaptured
A142: Monthly donors in Year2 | D142: 0.01 | E142: 0.01 | F142: <-- i.e., Year2 donors making 6 to 24 gifts.
B143: 822167 | C143: <-- total # of donors on file | E143: 1891031 | F143: <-- Total # of gifts in Year2 (vs #donors)
B144: 0.01 | C144: 0.01 | D144: <-- Total # & $ for monthly donors in database
B145: 0.01 | C145: 0.01 | D145: <-- Portion NEW monthly donors in Year2
A150: $5,000 and up | B150: E 5,000 up
A151: Gain(Loss) Data - Software Extract for Year 2 and Year 1 data
B153: Number of | C153: Amount of | D153: Number of | E153: Amount of
A154: Gain(Loss) | B154: =$E$4-1 -> 2011 | C154: =$E$4-1 -> 2011 | D154: =$E$4 -> 2012 | E154: =$E$4 -> 2012
A155: Category | B155: Donors | C155: Gifts ($) | D155: Donors | E155: Gifts ($)
A157: New | B157: n/a | C157: n/a | D157: 28875 | E157: 601281608 | F157: 29
A158: Recaptured | B158: n/a | C158: n/a | D158: 18885 | E158: 278523984
A159: Upgraded | B159: =D159 -> 50347 | C159: 494032023 | D159: 50347 | E159: 1040304968
A160: Same | B160: =D160 -> 18880 | C160: 211408378 | D160: 18880 | E160: 211408378
A161: Downgraded | B161: =D161 -> 42112 | C161: 1008038269 | D161: 42112 | E161: 480644014
A162: Lapsed new | B162: 12741 | C162: 261231612 | D162: n/a | E162: n/a
A163: Lapsed repeat | B163: 25577 | C163: 353033300 | D163: n/a | E163: n/a
A164: Total | B164: =SUM(B159:B163) -> 149657 | C164: =SUM(C159:C163) -> 2327743582 | D164: =SUM(D157:D161) -> 159099 | E164: =SUM(E157:E161) -> 2612162952
B166: Number | C166: Gift$
A167: New in year 1 | B167: 28093 | C167: 493338531 | D167: <-- i.e., last year's new donors and gift$
A168: Database EOY1 | B168: 255880 | D168: <-- i.e., Total number of donors on file at end of Year1
A169: One time donors | B169: 47165 | C169: 1217492661 | D169: <-- i.e., Number of one-time donors and gifts
A170: Recaptured lapsed 1 year | D170: 11224 | E170: 138320019 | F170: <-- Portion of Recaptured
A171: Monthly donors in Year2 | D171: 0.01 | E171: 0.01 | F171: <-- i.e., Year2 donors making 6 to 24 gifts.
B172: 284755 | C172: <-- total # of donors on file | E172: 541441 | F172: <-- Total # of gifts in Year2 (vs #donors)
B173: 0.01 | C173: 0.01 | D173: <-- Total # & $ for monthly donors in database
B174: 0.01 | C174: 0.01 | D174: <-- Portion NEW monthly donors in Year2

Sheet Yr6 (hidden)
A1: Yr6 | C1: Fundraising Effectiveness Survey
A3: Growth-in-Giving is measured for Year 2:
D4: Year 2 | E4: 2011
A5: All donors | B5: All
A6: Gain(Loss) Data - Software Extract for Year 2 and Year 1 data
B8: Number of | C8: Amount of | D8: Number of | E8: Amount of
A9: Gain(Loss) | B9: =$E$4-1 -> 2010 | C9: =$E$4-1 -> 2010 | D9: =$E$4 -> 2011 | E9: =$E$4 -> 2011
A10: Category | B10: Donors | C10: Gifts ($) | D10: Donors | E10: Gifts ($)
A12: New | B12: n/a | C12: n/a | D12: =D41+D70+D99+D128+D157 -> 1558079 | E12: 718375361
A13: Recaptured | B13: n/a | C13: n/a | D13: 503863 | E13: 293778025
A14: Upgraded | B14: =B43+B72+B101+B130+B159 -> 733214 | C14: 598000575 | D14: 733214 | E14: 1225011283
A15: Same | B15: 543903 | C15: 271794495 | D15: 543903 | E15: 271794495
A16: Downgraded | B16: 585746 | C16: 1103614341 | D16: 585746 | E16: 556130893
A17: Lapsed new | B17: 1131899 | C17: 409920171 | D17: n/a | E17: n/a
A18: Lapsed repeat | B18: 761727 | C18: 423542614 | D18: n/a | E18: n/a
A19: Total | B19: =B48+B77+B106+B135+B164 -> 3756489 | C19: =C48+C77+C106+C135+C164 -> 2806872196 | D19: =D48+D77+D106+D135+D164 -> 3924805 | E19: =E48+E77+E106+E135+E164 -> 3065090057
B21: Number | C21: Gift$
A22: New in year 1 | B22: =B51+B80+B109+B138+B167 -> 1538851 | C22: =C51+C80+C109+C138+C167 -> 674529998 | D22: <-- i.e., last year's new donors and gift$
A23: Database EOY1 | B23: =B52+B81+B110+B139+B168 -> 9372774 | D23: <-- i.e., Total number of donors on file at end of Year1
A24: One time donors | B24: =B53+B82+B111+B140+B169 -> 4900992 | C24: =C53+C82+C111+C140+C169 -> 1595619294 | D24: <-- i.e., Number of one-time donors and gifts
A25: Recaptured lapsed 1 year | D25: =D54+D83+D112+D141+D170 -> 290101 | E25: =E54+E83+E112+E141+E170 -> 175733707 | F25: <-- Portion of Recaptured
A26: Monthly donors in Year2 | D26: =D55+D84+D113+D142+D171 -> 0.05 | E26: =E55+E84+E113+E142+E171 -> 0.05 | F26: <-- i.e., Year2 donors making 6 to 24 gifts.
B27: =B56+B85+B114+B143+B172 -> 10930853 | C27: <-- total # of donors on file | E27: =E56+E85+E114+E143+E172 -> 8391838 | F27: <-- Total # of gifts in Year2 (vs #donors)
B28: =B57+B86+B115+B144+B173 -> 0.05 | C28: =C57+C86+C115+C144+C173 -> 0.05 | D28: <-- Total # & $ for monthly donors in database
B29: =B58+B87+B116+B145+B174 -> 0.05 | C29: =C58+C87+C116+C145+C174 -> 0.05 | D29: <-- Portion NEW monthly donors in Year2
A34: Under $100 | B34: A 100 dn
A35: Gain(Loss) Data - Software Extract for Year 2 and Year 1 data
B37: Number of | C37: Amount of | D37: Number of | E37: Amount of
A38: Gain(Loss) | B38: =$E$4-1 -> 2010 | C38: =$E$4-1 -> 2010 | D38: =$E$4 -> 2011 | E38: =$E$4 -> 2011
A39: Category | B39: Donors | C39: Gifts ($) | D39: Donors | E39: Gifts ($)
A41: New | B41: n/a | C41: n/a | D41: 905072 | E41: 28310569 | F41: 30
A42: Recaptured | B42: n/a | C42: n/a | D42: 210586 | E42: 6310095
A43: Upgraded | B43: =D43 -> 169387 | C43: 4141969 | D43: 169387 | E43: 7216647
A44: Same | B44: =D44 -> 211943 | C44: 6653107 | D44: 211943 | E44: 6653107
A45: Downgraded | B45: =D45 -> 145306 | C45: 6186916 | D45: 145306 | E45: 3513224
A46: Lapsed new | B46: 734813 | C46: 22825998 | D46: n/a | E46: n/a
A47: Lapsed repeat | B47: 328834 | C47: 10069485 | D47: n/a | E47: n/a
A48: Total | B48: =SUM(B43:B47) -> 1590283 | C48: =SUM(C43:C47) -> 49877475 | D48: =SUM(D41:D45) -> 1642294 | E48: =SUM(E41:E45) -> 52003642
B50: Number | C50: Gift$
A51: New in year 1 | B51: 888222 | C51: 27529616 | D51: <-- i.e., last year's new donors and gift$
A52: Database EOY1 | B52: 5072368 | D52: <-- i.e., Total number of donors on file at end of Year1
A53: One time donors | B53: 3488554 | C53: 104561725 | D53: <-- i.e., Number of one-time donors and gifts
A54: Recaptured lapsed 1 year | D54: 115202 | E54: 3547738 | F54: <-- Portion of Recaptured
A55: Monthly donors in Year2 | D55: 0.01 | E55: 0.01 | F55: <-- i.e., Year2 donors making 6 to 24 gifts.
B56: 5977440 | C56: <-- total # of donors on file | E56: 2060792 | F56: <-- Total # of gifts in Year2 (vs #donors)
B57: 0.01 | C57: 0.01 | D57: <-- Total # & $ for monthly donors in database
B58: 0.01 | C58: 0.01 | D58: <-- Portion NEW monthly donors in Year2
A63: $100 to $249 | B63: B 100-249
A64: Gain(Loss) Data - Software Extract for Year 2 and Year 1 data
B66: Number of | C66: Amount of | D66: Number of | E66: Amount of
A67: Gain(Loss) | B67: =$E$4-1 -> 2010 | C67: =$E$4-1 -> 2010 | D67: =$E$4 -> 2011 | E67: =$E$4 -> 2011
A68: Category | B68: Donors | C68: Gifts ($) | D68: Donors | E68: Gifts ($)
A70: New | B70: n/a | C70: n/a | D70: 335550 | E70: 36849710 | F70: 31
A71: Recaptured | B71: n/a | C71: n/a | D71: 141151 | E71: 11805767
A72: Upgraded | B72: =D72 -> 179904 | C72: 11190919 | D72: 179904 | E72: 20816015
A73: Same | B73: =D73 -> 148806 | C73: 13455144 | D73: 148806 | E73: 13455144
A74: Downgraded | B74: =D74 -> 155753 | C74: 18482835 | D74: 155753 | E74: 9878893
A75: Lapsed new | B75: 236737 | C75: 27925283 | D75: n/a | E75: n/a
A76: Lapsed repeat | B76: 212815 | C76: 18731304 | D76: n/a | E76: n/a
A77: Total | B77: =SUM(B72:B76) -> 934015 | C77: =SUM(C72:C76) -> 89785485 | D77: =SUM(D70:D74) -> 961164 | E77: =SUM(E70:E74) -> 92805529
B79: Number | C79: Gift$
A80: New in year 1 | B80: 339733 | C80: 37002208 | D80: <-- i.e., last year's new donors and gift$
A81: Database EOY1 | B81: 2132161 | D81: <-- i.e., Total number of donors on file at end of Year1
A82: One time donors | B82: 879539 | C82: 111667700 | D82: <-- i.e., Number of one-time donors and gifts
A83: Recaptured lapsed 1 year | D83: 83498 | E83: 7098648 | F83: <-- Portion of Recaptured
A84: Monthly donors in Year2 | D84: 0.01 | E84: 0.01 | F84: <-- i.e., Year2 donors making 6 to 24 gifts.
B85: 2467711 | C85: <-- total # of donors on file | E85: 1731338 | F85: <-- Total # of gifts in Year2 (vs #donors)
B86: 0.01 | C86: 0.01 | D86: <-- Total # & $ for monthly donors in database
B87: 0.01 | C87: 0.01 | D87: <-- Portion NEW monthly donors in Year2
A92: $250 to $999 | B92: C 250-999
A93: Gain(Loss) Data - Software Extract for Year 2 and Year 1 data
B95: Number of | C95: Amount of | D95: Number of | E95: Amount of
A96: Gain(Loss) | B96: =$E$4-1 -> 2010 | C96: =$E$4-1 -> 2010 | D96: =$E$4 -> 2011 | E96: =$E$4 -> 2011
A97: Category | B97: Donors | C97: Gifts ($) | D97: Donors | E97: Gifts ($)
A99: New | B99: n/a | C99: n/a | D99: 196158 | E99: 61081685 | F99: 32
A100: Recaptured | B100: n/a | C100: n/a | D100: 90431 | E100: 20007028
A101: Upgraded | B101: =D101 -> 202508 | C101: 37110872 | D101: 202508 | E101: 68119659
A102: Same | B102: =D102 -> 111731 | C102: 28296740 | D102: 111731 | E102: 28296740
A103: Downgraded | B103: =D103 -> 157566 | C103: 53610223 | D103: 157566 | E103: 28860946
A104: Lapsed new | B104: 107241 | C104: 38792160 | D104: n/a | E104: n/a
A105: Lapsed repeat | B105: 135485 | C105: 32042934 | D105: n/a | E105: n/a
A106: Total | B106: =SUM(B101:B105) -> 714531 | C106: =SUM(C101:C105) -> 189852929 | D106: =SUM(D99:D103) -> 758394 | E106: =SUM(E99:E103) -> 206366058
B108: Number | C108: Gift$
A109: New in year 1 | B109: 195749 | C109: 59574258 | D109: <-- i.e., last year's new donors and gift$
A110: Database EOY1 | B110: 1308335 | D110: <-- i.e., Total number of donors on file at end of Year1
A111: One time donors | B111: 359823 | C111: 149830583 | D111: <-- i.e., Number of one-time donors and gifts
A112: Recaptured lapsed 1 year | D112: 54371 | E112: 12202412 | F112: <-- Portion of Recaptured
A113: Monthly donors in Year2 | D113: 0.01 | E113: 0.01 | F113: <-- i.e., Year2 donors making 6 to 24 gifts.
B114: 1504493 | C114: <-- total # of donors on file | E114: 2435461 | F114: <-- Total # of gifts in Year2 (vs #donors)
B115: 0.01 | C115: 0.01 | D115: <-- Total # & $ for monthly donors in database
B116: 0.01 | C116: 0.01 | D116: <-- Portion NEW monthly donors in Year2
A121: $1,000 to $4,999 | B121: D 1,000-4,999
A122: Gain(Loss) Data - Software Extract for Year 2 and Year 1 data
B124: Number of | C124: Amount of | D124: Number of | E124: Amount of
A125: Gain(Loss) | B125: =$E$4-1 -> 2010 | C125: =$E$4-1 -> 2010 | D125: =$E$4 -> 2011 | E125: =$E$4 -> 2011
A126: Category | B126: Donors | C126: Gifts ($) | D126: Donors | E126: Gifts ($)
A128: New | B128: n/a | C128: n/a | D128: 93206 | E128: 98794866 | F128: 33
A129: Recaptured | B129: n/a | C129: n/a | D129: 44256 | E129: 35284174
A130: Upgraded | B130: =D130 -> 134206 | C130: 78398661 | D130: 134206 | E130: 145174053
A131: Same | B131: =D131 -> 53964 | C131: 47777429 | D131: 53964 | E131: 47777429
A132: Downgraded | B132: =D132 -> 87664 | C132: 112265394 | D132: 87664 | E132: 59140726
A133: Lapsed new | B133: 40978 | C133: 53621073 | D133: n/a | E133: n/a
A134: Lapsed repeat | B134: 61476 | C134: 52202106 | D134: n/a | E134: n/a
A135: Total | B135: =SUM(B130:B134) -> 378288 | C135: =SUM(C130:C134) -> 344264663 | D135: =SUM(D128:D132) -> 413296 | E135: =SUM(E128:E132) -> 386171248
B137: Number | C137: Gift$
A138: New in year 1 | B138: 88931 | C138: 89743096 | D138: <-- i.e., last year's new donors and gift$
A139: Database EOY1 | B139: 632123 | D139: <-- i.e., Total number of donors on file at end of Year1
A140: One time donors | B140: 133355 | C140: 217497663 | D140: <-- i.e., Number of one-time donors and gifts
A141: Recaptured lapsed 1 year | D141: 26568 | E141: 21751540 | F141: <-- Portion of Recaptured
A142: Monthly donors in Year2 | D142: 0.01 | E142: 0.01 | F142: <-- i.e., Year2 donors making 6 to 24 gifts.
B143: 725329 | C143: <-- total # of donors on file | E143: 1662312 | F143: <-- Total # of gifts in Year2 (vs #donors)
B144: 0.01 | C144: 0.01 | D144: <-- Total # & $ for monthly donors in database
B145: 0.01 | C145: 0.01 | D145: <-- Portion NEW monthly donors in Year2
A150: $5,000 and up | B150: E 5,000 up
A151: Gain(Loss) Data - Software Extract for Year 2 and Year 1 data
B153: Number of | C153: Amount of | D153: Number of | E153: Amount of
A154: Gain(Loss) | B154: =$E$4-1 -> 2010 | C154: =$E$4-1 -> 2010 | D154: =$E$4 -> 2011 | E154: =$E$4 -> 2011
A155: Category | B155: Donors | C155: Gifts ($) | D155: Donors | E155: Gifts ($)
A157: New | B157: n/a | C157: n/a | D157: 28093 | E157: 493338531 | F157: 34
A158: Recaptured | B158: n/a | C158: n/a | D158: 17439 | E158: 220370961
A159: Upgraded | B159: =D159 -> 47209 | C159: 467158154 | D159: 47209 | E159: 983684909
A160: Same | B160: =D160 -> 17459 | C160: 175612075 | D160: 17459 | E160: 175612075
A161: Downgraded | B161: =D161 -> 39457 | C161: 913068973 | D161: 39457 | E161: 454737104
A162: Lapsed new | B162: 12130 | C162: 266755657 | D162: n/a | E162: n/a
A163: Lapsed repeat | B163: 23117 | C163: 310496785 | D163: n/a | E163: n/a
A164: Total | B164: =SUM(B159:B163) -> 139372 | C164: =SUM(C159:C163) -> 2133091644 | D164: =SUM(D157:D161) -> 149657 | E164: =SUM(E157:E161) -> 2327743580
B166: Number | C166: Gift$
A167: New in year 1 | B167: 26216 | C167: 460680820 | D167: <-- i.e., last year's new donors and gift$
A168: Database EOY1 | B168: 227787 | D168: <-- i.e., Total number of donors on file at end of Year1
A169: One time donors | B169: 39721 | C169: 1012061623 | D169: <-- i.e., Number of one-time donors and gifts
A170: Recaptured lapsed 1 year | D170: 10462 | E170: 131133369 | F170: <-- Portion of Recaptured
A171: Monthly donors in Year2 | D171: 0.01 | E171: 0.01 | F171: <-- i.e., Year2 donors making 6 to 24 gifts.
B172: 255880 | C172: <-- total # of donors on file | E172: 501935 | F172: <-- Total # of gifts in Year2 (vs #donors)
B173: 0.01 | C173: 0.01 | D173: <-- Total # & $ for monthly donors in database
B174: 0.01 | C174: 0.01 | D174: <-- Portion NEW monthly donors in Year2

Sheet FEPdata (hidden)
A1: FEPdata | F1: =TODAY() -> 2023-09-26
A2: =StepByStep!#REF! ->  | E2: Current Year 2
A3: Growth-in-Giving is measured for Year 2:
D4: Year 2 | E4: 2016 | S4: 11:52:58 | T4: 11:52:58
A5: All donors | B5: All
A6: Gain(Loss) Data - Software Extract for Year 2 and Year 1 data
B8: Number of | C8: Amount of | D8: Number of | E8: Amount of
A9: Gain(Loss) | B9: =D9-1 -> 2015 | C9: =E9-1 -> 2015 | D9: =$E4 -> 2016 | E9: =$E4 -> 2016
A10: Category | B10: Donors | C10: Gifts ($) | D10: Donors | E10: Gifts ($)
A12: New | B12: n/a | C12: n/a | D12: 2910125 | E12: 1515579372
A13: Recaptured | B13: n/a | C13: n/a | D13: 647686 | E13: 546577949
A14: Upgraded | B14: 1261163 | C14: 1219749215 | D14: 1261163 | E14: 2542178181
A15: Same | B15: 800406 | C15: 543429706 | D15: 800406 | E15: 543429706
A16: Downgraded | B16: 900594 | C16: 2132281556 | D16: 900594 | E16: 987977453
A17: Lapsed new | B17: 2320303 | C17: 1001950771 | D17: n/a | E17: n/a
A18: Lapsed repeat | B18: 1200510 | C18: 959094630 | D18: n/a | E18: n/a | F18: GiG# | G18: GiG$
A19: Total | B19: =SUM(B12:B18) -> 6482976 | C19: =SUM(C12:C18) -> 5856505878 | D19: =SUM(D12:D18) -> 6519974 | E19: =SUM(E12:E18) -> 6135742661 | F19: =(D19-B19)/B19 -> 0.005706946933 | G19: =(E19-C19)/C19 -> 0.047679758
A20: 36 hilighted data fields are retrieved from gift transaction data below
B21: Number | C21: Gift$ | K21: 30673343 | L21: <-- No. years donors made gifts (i.e., donors per year * # Years)
A22: New in year 1 | B22: 3327819 | C22: 1949620453 | D22: <-- i.e., last year's new donors and gift$ | K22: 67199281 | L22: 26934325306 | M22: <-- Total # gifts & $ for all donors in database
A23: Database EOY1 | B23: 20077733 | D23: <-- i.e., Total number of donors on file at end of Year1 | K23: 22987858 | L23: <-- i.e., TOTAL number of donors on file
A24: One time donors | B24: 11908212 | C24: 4311993915 | D24: <-- i.e., Number of one-time donors and gifts | K24: 14994139 | L24: <-- Total # of gifts in Year2 (vs #donors)
A25: Recaptured lapsed 1 year | D25: 361965 | E25: 329876861 | F25: <-- Portion of Recaptured | K25: 0.05 | L25: 0.05 | M25: <-- Total # & $ for monthly donors in database
A26: Monthly donors in Year2 | D26: 0.05 | E26: 0.05 | F26: <-- i.e., Year2 donors making 6 to 24 gifts. | K26: 0.05 | L26: 0.05 | M26: <-- Portion NEW monthly donors in Year2

Sheet FEP100Dn (hidden)
A1: FEP100Dn | C1: Fundraising Effectiveness Survey | G1: =TODAY() -> 2023-09-26
A2: =StepByStep!#REF! -> 
A3: Growth-in-Giving is measured for Year 2:
D4: Year 2 | E4: =FEPdata!E4 -> 2016
A5: Under $100 | B5: A 100 dn
A6: Gain(Loss) Data - Software Extract for Year 2 and Year 1 data
B8: Number of | C8: Amount of | D8: Number of | E8: Amount of
A9: Gain(Loss) | B9: =D9-1 -> 2015 | C9: =E9-1 -> 2015 | D9: =$E4 -> 2016 | E9: =$E4 -> 2016
A10: Category | B10: Donors | C10: Gifts ($) | D10: Donors | E10: Gifts ($)
A12: New | B12: n/a | C12: n/a | D12: 1698466 | E12: 57932675
A13: Recaptured | B13: n/a | C13: n/a | D13: 258842 | E13: 8709409
A14: Upgraded | B14: 280703 | C14: 7772468 | D14: 280703 | E14: 13453923
A15: Same | B15: 330594 | C15: 11730780 | D15: 330594 | E15: 11730780
A16: Downgraded | B16: 216544 | C16: 10077376 | D16: 216544 | E16: 5776946
A17: Lapsed new | B17: 1458224 | C17: 48383813 | D17: n/a | E17: n/a
A18: Lapsed repeat | B18: 472666 | C18: 16021173 | D18: n/a | E18: n/a | F18: GiG# | G18: GiG$
A19: Total | B19: =SUM(B12:B18) -> 2758731 | C19: =SUM(C12:C18) -> 93985610 | D19: =SUM(D12:D18) -> 2785149 | E19: =SUM(E12:E18) -> 97603733 | F19: =(D19-B19)/B19 -> 0.009576142074 | G19: =(E19-C19)/C19 -> 0.03849656346
A20: 36 hilighted data fields are retrieved from gift transaction data below | M20: =SUM(M8:M19) -> 0
B21: Number | C21: Gift$ | K21: 12803151 | L21: <-- No. years donors made gifts (i.e., donors per year * # Years)
A22: New in year 1 | B22: 1833543 | C22: 61198019 | D22: <-- i.e., last year's new donors and gift$ | K22: 16148914 | L22: 428942234 | M22: <-- Total # gifts & $ for all donors in database
A23: Database EOY1 | B23: 11078571 | D23: <-- i.e., Total number of donors on file at end of Year1 | K23: 12777037 | L23: <-- i.e., TOTAL number of donors on file
A24: One time donors | B24: 8078146 | C24: 254110144 | D24: <-- i.e., Number of one-time donors and gifts | K24: 3589253 | L24: <-- Total # of gifts in Year2 (vs #donors)
A25: Recaptured lapsed 1 year | D25: 138648 | E25: 4802430 | F25: <-- Portion of Recaptured | K25: 0.01 | L25: 0.01 | M25: <-- Total # & $ for monthly donors in database
A26: Monthly donors in Year2 | D26: 0.01 | E26: 0.01 | F26: <-- i.e., Year2 donors making 6 to 24 gifts. | K26: 0.01 | L26: 0.01 | M26: <-- Portion NEW monthly donors in Year2

Sheet FEP100to249 (hidden)
A1: FEP100to249 | C1: Fundraising Effectiveness Survey | G1: =TODAY() -> 2023-09-26
A2: =StepByStep!#REF! -> 
A3: Growth-in-Giving is measured for Year 2:
D4: Year 2 | E4: =FEPdata!E4 -> 2016
A5: $100 to $249 | B5: B 100-249
A6: Gain(Loss) Data - Software Extract for Year 2 and Year 1 data
B8: Number of | C8: Amount of | D8: Number of | E8: Amount of
A9: Gain(Loss) | B9: =D9-1 -> 2015 | C9: =E9-1 -> 2015 | D9: =$E4 -> 2016 | E9: =$E4 -> 2016
A10: Category | B10: Donors | C10: Gifts ($) | D10: Donors | E10: Gifts ($)
A12: New | B12: n/a | C12: n/a | D12: 663112 | E12: 86379457
A13: Recaptured | B13: n/a | C13: n/a | D13: 187000 | E13: 18279907
A14: Upgraded | B14: 295290 | C14: 22472404 | D14: 295290 | E14: 41020430
A15: Same | B15: 223159 | C15: 24253368 | D15: 223159 | E15: 24253368
A16: Downgraded | B16: 230550 | C16: 31210785 | D16: 230550 | E16: 16882707
A17: Lapsed new | B17: 512650 | C17: 65447678 | D17: n/a | E17: n/a
A18: Lapsed repeat | B18: 333183 | C18: 32696601 | D18: n/a | E18: n/a | F18: GiG# | G18: GiG$
A19: Total | B19: =SUM(B12:B18) -> 1594832 | C19: =SUM(C12:C18) -> 176080836 | D19: =SUM(D12:D18) -> 1599111 | E19: =SUM(E12:E18) -> 186815869 | F19: =(D19-B19)/B19 -> 0.002683041223 | G19: =(E19-C19)/C19 -> 0.06096650404
A20: 36 hilighted data fields are retrieved from gift transaction data below
B21: Number | C21: Gift$ | K21: 7551386 | L21: <-- No. years donors made gifts (i.e., donors per year * # Years)
A22: New in year 1 | B22: 771947 | C22: 93014845 | D22: <-- i.e., last year's new donors and gift$ | K22: 13719155 | L22: 799816845 | M22: <-- Total # gifts & $ for all donors in database
A23: Database EOY1 | B23: 4558880 | D23: <-- i.e., Total number of donors on file at end of Year1 | K23: 5221992 | L23: <-- i.e., TOTAL number of donors on file
A24: One time donors | B24: 2348063 | C24: 298578364 | D24: <-- i.e., Number of one-time donors and gifts | K24: 3057902 | L24: <-- Total # of gifts in Year2 (vs #donors)
A25: Recaptured lapsed 1 year | D25: 106095 | E25: 10534682 | F25: <-- Portion of Recaptured | K25: 0.01 | L25: 0.01
A26: Monthly donors in Year2 | D26: 0.01 | E26: 0.01 | F26: <-- i.e., Year2 donors making 6 to 24 gifts. | K26: 0.01 | L26: 0.01

Sheet FEP250to999 (hidden)
A1: FEP250to999 | C1: Fundraising Effectiveness Survey | G1: =TODAY() -> 2023-09-26
A2: =StepByStep!#REF! -> 
A3: Growth-in-Giving is measured for Year 2:
D4: Year 2 | E4: =FEPdata!E4 -> 2016
A5: $250 to $999 | B5: C 250-999
A6: Gain(Loss) Data - Software Extract for Year 2 and Year 1 data
B8: Number of | C8: Amount of | D8: Number of | E8: Amount of
A9: Gain(Loss) | B9: =D9-1 -> 2015 | C9: =E9-1 -> 2015 | D9: =$E4 -> 2016 | E9: =$E4 -> 2016
A10: Category | B10: Donors | C10: Gifts ($) | D10: Donors | E10: Gifts ($)
A12: New | B12: n/a | C12: n/a | D12: 355901 | E12: 154845821
A13: Recaptured | B13: n/a | C13: n/a | D13: 118976 | E13: 32601581
A14: Upgraded | B14: 343351 | C14: 86595481 | D14: 343351 | E14: 160454265
A15: Same | B15: 144284 | C15: 48390402 | D15: 144284 | E15: 48390402
A16: Downgraded | B16: 247312 | C16: 101128437 | D16: 247312 | E16: 54446939
A17: Lapsed new | B17: 232821 | C17: 97394932 | D17: n/a | E17: n/a
A18: Lapsed repeat | B18: 237596 | C18: 65692272 | D18: n/a | E18: n/a | F18: GiG# | G18: GiG$
A19: Total | B19: =SUM(B12:B18) -> 1205364 | C19: =SUM(C12:C18) -> 399201524 | D19: =SUM(D12:D18) -> 1209824 | E19: =SUM(E12:E18) -> 450739008 | F19: =(D19-B19)/B19 -> 0.003700127099 | G19: =(E19-C19)/C19 -> 0.129101421
A20: 36 hilighted data fields are retrieved from gift transaction data below
B21: Number | C21: Gift$ | K21: 5868099 | L21: <-- No. years donors made gifts (i.e., donors per year * # Years)
A22: New in year 1 | B22: 440630 | C22: 163190107 | D22: <-- i.e., last year's new donors and gift$ | K22: 19236356 | L22: 1847175912 | M22: <-- Total # gifts & $ for all donors in database
A23: Database EOY1 | B23: 2710616 | D23: <-- i.e., Total number of donors on file at end of Year1 | K23: 3066517 | L23: <-- i.e., TOTAL number of donors on file
A24: One time donors | B24: 1000961 | C24: 416908122 | D24: <-- i.e., Number of one-time donors and gifts | K24: 4178994 | L24: <-- Total # of gifts in Year2 (vs #donors)
A25: Recaptured lapsed 1 year | D25: 68854 | E25: 19037849 | F25: <-- Portion of Recaptured | K25: 0.01 | L25: 0.01 | M25: <-- Total # & $ for monthly donors in database
A26: Monthly donors in Year2 | D26: 0.01 | E26: 0.01 | F26: <-- i.e., Year2 donors making 6 to 24 gifts. | K26: 0.01 | L26: 0.01 | M26: <-- Portion NEW monthly donors in Year2

Sheet FEP1000to4999 (hidden)
A1: FEP1000to4999 | C1: Fundraising Effectiveness Survey | G1: =TODAY() -> 2023-09-26
A3: Growth-in-Giving is measured for Year 2:
D4: Year 2 | E4: =FEPdata!E4 -> 2016
A5: $1,000 to $4,999 | B5: D 1,000-4,999
A6: Gain(Loss) Data - Software Extract for Year 2 and Year 1 data
B8: Number of | C8: Amount of | D8: Number of | E8: Amount of
A9: Gain(Loss) | B9: =D9-1 -> 2015 | C9: =E9-1 -> 2015 | D9: =$E4 -> 2016 | E9: =$E4 -> 2016
A10: Category | B10: Donors | C10: Gifts ($) | D10: Donors | E10: Gifts ($)
A12: New | B12: n/a | C12: n/a | D12: 151321 | E12: 249941785
A13: Recaptured | B13: n/a | C13: n/a | D13: 59286 | E13: 61621082
A14: Upgraded | B14: 274757 | C14: 268197705 | D14: 274757 | E14: 507190034
A15: Same | B15: 75414 | C15: 94125107 | D15: 75414 | E15: 94125107
A16: Downgraded | B16: 143873 | C16: 231480796 | D16: 143873 | E16: 121798849
A17: Lapsed new | B17: 89204 | C17: 147986427 | D17: n/a | E17: n/a
A18: Lapsed repeat | B18: 114275 | C18: 117494625 | D18: n/a | E18: n/a | F18: GiG# | G18: GiG$
A19: Total | B19: =SUM(B12:B18) -> 697523 | C19: =SUM(C12:C18) -> 859284660 | D19: =SUM(D12:D18) -> 704651 | E19: =SUM(E12:E18) -> 1034676857 | F19: =(D19-B19)/B19 -> 0.01021901787 | G19: =(E19-C19)/C19 -> 0.2041141954
A20: 36 hilighted data fields are retrieved from gift transaction data below
B21: Number | C21: Gift$ | K21: 3326804 | L21: <-- No. years donors made gifts (i.e., donors per year * # Years)
A22: New in year 1 | B22: 220135 | C22: 291861483 | D22: <-- i.e., last year's new donors and gift$ | K22: 14341432 | L22: 3850415177 | M22: <-- Total # gifts & $ for all donors in database
A23: Database EOY1 | B23: 1303842 | D23: <-- i.e., Total number of donors on file at end of Year1 | K23: 1455163 | L23: <-- i.e., TOTAL number of donors on file
A24: One time donors | B24: 371207 | C24: 610552297 | D24: <-- i.e., Number of one-time donors and gifts | K24: 3424634 | L24: <-- Total # of gifts in Year2 (vs #donors)
A25: Recaptured lapsed 1 year | D25: 34372 | E25: 36614879 | F25: <-- Portion of Recaptured | K25: 0.01 | L25: 0.01 | M25: <-- Total # & $ for monthly donors in database
A26: Monthly donors in Year2 | D26: 0.01 | E26: 0.01 | F26: <-- i.e., Year2 donors making 6 to 24 gifts. | K26: 0.01 | L26: 0.01 | M26: <-- Portion NEW monthly donors in Year2

Sheet FEP5000Up (hidden)
A1: FEP5000Up | C1: Fundraising Effectiveness Survey | G1: =TODAY() -> 2023-09-26
A2: =StepByStep!#REF! -> 
A3: Growth-in-Giving is measured for Year 2:
D4: Year 2 | E4: =FEPdata!E4 -> 2016
A5: $5,000 and up | B5: E 5,000 up
A6: Gain(Loss) Data - Software Extract for Year 2 and Year 1 data
B8: Number of | C8: Amount of | D8: Number of | E8: Amount of
A9: Gain(Loss) | B9: =D9-1 -> 2015 | C9: =E9-1 -> 2015 | D9: =$E4 -> 2016 | E9: =$E4 -> 2016
A10: Category | B10: Donors | C10: Gifts ($) | D10: Donors | E10: Gifts ($)
A12: New | B12: n/a | C12: n/a | D12: 41325 | E12: 966479634
A13: Recaptured | B13: n/a | C13: n/a | D13: 23582 | E13: 425365970
A14: Upgraded | B14: 67062 | C14: 834711157 | D14: 67062 | E14: 1820059529
A15: Same | B15: 26955 | C15: 364930049 | D15: 26955 | E15: 364930049
A16: Downgraded | B16: 62315 | C16: 1758384162 | D16: 62315 | E16: 789072012
A17: Lapsed new | B17: 27404 | C17: 642737921 | D17: n/a | E17: n/a
A18: Lapsed repeat | B18: 42790 | C18: 727189959 | D18: n/a | E18: n/a | F18: GiG# | G18: GiG$
A19: Total | B19: =SUM(B12:B18) -> 226526 | C19: =SUM(C12:C18) -> 4327953248 | D19: =SUM(D12:D18) -> 221239 | E19: =SUM(E12:E18) -> 4365907194 | F19: =(D19-B19)/B19 -> -0.02333948421 | G19: =(E19-C19)/C19 -> 0.008769490756
A20: 36 hilighted data fields are retrieved from gift transaction data below
B21: Number | C21: Gift$ | K21: 1123903 | L21: <-- No. years donors made gifts (i.e., donors per year * # Years)
A22: New in year 1 | B22: 61564 | C22: 1340355999 | D22: <-- i.e., last year's new donors and gift$ | K22: 3753424 | L22: 20007975138 | M22: <-- Total # gifts & $ for all donors in database
A23: Database EOY1 | B23: 425824 | D23: <-- i.e., Total number of donors on file at end of Year1 | K23: 467149 | L23: <-- i.e., TOTAL number of donors on file
A24: One time donors | B24: 109835 | C24: 2731844988 | D24: <-- i.e., Number of one-time donors and gifts | K24: 743356 | L24: <-- Total # of gifts in Year2 (vs #donors)
A25: Recaptured lapsed 1 year | D25: 13996 | E25: 258887021 | F25: <-- Portion of Recaptured | K25: 0.01 | L25: 0.01 | M25: <-- Total # & $ for monthly donors in database
A26: Monthly donors in Year2 | D26: 0.01 | E26: 0.01 | F26: <-- i.e., Year2 donors making 6 to 24 gifts. | K26: 0.01 | L26: 0.01 | M26: <-- Portion NEW monthly donors in Year2
